{"text_format":"1","workbook":"xlsx","n_sheets":13,"sheets":["Hoofdmenu","Toelichting","Voorblad","Mededelingen","NAW_gegevens","Kostenverzamelstaat","Specifieke informatie A","Specifieke informatie C","Contractinformatie","Wanbetalers","Controleoverzicht","Blad1","Parameters"],"not_rendered":{"charts":0,"images":1,"macros":1,"external_links":0,"defined_names":1043,"comments":0,"pivot_tables":0},"unopened":[],"bounds":{"document_bytes":16777216,"sheet_cells":100000,"rows_first":2000,"rows_last":500,"rows_between":2000,"halvings":0,"cell_chars":16384,"cell_head_chars":4096},"cells_cut":0,"cells_raw":0,"read":"whole","date_system":"1900"}

{"sheet":"Hoofdmenu","index":0,"n_rows":3,"n_cols":2,"rows_kept":3,"cut":false,"hidden":false,"merged":[[0,0,0,1],[1,0,1,1]]}
[" "]
[{"$f":"CONCATENATE(\"KWARTAALSTAAT ZVW \", jaar_id)","v":"KWARTAALSTAAT ZVW 2024"}]
["Navigatie","Afdrukken"]

{"sheet":"Toelichting","index":1,"n_rows":4,"n_cols":2,"rows_kept":4,"cut":false,"hidden":false,"merged":[]}
[]
[]
[]
[null,{"$f":"CONCATENATE(\" KWARTAALSTAAT ZVW \",jaar_id,\" \",\"(VERSIE: \",revisie_id,\")\")","v":" KWARTAALSTAAT ZVW 2024 (VERSIE: A)"}]

{"sheet":"Voorblad","index":2,"n_rows":35,"n_cols":4,"rows_kept":35,"cut":false,"hidden":false,"merged":[[15,3,16,11],[13,3,14,11],[17,3,18,11]]}
[null,null,"VOORBLAD"]
[]
[]
[]
[]
["Pagina 1",null,null," "]
[]
[]
[]
[]
[]
[]
[]
[null,null,null,{"$f":"CONCATENATE(\"KWARTAALSTAAT ZVW \",jaar_id)","v":"KWARTAALSTAAT ZVW 2024"}]
[]
[]
[]
[null,null,null,"SPECIFIEKE INFORMATIE"]
[]
[]
[]
[null,null,null,"    KOSTENVERZAMELSTAAT (SPECIFIEKE INFORMATIE A)"]
[null,null,null,"     ● Informatie risicoverevening (pagina 1 t/m 4)"]
[]
[null,null,null,"    SPECIFIEKE INFORMATIE A"]
[null,null,null,"     ● Informatie risicoverevening (pagina 1 t/m 2)"]
[]
[null,null,null,"    SPECIFIEKE INFORMATIE C"]
[null,null,null,"     ● Specificaties van kosten en productie (pagina 1 t/m 2)"]
[]
[null,null,null,"    CONTRACTINFORMATIE (SPECIFIEKE INFORMATIE C)"]
[null,null,null,"     ● Specificaties van kosten en productie (pagina 1 & 2)"]
[]
[null,null,null,"    WANBETALERS (SPECIFIEKE INFORMATIE C)"]
[null,null,null,"     ● Specificaties van aantallen (pagina 1)"]

{"sheet":"Mededelingen","index":3,"n_rows":49,"n_cols":12,"rows_kept":49,"cut":false,"hidden":false,"merged":[[48,3,48,4]]}
[]
[]
[]
[]
[]
["Pagina 1",null,null,{"$f":"CONCATENATE(\"KWARTAALSTAAT ZVW \", jaar_id)","v":"KWARTAALSTAAT ZVW 2024"}]
[null,null,null,{"$f":"IF(naw_uzovi_zorgverzekeraar<>\"0000\",CONCATENATE(UPPER(naw_naam_zorgverzekeraar),\", \",UPPER(naw_plaats_zorgverzekeraar)),\"\")","v":""},null,null,null,null,null,null,null,{"$f":"CONCATENATE(\"UZOVI: \",naw_uzovi_zorgverzekeraar)","v":"UZOVI: 0000"}]
[null,null,null,"MEDEDELINGEN :"]
[]
[]
[]
[]
[]
[]
[]
[]
[]
[]
[]
[]
[]
[]
[]
[]
[]
[]
[]
[]
[]
[]
[]
[]
[]
[]
[]
[]
[]
[]
[]
[]
[]
[]
[]
[]
[]
[]
[]
[]
[null,null,null,{"$f":"NOW()","v":"2023-12-18T14:42:37.950"},null,null,null,null,null,null,null,{"$f":"CONCATENATE(\"Mededelingen \",LOWER(A6))","v":"Mededelingen pagina 1"}]

{"sheet":"NAW_gegevens","index":4,"n_rows":36,"n_cols":6,"rows_kept":36,"cut":false,"hidden":false,"merged":[[2,1,2,2],[3,1,3,2]]}
[]
[]
[null,"NAW-GEGEVENS"]
[null,{"$f":"CONCATENATE(\"KWARTAALSTAAT ZVW \", jaar_id)","v":"KWARTAALSTAAT ZVW 2024"}]
[null," Selecteer uw nummer:","0000 KIES UW UZOVI-NUMMER"]
[null," Uzovi-nummer:",{"$f":"MID(keuze_uzovi_nummer,1,4)","v":"0000"}]
[null," Zorgverzekeraar:"]
[null," Plaats:"]
[null," Contactpersoon:"]
[null," Telefoonnummer:"]
[null," E-mail:"]
[]
[null,"Let op dat u het goede UZOVI-nummer invult, zie onderstaand overzicht:"]
[]
[null,"UZOVI","NAAM",null,null,"PLAATS"]
[null,"0101","N.V. UNIVÉ ZORG",null,null,"ARNHEM"]
[null,"0104","CENTRALE ZORGVERZEKERINGEN NZV N.V.",null,null,"TILBURG"]
[null,"0201","OHRA ZORGVERZEKERINGEN N.V.",null,null,"TILBURG"]
[null,"0403","ASR BASIS ZIEKTENKOSTENVERZEKERINGEN N.V. ",null,null,"UTRECHT"]
[null,"0699","IZA ZORGVERZEKERAAR N.V.",null,null,"ARNHEM"]
[null,"0736","N.V. ZORGVERZEKERAAR UMC",null,null,"ARNHEM"]
[null,"3311","ZILVEREN KRUIS ACHMEA ZORGVERZEKERINGEN N.V.",null,null,"UTRECHT"]
[null,"3313","INTERPOLIS ZORGVERZEKERINGEN N.V.",null,null,"UTRECHT"]
[null,3332,"MENZIS ZORGVERZEKERAAR NV",null,null,"WAGENINGEN"]
[null,3333,"ANDERZORG NV",null,null,"WAGENINGEN"]
[null,3343,"ONVZ ZIEKTEKOSTENVERZEKERAAR N.V.",null,null,"HOUTEN"]
[null,3347,"SALLAND ZORGVERZEKERAAR N.V.",null,null,"DEVENTER"]
[null,3351,"FBTO ZORGVERZEKERINGEN N.V.",null,null,"LEEUWARDEN"]
[null,3352,"IPTIQ LIFE S.A.",null,null,"AMSTELVEEN"]
[null,3358,"DE FRIESLAND ZORGVERZEKERAAR N.V.",null,null,"LEEUWARDEN"]
[null,3359,"EUCARE INSURANCE PCC LTD",null,null,"TA' XBIEX"]
[null,"7029","OWM ZORGVERZEKERAAR 'DSW' U.A.",null,null,"SCHIEDAM"]
[null,"7037","STAD HOLLAND ZORGVERZEKERAAR OWM U.A.",null,null,"SCHIEDAM"]
[null,"7085","OWM ZORGVERZEKERAAR ZORG EN ZEKERHEID U.A.",null,null,"LEIDEN"]
[null,"7095","VGZ ZORGVERZEKERAAR N.V.",null,null,"ARNHEM"]
[null,"7119","CZ ZORGVERZEKERINGEN N.V.",null,null,"TILBURG"]

{"sheet":"Kostenverzamelstaat","index":5,"n_rows":156,"n_cols":17,"rows_kept":156,"cut":false,"hidden":false,"merged":[[49,8,49,9],[138,3,139,9],[146,13,147,13],[146,8,147,8],[146,9,147,9],[146,10,147,10],[146,11,147,11],[146,12,147,12],[138,12,139,12],[138,13,139,13],[138,10,139,10],[138,11,139,11],[56,3,56,6],[92,13,93,13],[60,3,60,6],[79,3,79,6],[133,12,134,12],[133,13,134,13],[105,3,105,6],[91,12,91,13],[92,8,93,8],[92,9,93,9],[92,10,93,10],[92,11,93,11],[92,12,93,12],[133,10,134,10],[133,11,134,11],[133,3,134,9],[12,11,13,11],[12,12,13,12],[10,8,11,9],[10,10,11,11],[10,12,11,13],[49,10,49,11],[49,12,49,13],[91,8,91,9],[91,10,91,11],[0,2,0,14],[10,3,10,7],[12,13,13,13],[50,8,51,8],[50,9,51,9],[50,10,51,10],[50,11,51,11],[50,12,51,12],[50,13,51,13],[12,8,13,8],[12,9,13,9],[12,10,13,10]]}
[null,null,"INVULSPECIFICATIES SPECIFIEKE INFORMATIE A"]
[]
[]
[]
[]
["Pagina 1",null,null,{"$f":"CONCATENATE(\"KWARTAALSTAAT ZVW \", jaar_id)","v":"KWARTAALSTAAT ZVW 2024"}]
[null,null,null,"SPECIFIEKE INFORMATIE A: KOSTENVERZAMELSTAAT"]
[null,null,null,{"$f":"IF(naw_uzovi_zorgverzekeraar<>\"0000\",CONCATENATE(UPPER(naw_naam_zorgverzekeraar),\", \",UPPER(naw_plaats_zorgverzekeraar)),\"\")","v":""},null,null,null,null,null,null,null,null,null,{"$f":"CONCATENATE(\"UZOVI: \",naw_uzovi_zorgverzekeraar)","v":"UZOVI: 0000"}]
[null,null,null,"SPECIFICATIES INFORMATIE RISICOVEREVENING"]
[null,null,null,{"$f":"$D$7","v":"SPECIFIEKE INFORMATIE A: KOSTENVERZAMELSTAAT"}]
[null,null,null,null,null,null,null,null,{"$f":"CONCATENATE(\"LASTEN \", jaar_id)","v":"LASTEN 2024"},null,{"$f":"CONCATENATE(\"LASTEN \", jaar_id-1)","v":"LASTEN 2023"},null,{"$f":"CONCATENATE(\"LASTEN \", jaar_id-2,\" \nEN OUDER\")","v":"LASTEN 2022 \nEN OUDER"}]
[]
[null,null,null,null,null,null,null,null,{"$f":"CONCATENATE(\"LASTEN \", jaar_id,\" inclusief balanspost \")","v":"LASTEN 2024 inclusief balanspost "},{"$f":"CONCATENATE(\"Ontvangen en geaccepteerde declaraties m.b.t. \", jaar_id)","v":"Ontvangen en geaccepteerde declaraties m.b.t. 2024"},{"$f":"CONCATENATE(\"LASTEN \", jaar_id-1,\" inclusief balanspost \")","v":"LASTEN 2023 inclusief balanspost "},{"$f":"CONCATENATE(\"Ontvangen en geaccepteerde declaraties m.b.t. \", jaar_id-1)","v":"Ontvangen en geaccepteerde declaraties m.b.t. 2023"},{"$f":"CONCATENATE(\"LASTEN \", \" inclusief balanspost m.b.t. \",jaar_id-2, \" en ouder\")","v":"LASTEN  inclusief balanspost m.b.t. 2022 en ouder"},{"$f":"CONCATENATE(\"Ontvangen en geaccepteerde declaraties m.b.t. \", jaar_id-2, \" en ouder\")","v":"Ontvangen en geaccepteerde declaraties m.b.t. 2022 en ouder"}]
[null,null,null," KOSTENRUBRIEK",null,null,null,"code"]
[null,null,null," 01  HUISARTSENZORG en MDZ"]
[null,null,null," Bijzondere betalingen",null,null,null,"503   ",null,null,null,null,null,null,null,null,{"$f":"IF(OR((I16-J16)/IF(I16=0,1,I16)<-10%,(K16-L16)/IF(K16=0,1,K16)<-10%,(M16-N16)/IF(M16=0,1,M16)<-10%),\"De balans is < -10%, als dit plausibel is dan vragen wij u dit nader toe te lichten bij de opmerkingen, zo niet dan dient u uw raming aan te scherpen.\",\"\")","v":""}]
[null,null,null," Avond-, nacht- en weekenddiensten",null,null,null,"504   ",null,null,null,null,null,null,null,null,{"$f":"IF(OR((I17-J17)/IF(I17=0,1,I17)<-10%,(K17-L17)/IF(K17=0,1,K17)<-10%,(M17-N17)/IF(M17=0,1,M17)<-10%),\"De balans is < -10%, als dit plausibel is dan vragen wij u dit nader toe te lichten bij de opmerkingen, zo niet dan dient u uw raming aan te scherpen.\",\"\")","v":""}]
[null,null,null," Inschrijftarieven",null,null,null,"505   ",null,null,null,null,null,null,null,null,""]
[null,null,null," Consulttarieven",null,null,null,"506   ",null,null,null,null,null,null,null,null,""]
[null,null,null," Overige tarieven",null,null,null,"507   ",null,null,null,null,null,null,null,null,""]
[null,null,null," Multidisciplinaire zorg",null,null,null,"510   ",null,null,null,null,null,null,null,null,""]
[null,null,null," Resultaatbeloning en zorgvernieuwing huisartsen",null,null,null,"515   ",null,null,null,null,null,null,null,null,""]
[null,null,null," Resultaatbeloning en zorgvernieuwing MDZ",null,null,null,"516   ",null,null,null,null,null,null,null,null,""]
[null,null,null," TOTAAL RUBRIEK 01",null,null,null,null,{"$f":"SUM(I16:I23)","v":0},0,0,0,0,0]
[null,null,null," 02 FARMACEUTISCHE ZORG"]
[null,null,null," Farmaceutische zorg",null,null,null,"520   ",null,null,null,null,null,null,null,null,{"$f":"IF(OR((I26-J26)/IF(I26=0,1,I26)<-10%,(K26-L26)/IF(K26=0,1,K26)<-10%,(M26-N26)/IF(M26=0,1,M26)<-10%),\"De balans is < -10%, als dit plausibel is dan vragen wij u dit nader toe te lichten bij de opmerkingen, zo niet dan dient u uw raming aan te scherpen.\",\"\")","v":""}]
[null,null,null," TOTAAL RUBRIEK 02",null,null,null,null,{"$f":"SUM(I26:I26)","v":0},0,0,0,0,0]
[null,null,null," 03 VERPLEGING EN VERZORGING ",null,null,null,null,null,null,null,null,null,null,null,null,{"$f":"IF(OR((I28-J28)/IF(I28=0,1,I28)<-10%,(K28-L28)/IF(K28=0,1,K28)<-10%,(M28-N28)/IF(M28=0,1,M28)<-10%),\"De balans is < -10%, als dit plausibel is dan vragen wij u dit nader toe te lichten bij de opmerkingen, zo niet dan dient u uw raming aan te scherpen.\",\"\")","v":""}]
[null,null,null," Kosten van verpleging en verzorging ",null,null,null,"530   ",null,null,null,null,null,null,null,null,""]
[null,null,null," Meerkosten COVID-19, indirect",null,null,null,"803.1   ",null,null,null,null,null,null,null,null,""]
[null,null,null," TOTAAL RUBRIEK 03",null,null,null,null,{"$f":"SUM(I29:I30)","v":0},0,0,0,0,0]
[null,null,null," 04  MONDZORG"]
[null,null,null," Kosten mondzorg volwassen verzekerden",null,null,null,"560.1",null,null,null,null,null,null,null,null,{"$f":"IF(OR((I33-J33)/IF(I33=0,1,I33)<-10%,(K33-L33)/IF(K33=0,1,K33)<-10%,(M33-N33)/IF(M33=0,1,M33)<-10%),\"De balans is < -10%, als dit plausibel is dan vragen wij u dit nader toe te lichten bij de opmerkingen, zo niet dan dient u uw raming aan te scherpen.\",\"\")","v":""}]
[null,null,null," Kosten mondzorg jeugdige verzekerden",null,null,null,"560.2",null,null,null,null,null,null,null,null,""]
[null,null,null," Kosten gebitsprothesen",null,null,null,"561   ",null,null,null,null,null,null,null,null,""]
[null,null,null," TOTAAL RUBRIEK 04",null,null,null,null,{"$f":"SUM(I33:I35)","v":0},0,0,0,0,0]
[null,null,null," 05  VERLOSKUNDIGE ZORG"]
[null,null,null," Kosten verloskundige zorg door verloskundigen",null,null,null,"580   ",null,null,null,null,null,null,null,null,{"$f":"IF(OR((I38-J38)/IF(I38=0,1,I38)<-10%,(K38-L38)/IF(K38=0,1,K38)<-10%,(M38-N38)/IF(M38=0,1,M38)<-10%),\"De balans is < -10%, als dit plausibel is dan vragen wij u dit nader toe te lichten bij de opmerkingen, zo niet dan dient u uw raming aan te scherpen.\",\"\")","v":""}]
[null,null,null," Kosten Integrale geboortezorg ",null,null,null,"582   ",null,null,null,null,null,null,null,null,""]
[null,null,null," TOTAAL RUBRIEK 05",null,null,null,null,{"$f":"SUM(I38:I39)","v":0},0,0,0,0,0]
[]
[]
[null,null,null,{"$f":"NOW()","v":"2023-12-18T14:42:37.950"},null,null,null,null,null,null,null,null,null,{"$f":"CONCATENATE(\"Kostenverzamelstaat 2024, \",LOWER(A6))","v":"Kostenverzamelstaat 2024, pagina 1"}]
[]
["Pagina 2",null,null,{"$f":"CONCATENATE(\"KWARTAALSTAAT ZVW \", jaar_id)","v":"KWARTAALSTAAT ZVW 2024"}]
[null,null,null,{"$f":"D7","v":"SPECIFIEKE INFORMATIE A: KOSTENVERZAMELSTAAT"}]
[null,null,null,{"$f":"IF(naw_uzovi_zorgverzekeraar<>\"0000\",CONCATENATE(UPPER(naw_naam_zorgverzekeraar),\", \",UPPER(naw_plaats_zorgverzekeraar)),\"\")","v":""},null,null,null,null,null,null,null,null,null,{"$f":"CONCATENATE(\"UZOVI: \",naw_uzovi_zorgverzekeraar)","v":"UZOVI: 0000"}]
[null,null,null,"SPECIFICATIES INFORMATIE RISICOVEREVENING"]
[null,null,null,"SPECIFIEKE INFORMATIE A: KOSTENVERZAMELSTAAT - vervolg"]
[null,null,null,null,null,null,null,null,{"$f":"I$11","v":"LASTEN 2024"},null,{"$f":"K$11","v":"LASTEN 2023"},null,{"$f":"M$11","v":"LASTEN 2022 \nEN OUDER"}]
[null,null,null,null,null,null,null,null,{"$f":"I$13","v":"LASTEN 2024 inclusief balanspost "},{"$f":"J$13","v":"Ontvangen en geaccepteerde declaraties m.b.t. 2024"},"LASTEN 2023 inclusief balanspost ","Ontvangen en geaccepteerde declaraties m.b.t. 2023","LASTEN  inclusief balanspost m.b.t. 2022 en ouder",{"$f":"N$13","v":"Ontvangen en geaccepteerde declaraties m.b.t. 2022 en ouder"}]
[null,null,null," KOSTENRUBRIEK",null,null,null,"code"]
[null,null,null," 06  MEDISCH SPECIALISTISCHE ZORG",null,null,null,null,null,null,null,null,null,null,null,null,{"$f":"IF(OR((I53-J53)/IF(I53=0,1,I53)<-10%,(K53-L53)/IF(K53=0,1,K53)<-10%,(M53-N53)/IF(M53=0,1,M53)<-10%),\"De balans is < -10%, als dit plausibel is dan vragen wij u dit nader toe te lichten bij de opmerkingen, zo niet dan dient u uw raming aan te scherpen.\",\"\")","v":""}]
[null,null,null," Kosten specialisten mondziekten en kaakchirurgie",null,null,null,"545   ",null,null,null,null,null,null,null,null,""]
[null,null,null," Overige kosten ziekenhuiszorg en curatieve zorg",null,null,null,"610   ",null,null,null,null,null,null,null,null,""]
[null,null,null," NTS",null,null,null,"  610.1   "]
[null,null,null," Eerstelijnsdiagnostiek aangevraagd door eerstelijnszorg-aanbieders geleverd door huisartsenlaboratoria en Trombosediensten",null,null,null,"  610.2   "]
[null,null,null," Overige zorgproducten",null,null,null,"611   ",null,null,null,null,null,null,null,null,""]
[null,null,null," Kosten add-ons - Dure geneesmiddelen",null,null,null,"612.1",null,null,null,null,null,null,null,null,""]
[null,null,null," Kosten add-ons - IC",null,null,null,"612.2",null,null,null,null,null,null,null,null,""]
[null,null,null," Integrale kosten van DBC-zorgproduct \n gereguleerde segment  ",null,null,null,"613.1",null,null,null,null,null,null,null,null,""]
[null,null,null," Integrale kosten DBC-zorgproduct vrije segment",null,null,null,"615.1",null,null,null,null,null,null,null,null,""]
[null,null,null," Integrale kosten extramuraal werkende \n specialisten",null,null,null,"619   ",null,null,null,null,null,null,null,null,""]
[null,null,null," Meerkosten COVID-19, indirect",null,null,null,"806.1   ",null,null,null,null,null,null,null,null,""]
[null,null,null," Meerkosten COVID-19, toeslagen",null,null,null,"806.2   ",null,null,null,null,null,null,null,null,""]
[null,null,null," TOTAAL RUBRIEK 06",null,null,null,null,{"$f":"SUM(I54:I65)","v":0},0,0,0,0,0]
[null,null,null," 07  PARAMEDISCHE ZORG"]
[null,null,null," Kosten fysiotherapie",null,null,null,"620   ",null,null,null,null,null,null,null,null,{"$f":"IF(OR((I68-J68)/IF(I68=0,1,I68)<-10%,(K68-L68)/IF(K68=0,1,K68)<-10%,(M68-N68)/IF(M68=0,1,M68)<-10%),\"De balans is < -10%, als dit plausibel is dan vragen wij u dit nader toe te lichten bij de opmerkingen, zo niet dan dient u uw raming aan te scherpen.\",\"\")","v":""}]
[null,null,null," Kosten oefentherapie Mensendieck/Cesar",null,null,null,"621   ",null,null,null,null,null,null,null,null,""]
[null,null,null," Kosten logopedie",null,null,null,"623   ",null,null,null,null,null,null,null,null,""]
[null,null,null," Kosten ergotherapie",null,null,null,"624   ",null,null,null,null,null,null,null,null,""]
[null,null,null," Kosten dieetadvisering",null,null,null,"625   ",null,null,null,null,null,null,null,null,""]
[null,null,null," Gecombineerde Leefstijl Interventie (GLI)",null,null,null,"626   ",null,null,null,null,null,null,null,null,""]
[null,null,null," TOTAAL RUBRIEK 07",null,null,null,null,{"$f":"SUM(I68:I73)","v":0},0,0,0,0,0]
[null,null,null," 08  HULPMIDDELENZORG"]
[null,null,null," Hulpmiddelenzorg ",null,null,null,"640   ",null,null,null,null,null,null,null,null,{"$f":"IF(OR((I76-J76)/IF(I76=0,1,I76)<-10%,(K76-L76)/IF(K76=0,1,K76)<-10%,(M76-N76)/IF(M76=0,1,M76)<-10%),\"De balans is < -10%, als dit plausibel is dan vragen wij u dit nader toe te lichten bij de opmerkingen, zo niet dan dient u uw raming aan te scherpen.\",\"\")","v":""}]
[null,null,null," TOTAAL RUBRIEK 08",null,null,null,null,{"$f":"SUM(I76:I76)","v":0},0,0,0,0,0]
[null,null,null," 09  ZIEKENVERVOER"]
[null,null,null," Kosten vervoer per ambulance/helikopter",null,null,null,"650   ",null,null,null,null,null,null,null,null,{"$f":"IF(OR((I79-J79)/IF(I79=0,1,I79)<-10%,(K79-L79)/IF(K79=0,1,K79)<-10%,(M79-N79)/IF(M79=0,1,M79)<-10%),\"De balans is < -10%, als dit plausibel is dan vragen wij u dit nader toe te lichten bij de opmerkingen, zo niet dan dient u uw raming aan te scherpen.\",\"\")","v":""}]
[null,null,null," Opbrengstenverrekeningen regionale ambulance-\n voorzieningen",null,null,null,"650.1",null,null,null,null,null,null,null,null,""]
[null,null,null," Kosten vervoer per openbaar vervoer, taxi \n en eigen auto",null,null,null,"651   ",null,null,null,null,null,null,null,null,""]
[null,null,null," TOTAAL RUBRIEK 09",null,null,null,null,{"$f":"SUM(I79:I81)","v":0},0,0,0,0,0]
[]
[]
[null,null,null,{"$f":"NOW()","v":"2023-12-18T14:42:37.950"},null,null,null,null,null,null,null,null,null,{"$f":"CONCATENATE(\"Kostenverzamelstaat 2024, \",LOWER(A45))","v":"Kostenverzamelstaat 2024, pagina 2"}]
[]
["Pagina 3",null,null,{"$f":"CONCATENATE(\"KWARTAALSTAAT ZVW \", jaar_id)","v":"KWARTAALSTAAT ZVW 2024"}]
[null,null,null,{"$f":"D7","v":"SPECIFIEKE INFORMATIE A: KOSTENVERZAMELSTAAT"}]
[null,null,null,{"$f":"IF(naw_uzovi_zorgverzekeraar<>\"0000\",CONCATENATE(UPPER(naw_naam_zorgverzekeraar),\", \",UPPER(naw_plaats_zorgverzekeraar)),\"\")","v":""},null,null,null,null,null,null,null,null,null,{"$f":"CONCATENATE(\"UZOVI: \",naw_uzovi_zorgverzekeraar)","v":"UZOVI: 0000"}]
[null,null,null,"SPECIFICATIES INFORMATIE RISICOVEREVENING"]
[null,null,null,"SPECIFIEKE INFORMATIE A: KOSTENVERZAMELSTAAT - vervolg"]
[null,null,null,null,null,null,null,null,{"$f":"I$11","v":"LASTEN 2024"},null,{"$f":"K$11","v":"LASTEN 2023"},null,{"$f":"M$11","v":"LASTEN 2022 \nEN OUDER"}]
[null,null,null,null,null,null,null,null,{"$f":"I$13","v":"LASTEN 2024 inclusief balanspost "},{"$f":"J$13","v":"Ontvangen en geaccepteerde declaraties m.b.t. 2024"},"LASTEN 2023 inclusief balanspost ","Ontvangen en geaccepteerde declaraties m.b.t. 2023","LASTEN  inclusief balanspost m.b.t. 2022 en ouder","Ontvangen en geaccepteerde declaraties m.b.t. 2022 en ouder"]
[null,null,null," KOSTENRUBRIEK",null,null,null,"code"]
[null,null,null," 10 GENEESKUNDIGE GEESTELIJKE GEZONDHEIDSZORG"]
[null,null,null," Kosten consulten GGZ",null,null,null,"666   "]
[null,null,null," Kosten intramuraal verblijf GGZ",null,null,null,"667   "]
[null,null,null," Kosten overige prestaties GGZ",null,null,null,"668   "]
[null,null,null," Meerkosten COVID-19, indirect",null,null,null,"810.1   ",null,null,null,null,null,null,null,null,{"$f":"IF(OR((I99-J99)/IF(I99=0,1,I99)<-10%,(K99-L99)/IF(K99=0,1,K99)<-10%,(M99-N99)/IF(M99=0,1,M99)<-10%),\"De balans is < -10%, als dit plausibel is dan vragen wij u dit nader toe te lichten bij de opmerkingen, zo niet dan dient u uw raming aan te scherpen.\",\"\")","v":""}]
[null,null,null," TOTAAL RUBRIEK 10",null,null,null,null,{"$f":"SUM(I96:I99)","v":0},0,0,0,0,0]
[null,null,null," 11  GRZ, ELV EN GZSP"]
[null,null,null," Geriatrische Revalidatiezorg (GRZ)",null,null,null,"670   "]
[null,null,null," Meerkosten COVID-19, indirect GRZ",null,null,null,"811.1.1"]
[null,null,null," Eerstelijnsverblijf (ELV)",null,null,null,"671   ",null,null,null,null,null,null,null,null,{"$f":"IF(OR((I104-J104)/IF(I104=0,1,I104)<-10%,(K104-L104)/IF(K104=0,1,K104)<-10%,(M104-N104)/IF(M104=0,1,M104)<-10%),\"De balans is < -10%, als dit plausibel is dan vragen wij u dit nader toe te lichten bij de opmerkingen, zo niet dan dient u uw raming aan te scherpen.\",\"\")","v":""}]
[null,null,null," Meerkosten COVID-19, indirect ELV",null,null,null,"811.2.1"]
[null,null,null," Generalistische Geneeskundige  Zorg Specifieke Patiëntgroepen (GZSP)",null,null,null,"672   ",null,null,null,null,null,null,null,null,""]
[null,null,null," TOTAAL RUBRIEK 11",null,null,null,null,{"$f":"SUM(I102:I106)","v":0},0,0,0,0,0]
[null,null,null," 12  KRAAMZORG"]
[null,null,null," Kraamzorg",null,null,null,"680   ",null,null,null,null,null,null,null,null,{"$f":"IF(OR((I109-J109)/IF(I109=0,1,I109)<-10%,(K109-L109)/IF(K109=0,1,K109)<-10%,(M109-N109)/IF(M109=0,1,M109)<-10%),\"De balans is < -10%, als dit plausibel is dan vragen wij u dit nader toe te lichten bij de opmerkingen, zo niet dan dient u uw raming aan te scherpen.\",\"\")","v":""}]
[null,null,null," TOTAAL RUBRIEK 12",null,null,null,null,{"$f":"SUM(I109:I109)","v":0},0,0,0,0,0]
[null,null,null," 13  DIVERSE OVERIGE KOSTEN"]
[null,null,null," Overige kosten",null,null,null,"700   ",null,null,null,null,null,null,null,null,{"$f":"IF(OR((I112-J112)/IF(I112=0,1,I112)<-10%,(K112-L112)/IF(K112=0,1,K112)<-10%,(M112-N112)/IF(M112=0,1,M112)<-10%),\"De balans is < -10%, als dit plausibel is dan vragen wij u dit nader toe te lichten bij de opmerkingen, zo niet dan dient u uw raming aan te scherpen.\",\"\")","v":""}]
[null,null,null," Overige geneeskundige zorg",null,null,null,"701   ",null,null,null,null,null,null,null,null,""]
[null,null,null," Kosten van zorg zintuiglijk gehandicapten ",null,null,null,"702   ",null,null,null,null,null,null,null,null,""]
[null,null,null," Transformatiemiddelen IZA",null,null,null,"703   "]
[null,null,null," TOTAAL RUBRIEK 13",null,null,null,null,{"$f":"SUM(I112:I115)","v":0},0,0,0,0,0]
[null,null,null," 15  GRENSOVERSCHRIJDENDE ZORG"]
[null,null,null," Kosten via verzekeraar",null,null,null,"720   ",null,null,null,null,null,null,null,null,{"$f":"IF(OR((I118-J118)/IF(I118=0,1,I118)<-10%,(K118-L118)/IF(K118=0,1,K118)<-10%,(M118-N118)/IF(M118=0,1,M118)<-10%),\"De balans is < -10%, als dit plausibel is dan vragen wij u dit nader toe te lichten bij de opmerkingen, zo niet dan dient u uw raming aan te scherpen.\",\"\")","v":""}]
[null,null,null," Kosten via verbindingsorgaan",null,null,null,"721   ",null,null,null,null,null,null,null,null,""]
[null,null,null," TOTAAL RUBRIEK 15",null,null,null,null,{"$f":"SUM(I118:I119)","v":0},0,0,0,0,0]
[null,null,null," 16  KWALITEITSGELDEN"]
[null,null,null," Kwaliteitsgelden",null,null,null,"730   ",null,null,null,null,null,null,null,null,{"$f":"IF(OR((I122-J122)/IF(I122=0,1,I122)<-10%,(K122-L122)/IF(K122=0,1,K122)<-10%,(M122-N122)/IF(M122=0,1,M122)<-10%),\"De balans is < -10%, als dit plausibel is dan vragen wij u dit nader toe te lichten bij de opmerkingen, zo niet dan dient u uw raming aan te scherpen.\",\"\")","v":""}]
[null,null,null," TOTAAL RUBRIEK 16",null,null,null,null,{"$f":"SUM(I122:I122)","v":0},{"$f":"SUM(J122:J122)","v":0},0,0,0,0]
[null,null,null," TOTAAL LASTEN   (bruto-schade, definitie ZIN)",null,null,null,null,{"$f":"SUM(I24,I27,I31,I36,I40,I66,I74,I77,I82,I100,I107,I110,I116,I120,I123)","v":0},0,0,0,0,0]
[]
[null,null,null,{"$f":"NOW()","v":"2023-12-18T14:42:37.950"},null,null,null,null,null,null,null,null,null,{"$f":"CONCATENATE(\"Kostenverzamelstaat 2024, \",LOWER(A87))","v":"Kostenverzamelstaat 2024, pagina 3"}]
[]
["Pagina 4",null,null,{"$f":"CONCATENATE(\"KWARTAALSTAAT ZVW \", jaar_id)","v":"KWARTAALSTAAT ZVW 2024"}]
[null,null,null,{"$f":"D7","v":"SPECIFIEKE INFORMATIE A: KOSTENVERZAMELSTAAT"}]
[null,null,null,{"$f":"IF(naw_uzovi_zorgverzekeraar<>\"0000\",CONCATENATE(UPPER(naw_naam_zorgverzekeraar),\", \",UPPER(naw_plaats_zorgverzekeraar)),\"\")","v":""},null,null,null,null,null,null,null,null,null,{"$f":"CONCATENATE(\"UZOVI: \",naw_uzovi_zorgverzekeraar)","v":"UZOVI: 0000"}]
[null,null,null,"SPECIFICATIES INFORMATIE RISICOVEREVENING"]
[null,null,null,"SPECIFIEKE INFORMATIE A: KOSTENVERZAMELSTAAT - vervolg"]
[]
[null,null,null,null,null,null,null,null,null,null,{"$f":"CONCATENATE(\"Overloop van LASTEN \",\" inclusief balanspost m.b.t. 2021\")","v":"Overloop van LASTEN  inclusief balanspost m.b.t. 2021"},{"$f":"CONCATENATE(\"Overloop van ontvangen en geaccepteerde declaraties m.b.t. \",\"2021\")","v":"Overloop van ontvangen en geaccepteerde declaraties m.b.t. 2021"},{"$f":"CONCATENATE(\"Overloop van LASTEN \",\" inclusief balanspost m.b.t. 2020\")","v":"Overloop van LASTEN  inclusief balanspost m.b.t. 2020"},{"$f":"CONCATENATE(\"Overloop van ontvangen en geaccepteerde declaraties m.b.t. \",\"2020\")","v":"Overloop van ontvangen en geaccepteerde declaraties m.b.t. 2020"}]
[]
[null,null,null," TOTAAL NETTO CONTINUITEITSBIJDRAGE COVID (BASISVERZEKERING), VARIABEL"]
[null,null,null," TOTAAL NETTO CONTINUITEITSBIJDRAGE COVID (BASISVERZEKERING), GGZ"]
[]
[null,null,null,null,null,null,null,null,null,null,{"$f":"CONCATENATE(\"Overloop van LASTEN \",\" inclusief balanspost m.b.t. 2021\")","v":"Overloop van LASTEN  inclusief balanspost m.b.t. 2021"},{"$f":"CONCATENATE(\"Overloop van ontvangen en geaccepteerde declaraties m.b.t. \",\"2021\")","v":"Overloop van ontvangen en geaccepteerde declaraties m.b.t. 2021"},"Overloop van LASTEN  inclusief balanspost m.b.t. 2020",{"$f":"CONCATENATE(\"Overloop van ontvangen en geaccepteerde declaraties m.b.t. \",\"2020\")","v":"Overloop van ontvangen en geaccepteerde declaraties m.b.t. 2020"}]
[]
[null,null,null," TOTAAL COVID-19, PATIENT GEBONDEN, VARIABEL"]
[null,null,null," TOTAAL COVID-19, INDIRECTE MEERKOSTEN, VARIABEL"]
[null,null,null," TOTAAL COVID-19, TOESLAGEN, VARIABEL"]
[null,null,null," TOTAAL COVID-19,  INDIRECTE MEERKOSTEN, GGZ"]
[null,null,null," TOTAAL COVID-19",null,null,null,null,null,null,{"$f":"SUM(K141:K144)","v":0},{"$f":"SUM(L141:L144)","v":0},0,0]
[]
[null,null,null,null,null,null,null,null,{"$f":"CONCATENATE(\"Totale baten\",\" \",jaar_id,\" \",\"inclusief balanspost\")","v":"Totale baten 2024 inclusief balanspost"},{"$f":"CONCATENATE(\"waarvan\",\" \",\"ontvangen\",\" \",\"m.b.t.\",jaar_id)","v":"waarvan ontvangen m.b.t.2024"},{"$f":"CONCATENATE(\"Totale baten\",\" \",jaar_id-1,\" \",\"inclusief balanspost\")","v":"Totale baten 2023 inclusief balanspost"},{"$f":"CONCATENATE(\"waarvan\",\" \",\"ontvangen\",\" \",\"m.b.t.\",jaar_id-1)","v":"waarvan ontvangen m.b.t.2023"},{"$f":"CONCATENATE(\"Totale baten\",\" \",jaar_id-2,\" \",\"inclusief balanspost\")","v":"Totale baten 2022 inclusief balanspost"},{"$f":"CONCATENATE(\"waarvan\",\" \",\"ontvangen\",\" \",\"m.b.t.\",jaar_id-2, \" en ouder\")","v":"waarvan ontvangen m.b.t.2022 en ouder"}]
[null,null,null," BATEN ZVW",null,null,null,"code"]
[null,null,null," OPBRENGSTEN VERHAAL",null,null,null,"890.1",null,null,null,null,null,null,null,null,{"$f":"IF(OR((I149-J149)/IF(I149=0,1,I149)<-10%,(K149-L149)/IF(K149=0,1,K149)<-10%,(M149-N149)/IF(M149=0,1,M149)<-10%),\"De balans is < -10%, als dit plausibel is dan vragen wij u dit nader toe te lichten bij de opmerkingen, zo niet dan dient u uw raming aan te scherpen.\",\"\")","v":""}]
[null,null,null," SCHADE T.L.V. HET VRIJWILLIG EIGEN RISICO",null,null,null,"910   ",null,null,null,null,null,null,null,null,""]
[null,null,null," SCHADE T.L.V. HET VERPLICHT EIGEN RISICO",null,null,null,"915   ",null,null,null,null,null,null,null,null,""]
[null,null,null," GEBOEKTE NETTO PREMIES",null,null,null,"940   ",null,null,null,null,null,null,null,null,""]
[]
[]
[]
[null,null,null,{"$f":"NOW()","v":"2023-12-18T14:42:37.950"},null,null,null,null,null,null,null,null,null,{"$f":"CONCATENATE(\"Kostenverzamelstaat 2024, \",LOWER(A128))","v":"Kostenverzamelstaat 2024, pagina 4"}]

{"sheet":"Specifieke informatie A","index":6,"n_rows":93,"n_cols":12,"rows_kept":93,"cut":false,"hidden":false,"merged":[[11,10,12,10],[11,3,12,9],[13,3,13,9],[14,3,14,9],[92,3,92,4],[86,9,88,11],[47,3,47,4],[56,11,57,11],[56,8,56,10],[56,4,57,4]]}
[null,null,"INVULSPECIFICATIES SPECIFIEKE INFORMATIE A"]
[]
[]
[]
[]
["Pagina 1",null,null,{"$f":"CONCATENATE(\"KWARTAALSTAAT ZVW \", jaar_id)","v":"KWARTAALSTAAT ZVW 2024"}]
[null,null,null,"SPECIFIEKE INFORMATIE A  2024: DETAILINFORMATIE RVE"]
[null,null,null,{"$f":"IF(naw_uzovi_zorgverzekeraar<>\"0000\",CONCATENATE(UPPER(naw_naam_zorgverzekeraar),\", \",UPPER(naw_plaats_zorgverzekeraar)),\"\")","v":""},null,null,null,null,null,null,null,{"$f":"CONCATENATE(\"UZOVI: \",naw_uzovi_zorgverzekeraar)","v":"UZOVI: 0000"}]
[]
[null,null,null,"SPECIFICATIES INFORMATIE RISICOVEREVENING"]
[null,null,null,"KOSTEN NAAR DEELBIJDRAGE"]
[null,null,null," KOSTEN NAAR DEELBIJDRAGE",null,null,null,null,null,null,{"$f":"CONCATENATE(\"LASTEN \", jaar_id,\" inclusief balanspost \")","v":"LASTEN 2024 inclusief balanspost "}]
[]
[null,null,null," Variabele zorgkosten "]
[null,null,null," Vaste zorgkosten"]
[null,null,null," Kosten geneeskundige geestelijke gezondheidszorg "]
[null,null,null," TOTAAL lasten (bruto-schade, definitie ZIN)",null,null,null,null,null,null,{"$f":"SUM(K14:K16)","v":0}]
[]
[]
[]
[]
[]
[]
[]
[]
[]
[]
[]
[]
[]
[]
[]
[]
[]
[]
[]
[]
[]
[]
[]
[]
[]
[]
[]
[]
[]
[]
[null,null,null,{"$f":"NOW()","v":"2023-12-18T14:42:37.950"},null,null,null,null,null,null,null,{"$f":"CONCATENATE(\"Specifieke informatie A, \",LOWER(A6))","v":"Specifieke informatie A, pagina 1"}]
[]
["Pagina 2",null,null,{"$f":"CONCATENATE(\"KWARTAALSTAAT ZVW \", jaar_id,\" \",kwartaal_id,\"E KWARTAAL\")","v":"KWARTAALSTAAT ZVW 2024 1E KWARTAAL"}]
[null,null,null,"SPECIFIEKE INFORMATIE A: VERZEKERDENSTANDEN"]
[null,null,null,{"$f":"IF(naw_uzovi_zorgverzekeraar<>\"0000\",CONCATENATE(UPPER(naw_naam_zorgverzekeraar),\", \",UPPER(naw_plaats_zorgverzekeraar)),\"\")","v":""},null,null,null,null,null,null,null,{"$f":"CONCATENATE(\"UZOVI: \",naw_uzovi_zorgverzekeraar)","v":"UZOVI: 0000"}]
[]
[null,null,null,"SPECIFICATIES INFORMATIE RISICOVEREVENING"]
[null,null,null,"VERZEKERDENSTAND NAAR RISICOKLASSE",null,null,null,null,null,null,null,"Peildatum: 1e van de maand"]
[null,null,null,null,null,null,null,null,null,null,null,"voor de maand APRIL 2024"]
[null,null,null,null,"LEEFTIJD",null,null,null,"AANTAL NAAR GESLACHT",null,null,"TOTAAL \nAANTAL"]
[null,null,null,null,null,null,null,null,"MAN","VROUW","ONBEPAALD"]
[null,null,null,"  1a.   0  t/m   1",null,null,null,null,null,null,null,{"$f":"SUM(I59:K59)","v":0}]
[null,null,null,"  1b.   2  t/m   4",null,null,null,null,null,null,null,{"$f":"SUM(I60:K60)","v":0}]
[null,null,null,"  2.     5  t/m   9",null,null,null,null,null,null,null,0]
[null,null,null,"  3.   10  t/m 14",null,null,null,null,null,null,null,0]
[null,null,null,"  4.   15  t/m 19",null,null,null,null,null,null,null,0]
[null,null,null,"  5.   20  t/m 24",null,null,null,null,null,null,null,0]
[null,null,null,"  6.   25  t/m 29",null,null,null,null,null,null,null,0]
[null,null,null,"  7.   30  t/m 34",null,null,null,null,null,null,null,0]
[null,null,null,"  8.   35  t/m 39",null,null,null,null,null,null,null,0]
[null,null,null,"  9.   40  t/m 44",null,null,null,null,null,null,null,0]
[null,null,null," 10.  45  t/m 49",null,null,null,null,null,null,null,0]
[null,null,null," 11.  50  t/m 54",null,null,null,null,null,null,null,0]
[null,null,null," 12.  55  t/m 59",null,null,null,null,null,null,null,0]
[null,null,null," 13.  60  t/m 64",null,null,null,null,null,null,null,0]
[null,null,null," 14.  65  t/m 69",null,null,null,null,null,null,null,0]
[null,null,null," 15.  70  t/m 74",null,null,null,null,null,null,null,0]
[null,null,null," 16.  75  t/m 79",null,null,null,null,null,null,null,0]
[null,null,null," 17.  80  t/m 84",null,null,null,null,null,null,null,0]
[null,null,null," 18.  85  t/m 89",null,null,null,null,null,null,null,0]
[null,null,null," 19.  90 en ouder",null,null,null,null,null,null,null,0]
[null,null,null," TOTAAL",null,null,null,null,{"$f":"SUM(I59:I78)","v":0},{"$f":"SUM(J59:J78)","v":0},{"$f":"SUM(K59:K78)","v":0},0]
[]
[null,null,null,"VERZEKERDENSTAND NAAR NOMINALE PREMIE",null,null,null,null,null,null,null,"Peildatum: 1e van de maand"]
[null,null,null,null,null,null,null,null,null,null,null,"voor de maand APRIL 2024"]
[null,null,null,null,null,null,null,null,null,null,null,"AANTAL"]
[null,null,null," Verzekerden met nominale premie Zvw"]
[null,null,null," Verzekerden zonder nominale premie Zvw"]
[null,null,null," TOTAAL",null,null,null,null,null,null,null,{"$f":"SUM(L84:L85)","v":0}]
[null,null,null,null,null,null,null,null,null,{"$f":"IF(AND(ISBLANK(K78)=FALSE,ISBLANK(L84)=FALSE),IF(L84<SUM(L64:L78),\"ATTENTIE: is het juist dat het aantal verzekerden \nmet nominale premie kleiner is dan het totaal\naantal verzekerden van 20 jaar en ouder?\",\"\"),\"\")","v":""}]
[]
[]
[]
[]
[]
[null,null,null,{"$f":"NOW()","v":"2023-12-18T14:42:37.950"},null,null,null,null,null,null,null,{"$f":"CONCATENATE(\"Specifieke informatie A, \",LOWER(A50))","v":"Specifieke informatie A, pagina 2"}]

{"sheet":"Specifieke informatie C","index":7,"n_rows":100,"n_cols":12,"rows_kept":100,"cut":false,"hidden":false,"merged":[[21,10,22,10],[21,11,22,11],[20,8,20,9],[11,8,11,9],[12,6,13,6],[12,9,13,9],[11,10,11,11],[12,10,13,10],[12,8,13,8],[12,11,13,11],[20,10,20,11],[27,8,27,9],[27,3,29,5],[27,6,27,7],[28,9,29,9],[11,3,13,5],[15,3,15,5],[14,3,14,5],[11,6,11,7],[17,3,17,5],[28,8,29,8],[23,3,23,5],[25,3,25,5],[24,3,24,5],[20,3,22,5],[20,6,20,7],[21,6,22,6],[21,9,22,9],[28,11,29,11],[28,7,29,7],[28,6,29,6],[16,3,16,5],[12,7,13,7],[27,10,27,11],[65,3,65,5],[53,8,53,9],[53,10,53,11],[36,6,36,7],[36,8,36,9],[36,10,36,11],[37,6,38,6],[37,7,38,7],[37,8,38,8],[37,9,38,9],[37,10,38,10],[54,6,55,6],[54,7,55,7],[54,8,55,8],[54,9,55,9],[54,10,55,10],[21,7,22,7],[21,8,22,8],[28,10,29,10],[53,6,53,7],[86,3,86,10],[87,3,87,10],[90,3,90,10],[67,3,67,5],[53,3,55,5],[80,3,81,10],[37,11,38,11],[63,11,64,11],[46,3,46,4],[62,3,64,5],[62,6,62,7],[62,8,62,9],[62,10,62,11],[63,6,64,6],[63,7,64,7],[63,8,64,8],[63,9,64,9],[63,10,64,10],[54,11,55,11],[66,3,66,5],[34,3,34,5],[40,3,40,5],[95,3,95,10],[96,3,96,10],[84,3,84,10],[85,3,85,10],[88,3,88,10],[30,3,30,5],[31,3,31,5],[32,3,32,5],[33,3,33,5],[41,3,41,5],[42,3,42,5],[57,3,57,5],[58,3,58,5],[59,3,59,5],[60,3,60,5],[56,3,56,5],[39,3,39,5],[43,3,43,5],[36,3,38,5],[89,3,89,10],[92,11,93,11],[80,11,81,11],[99,3,99,4],[68,3,68,5],[72,9,73,9],[71,10,71,11],[72,11,73,11],[76,3,76,5],[77,3,77,5],[78,3,78,5],[71,6,71,7],[71,3,73,5],[74,3,74,5],[75,3,75,5],[69,3,69,5],[72,10,73,10],[72,6,73,6],[72,8,73,8],[71,8,71,9],[72,7,73,7],[92,3,93,10],[83,3,83,10],[82,3,82,10],[94,3,94,10]]}
[" ",null,"INVULSPECIFICATIES SPECIFIEKE INFORMATIE C"]
[]
[]
[]
[]
["Pagina 1",null,null,{"$f":"CONCATENATE(\"KWARTAALSTAAT ZVW \", jaar_id)","v":"KWARTAALSTAAT ZVW 2024"}]
[null,null,null,"SPECIFIEKE INFORMATIE C: SPECIFICATIES VAN KOSTEN EN PRODUCTIE"]
[null,null,null,{"$f":"IF(naw_uzovi_zorgverzekeraar<>\"0000\",CONCATENATE(UPPER(naw_naam_zorgverzekeraar),\", \",UPPER(naw_plaats_zorgverzekeraar)),\"\")","v":""},null,null,null,null,null,null,null,{"$f":"CONCATENATE(\"UZOVI: \",naw_uzovi_zorgverzekeraar)","v":"UZOVI: 0000"}]
[null,null,null,"SPECIFICATIES VAN KOSTEN EN PRODUCTIE"]
[]
[null,null,null,"RUBRIEK 06 MEDISCH SPECIALISTISCHE ZORG"]
[null,null,null," CODE 610 - OVERIGE KOSTEN \n ZIEKENHUISZORG EN CURATIEVE ZORG",null,null,{"$f":"CONCATENATE(\"LASTEN \", jaar_id)","v":"LASTEN 2024"},null,{"$f":"CONCATENATE(\"LASTEN \", jaar_id-1)","v":"LASTEN 2023"},null,{"$f":"CONCATENATE(\"LASTEN \", jaar_id-2)","v":"LASTEN 2022"}]
[null,null,null,null,null,null,{"$f":"CONCATENATE(\"LASTEN \", jaar_id,\" inclusief balanspost \")","v":"LASTEN 2024 inclusief balanspost "},{"$f":"CONCATENATE(\"Ontvangen en geaccepteerde declaraties m.b.t. \", jaar_id)","v":"Ontvangen en geaccepteerde declaraties m.b.t. 2024"},{"$f":"CONCATENATE(\"LASTEN \", jaar_id-1,\" inclusief balanspost \")","v":"LASTEN 2023 inclusief balanspost "},{"$f":"CONCATENATE(\"Ontvangen en geaccepteerde declaraties m.b.t. \", jaar_id-1)","v":"Ontvangen en geaccepteerde declaraties m.b.t. 2023"},{"$f":"CONCATENATE(\"LASTEN \", \" inclusief balanspost m.b.t. \",jaar_id-2, \" en ouder\")","v":"LASTEN  inclusief balanspost m.b.t. 2022 en ouder"},{"$f":"CONCATENATE(\"Ontvangen en geaccepteerde declaraties m.b.t. \", jaar_id-2, \" en ouder\")","v":"Ontvangen en geaccepteerde declaraties m.b.t. 2022 en ouder"}]
[]
[null,null,null," Kosten van eerstelijnsdiagnostiek \n aangevraagd door eerstelijnszorg-\n aanbieders geleverd door \n huisartsenlaboratoria "]
[null,null,null," Trombosediensten "]
[null,null,null," SKION en NTS"]
[null,null,null," TOTAAL code 610",null,null,{"$f":"SUM(G15:G17)","v":0},0,0,0,0,0]
[]
[]
[null,null,null," CODE 610.2\n",null,null,{"$f":"CONCATENATE(\"LASTEN \", jaar_id)","v":"LASTEN 2024"},null,{"$f":"CONCATENATE(\"LASTEN \", jaar_id-1)","v":"LASTEN 2023"},null,{"$f":"CONCATENATE(\"LASTEN \", jaar_id-2)","v":"LASTEN 2022"}]
[null,null,null,null,null,null,{"$f":"CONCATENATE(\"LASTEN \", jaar_id,\" inclusief balanspost \")","v":"LASTEN 2024 inclusief balanspost "},{"$f":"CONCATENATE(\"Ontvangen en geaccepteerde declaraties m.b.t. \", jaar_id)","v":"Ontvangen en geaccepteerde declaraties m.b.t. 2024"},{"$f":"CONCATENATE(\"LASTEN \", jaar_id-1,\" inclusief balanspost \")","v":"LASTEN 2023 inclusief balanspost "},{"$f":"CONCATENATE(\"Ontvangen en geaccepteerde declaraties m.b.t. \", jaar_id-1)","v":"Ontvangen en geaccepteerde declaraties m.b.t. 2023"},{"$f":"CONCATENATE(\"LASTEN \", \" inclusief balanspost m.b.t. \",jaar_id-2, \" en ouder\")","v":"LASTEN  inclusief balanspost m.b.t. 2022 en ouder"},{"$f":"CONCATENATE(\"Ontvangen en geaccepteerde declaraties m.b.t. \", jaar_id-2, \" en ouder\")","v":"Ontvangen en geaccepteerde declaraties m.b.t. 2022 en ouder"}]
[]
[null,null,null,"Eerstelijnsdiagnostiek aangevraagd door eerstelijnszorg-aanbieders geleverd door huisartsenlaboratoria"]
[null,null,null,"Trombosediensten"]
[null,null,null," TOTAAL code 610.2",null,null,{"$f":"SUM(G24:G25)","v":0},{"$f":"SUM(H24:H25)","v":0},0,0,{"$f":"SUM(K24:K24)","v":0},0]
[]
[null,null,null," CODE 611 - OVERIGE ZORGPRODUCTEN NAAR INSTELLING",null,null,{"$f":"G12","v":"LASTEN 2024"},null,{"$f":"I12","v":"LASTEN 2023"},null,{"$f":"K12","v":"LASTEN 2022"}]
[null,null,null,null,null,null,{"$f":"G13","v":"LASTEN 2024 inclusief balanspost "},{"$f":"H13","v":"Ontvangen en geaccepteerde declaraties m.b.t. 2024"},{"$f":"I13","v":"LASTEN 2023 inclusief balanspost "},{"$f":"J13","v":"Ontvangen en geaccepteerde declaraties m.b.t. 2023"},{"$f":"K13","v":"LASTEN  inclusief balanspost m.b.t. 2022 en ouder"},{"$f":"L13","v":"Ontvangen en geaccepteerde declaraties m.b.t. 2022 en ouder"}]
[null,null,null,null,null,null,null,null,"Ontvangen en geaccepteerde declaraties mbt jaar T","Ontvangen en geaccepteerde declaraties mbt jaar T","Ontvangen en geaccepteerde declaraties mbt jaar T","Ontvangen en geaccepteerde declaraties mbt jaar T"]
[null,null,null," Academische ziekenhuizen"]
[null,null,null," Algemene ziekenhuizen"]
[null,null,null," Zelfstandige behandelcentra"]
[null,null,null," Overige zorgaanbieders"]
[null,null,null," TOTAAL code 611",null,null,{"$f":"SUM(G31:G34)","v":0},0,0,0,0,0]
[]
[null,null,null," CODE 612.1 - KOSTEN ADD-ONS DURE \n GENEESMIDDELEN NAAR INSTELLING",null,null,{"$f":"G12","v":"LASTEN 2024"},null,{"$f":"I28","v":"LASTEN 2023"},null,{"$f":"K28","v":"LASTEN 2022"}]
[null,null,null,null,null,null,{"$f":"G29","v":"LASTEN 2024 inclusief balanspost "},{"$f":"H29","v":"Ontvangen en geaccepteerde declaraties m.b.t. 2024"},{"$f":"I29","v":"LASTEN 2023 inclusief balanspost "},{"$f":"J29","v":"Ontvangen en geaccepteerde declaraties m.b.t. 2023"},{"$f":"K29","v":"LASTEN  inclusief balanspost m.b.t. 2022 en ouder"},{"$f":"L29","v":"Ontvangen en geaccepteerde declaraties m.b.t. 2022 en ouder"}]
[null,null,null,null,null,null,null,null,"Ontvangen en geaccepteerde declaraties mbt jaar T","Ontvangen en geaccepteerde declaraties mbt jaar T","Ontvangen en geaccepteerde declaraties mbt jaar T","Ontvangen en geaccepteerde declaraties mbt jaar T"]
[null,null,null," Academische ziekenhuizen"]
[null,null,null," Algemene ziekenhuizen"]
[null,null,null," Zelfstandige behandelcentra"]
[null,null,null," Overige zorgaanbieders"]
[null,null,null," TOTAAL code 612.1",null,null,{"$f":"SUM(G40:G43)","v":0},{"$f":"SUM(H40:H43)","v":0},0,0,0,0]
[]
[]
[null,null,null,{"$f":"NOW()","v":"2023-12-18T14:42:37.950"},null,null,null,null,null,null,null,{"$f":"CONCATENATE(\"Specifieke informatie C, \",LOWER(A6))","v":"Specifieke informatie C, pagina 1"}]
[]
["Pagina 2",null,null,{"$f":"CONCATENATE(\"KWARTAALSTAAT ZVW \", jaar_id,\" \",kwartaal_id,\"E KWARTAAL\")","v":"KWARTAALSTAAT ZVW 2024 1E KWARTAAL"}]
[null,null,null,{"$f":"D7","v":"SPECIFIEKE INFORMATIE C: SPECIFICATIES VAN KOSTEN EN PRODUCTIE"}]
[null,null,null,{"$f":"IF(naw_uzovi_zorgverzekeraar<>\"0000\",CONCATENATE(UPPER(naw_naam_zorgverzekeraar),\", \",UPPER(naw_plaats_zorgverzekeraar)),\"\")","v":""},null,null,null,null,null,null,null,{"$f":"CONCATENATE(\"UZOVI: \",naw_uzovi_zorgverzekeraar)","v":"UZOVI: 0000"}]
[null,null,null,"SPECIFICATIES VAN KOSTEN EN PRODUCTIE"]
[null,null,null,"RUBRIEK 06 MEDISCH SPECIALISTISCHE ZORG - vervolg"]
[null,null,null," CODE 612.2 - KOSTEN ADD-ONS IC  \n NAAR INSTELLING",null,null,{"$f":"G37","v":"LASTEN 2024"},null,{"$f":"I37","v":"LASTEN 2023"},null,{"$f":"K37","v":"LASTEN 2022"}]
[null,null,null,null,null,null,{"$f":"G38","v":"LASTEN 2024 inclusief balanspost "},{"$f":"H38","v":"Ontvangen en geaccepteerde declaraties m.b.t. 2024"},{"$f":"I38","v":"LASTEN 2023 inclusief balanspost "},{"$f":"J38","v":"Ontvangen en geaccepteerde declaraties m.b.t. 2023"},{"$f":"K38","v":"LASTEN  inclusief balanspost m.b.t. 2022 en ouder"},{"$f":"L38","v":"Ontvangen en geaccepteerde declaraties m.b.t. 2022 en ouder"}]
[null,null,null,null,null,null,null,null,"Ontvangen en geaccepteerde declaraties mbt jaar T","Ontvangen en geaccepteerde declaraties mbt jaar T","Ontvangen en geaccepteerde declaraties mbt jaar T","Ontvangen en geaccepteerde declaraties mbt jaar T"]
[null,null,null," Academische ziekenhuizen"]
[null,null,null," Algemene ziekenhuizen"]
[null,null,null," Zelfstandige behandelcentra"]
[null,null,null," Overige zorgaanbieders"]
[null,null,null," TOTAAL code 612.2",null,null,{"$f":"SUM(G57:G60)","v":0},{"$f":"SUM(H57:H60)","v":0},0,0,0,0]
[]
[null,null,null,"  CODE 613.1 - INTEGRALE KOSTEN VAN \n  DBC-ZORGPRODUCTEN GEREGULEERDE \n  SEGMENT NAAR \n  INSTELLING",null,null,{"$f":"G54","v":"LASTEN 2024"},null,{"$f":"I54","v":"LASTEN 2023"},null,{"$f":"K54","v":"LASTEN 2022"}]
[null,null,null,null,null,null,{"$f":"G55","v":"LASTEN 2024 inclusief balanspost "},{"$f":"H55","v":"Ontvangen en geaccepteerde declaraties m.b.t. 2024"},{"$f":"I55","v":"LASTEN 2023 inclusief balanspost "},{"$f":"J55","v":"Ontvangen en geaccepteerde declaraties m.b.t. 2023"},{"$f":"K55","v":"LASTEN  inclusief balanspost m.b.t. 2022 en ouder"},{"$f":"L55","v":"Ontvangen en geaccepteerde declaraties m.b.t. 2022 en ouder"}]
[null,null,null,null,null,"code"]
[null,null,null," Academische ziekenhuizen"]
[null,null,null," Algemene ziekenhuizen"]
[null,null,null," Zelfstandige behandelcentra"]
[null,null,null," Overige zorgaanbieders"]
[null,null,null," TOTAAL code 613.1",null,null,{"$f":"SUM(G66:G69)","v":0},{"$f":"SUM(H66:H69)","v":0},{"$f":"SUM(I66:I69)","v":0},0,0,0]
[]
[null,null,null,"  CODE 615.1 - INTEGRALE KOSTEN VAN\n  DBC-ZORGPRODUCTEN VRIJE SEGMENT\n  NAAR INSTELLING",null,null,{"$f":"G63","v":"LASTEN 2024"},null,{"$f":"I63","v":"LASTEN 2023"},null,{"$f":"K63","v":"LASTEN 2022"}]
[null,null,null,null,null,null,{"$f":"G64","v":"LASTEN 2024 inclusief balanspost "},{"$f":"H64","v":"Ontvangen en geaccepteerde declaraties m.b.t. 2024"},"LASTEN 2023 inclusief balanspost ","Ontvangen en geaccepteerde declaraties m.b.t. 2023","LASTEN  inclusief balanspost m.b.t. 2022 en ouder","Ontvangen en geaccepteerde declaraties m.b.t. 2022 en ouder"]
[null,null,null,null,null,"code"]
[null,null,null," Academische ziekenhuizen"]
[null,null,null," Algemene ziekenhuizen"]
[null,null,null," Zelfstandige behandelcentra"]
[null,null,null," Overige zorgaanbieders"]
[null,null,null," TOTAAL code 615.1",null,null,{"$f":"SUM(G75:G78)","v":0},0,0,0,0,0]
[]
[null,null,null," CODE 701 - OVERIGE GENEESKUNDIGE ZORG",null,null,null,null,null,null,null,"Ontvangen en geaccepteerde declaraties m.b.t. 2024"]
[null,null,null,null,null,null,null,null,null,null,null,"Ontvangen en geaccepteerde declaraties mbt jaar T"]
[null,null,null," Geneeskundige individuele zorg bij tuberculose en infectieziekten door GGD'en"]
[null,null,null," Orthoptie"]
[null,null,null," Optometrie"]
[null,null,null," Kosten voetzorg bij Diabetes Mellitus type 2"]
[null,null,null," Koemelkallergietest (niet horend bij Multidisciplinaire Zorg) "]
[null,null,null," Regiefunctie complexe wondzorg"]
[null,null,null," ADZ-Parkinsonzorg"]
[null,null,null," Overig"]
[null,null,null," TOTAAL code 701",null,null,null,null,null,null,null,{"$f":"SUM(L83:L90)","v":0}]
[]
[null,null,null," CODE 702 - ZINTUIGLIJK GEHANDICAPTEN",null,null,null,null,null,null,null,{"$f":"L81","v":"Ontvangen en geaccepteerde declaraties m.b.t. 2024"}]
[null,null,null,null,null,null,null,null,null,null,null,"Ontvangen en geaccepteerde declaraties mbt jaar T"]
[null,null,null," Kosten van zorg ivm visuele beperking"]
[null,null,null," Kosten van zorg ivm auditieve en communicatieve beperking"]
[null,null,null," TOTAAL code 702",null,null,null,null,null,null,null,{"$f":"SUM(L95:L96)","v":0}]
[]
[]
[null,null,null,{"$f":"NOW()","v":"2023-12-18T14:42:37.950"},null,null,null,null,null,null,null,{"$f":"CONCATENATE(\"Specifieke informatie C, \",LOWER(A49))","v":"Specifieke informatie C, pagina 2"}]

{"sheet":"Contractinformatie","index":8,"n_rows":93,"n_cols":11,"rows_kept":93,"cut":false,"hidden":false,"merged":[[27,3,27,9],[28,3,28,9],[29,3,29,9],[32,3,32,9],[53,3,53,9],[33,3,33,9],[34,3,34,9],[35,3,35,9],[36,3,36,9],[37,3,37,9],[38,3,38,9],[39,3,39,9],[40,3,40,9],[42,3,42,9],[43,3,43,9],[19,3,19,9],[21,3,21,9],[24,3,24,9],[25,3,25,9],[26,3,26,9],[20,3,20,10],[14,3,14,9],[16,3,16,9],[17,3,17,9],[18,3,18,9],[15,3,15,10],[10,3,10,10],[9,3,9,9],[11,3,11,9],[12,3,12,9],[13,3,13,9],[92,3,92,4],[47,3,47,4],[75,3,75,10],[86,3,86,9],[87,3,87,9],[88,3,88,9],[55,3,55,9],[56,3,56,9],[57,3,57,9],[58,3,58,9],[59,3,59,9],[60,3,60,9],[61,3,61,9],[63,3,63,9],[64,3,64,9],[71,3,71,9],[74,3,74,9],[73,3,73,10],[90,3,90,9],[76,3,76,9],[77,3,77,9],[78,3,78,9],[79,3,79,9],[81,3,81,9],[85,3,85,10],[80,3,80,10],[82,3,82,9],[83,3,83,9],[84,3,84,9],[89,3,89,9],[69,3,69,9],[68,3,68,9],[70,3,70,9],[67,3,67,9],[54,3,54,9]]}
[null,null,"INVULSPECIFICATIES SPECIFIEKE INFORMATIE C"]
[]
[]
[]
[]
["Pagina 1",null,null,{"$f":"CONCATENATE(\"KWARTAALSTAAT ZVW \", jaar_id)","v":"KWARTAALSTAAT ZVW 2024"}]
[null,null,null,"SPECIFIEKE INFORMATIE C - CONTRACTINFORMATIE"]
[null,null,null,{"$f":"IF(naw_uzovi_zorgverzekeraar<>\"0000\",CONCATENATE(UPPER(naw_naam_zorgverzekeraar),\", \",UPPER(naw_plaats_zorgverzekeraar)),\"\")","v":""},null,null,null,null,null,null,{"$f":"CONCATENATE(\"UZOVI: \",naw_uzovi_zorgverzekeraar)","v":"UZOVI: 0000"}]
[null,null,null," CONTRACTINFORMATIE HUISARTSENZORG EN MULTIDISCIPLINAIRE ZORG, rubriek 01"]
[null,null,null,null,null,null,null,null,null,null,{"$f":"CONCATENATE(\"LASTEN \", jaar_id,\" inclusief balanspost \")","v":"LASTEN 2024 inclusief balanspost "}]
[null,null,null," Huisartsenzorg, codes 503, 504, 505, 506, 507, 515"]
[null,null,null," Gecontracteerde zorg"]
[null,null,null," Lopende onderhandelingen"]
[null,null,null," Niet gecontracteerde zorg"]
[null,null,null," Subtotaal huisartsenzorg",null,null,null,null,null,{"$f":"SUM(J12:J14)","v":0},{"$f":"SUM(K12:K14)","v":0}]
[null,null,null," Multidisciplinaire zorg, codes 510 en 516"]
[null,null,null," Gecontracteerde zorg"]
[null,null,null," Lopende onderhandelingen"]
[null,null,null," Niet gecontracteerde zorg"]
[null,null,null," Subtotaal multidisciplinaire zorg",null,null,null,null,null,{"$f":"SUM(J17:J19)","v":0},{"$f":"SUM(K17:K19)","v":0}]
[null,null,null," Huisartsenzorg en multidisciplinaire zorg"]
[null,null,null," TOTAAL RUBRIEK 01 ",null,null,null,null,null,null,{"$f":"SUM(K15+K20)","v":0}]
[]
[null,null,null," CONTRACTINFORMATIE VERPLEGING EN VERZORGING, rubriek 03"]
[null,null,null,null,null,null,null,null,null,null,{"$f":"K$10","v":"LASTEN 2024 inclusief balanspost "}]
[null,null,null," Gecontracteerde zorg"]
[null,null,null," Lopende onderhandelingen"]
[null,null,null," Niet gecontracteerde zorg"]
[null,null,null," PGB"]
[null,null,null," TOTAAL RUBRIEK 03",null,null,null,null,null,{"$f":"SUM(J26:J28)","v":0},{"$f":"SUM(K26:K29)","v":0}]
[]
[null,null,null," CONTRACTINFORMATIE MEDISCH SPECIALISTISCHE ZORG, rubriek 06"]
[null,null,null,null,null,null,null,null,null,null,{"$f":"K$10","v":"LASTEN 2024 inclusief balanspost "}]
[null,null,null," Gecontracteerde zorg: aanneemsom"]
[null,null,null," Gecontracteerde zorg: plafond"]
[null,null,null," Gecontracteerde zorg: nacalculatie bij aanneemsommen en plafondcontracten"]
[null,null,null," Gecontracteerde zorg: open einde contract"]
[null,null,null," Subtotaal gecontracteerde zorg",null,null,null,null,null,{"$f":"SUM(J34:J37)","v":0},{"$f":"SUM(K34:K37)","v":0}]
[null,null,null," Lopende onderhandelingen"]
[null,null,null," Niet gecontracteerde zorg"]
[null,null,null," TOTAAL RUBRIEK 06 ",null,null,null,null,null,{"$f":"SUM(J38:J40)","v":0},{"$f":"SUM(K38:K40)","v":0}]
[]
[null,null,null,null,null,null,null,null,null,2020,{"$f":"jaar_id","v":2024}]
[null,null,null," Totaal afgesproken maximumomzet plafondcontracten"]
[]
[]
[]
[null,null,null,{"$f":"NOW()","v":"2023-12-18T14:42:37.950"},null,null,null,null,null,null,{"$f":"CONCATENATE(\"Specifieke informatie C - Contractinformatie, \",LOWER(A6))","v":"Specifieke informatie C - Contractinformatie, pagina 1"}]
[]
["Pagina 2",null,null,{"$f":"CONCATENATE(\"KWARTAALSTAAT ZVW \", jaar_id,\" \",kwartaal_id,\"E KWARTAAL\")","v":"KWARTAALSTAAT ZVW 2024 1E KWARTAAL"}]
[null,null,null,"SPECIFIEKE INFORMATIE C - CONTRACTINFORMATIE"]
[null,null,null,{"$f":"IF(naw_uzovi_zorgverzekeraar<>\"0000\",CONCATENATE(UPPER(naw_naam_zorgverzekeraar),\", \",UPPER(naw_plaats_zorgverzekeraar)),\"\")","v":""},null,null,null,null,null,null,{"$f":"CONCATENATE(\"UZOVI: \",naw_uzovi_zorgverzekeraar)","v":"UZOVI: 0000"}]
[null,null,null," CONTRACTINFORMATIE GENEESKUNDIGE GEESTELIJKE GEZONDHEIDSZORG, rubriek 10"]
[null,null,null,null,null,null,null,null,null,"Lasten inclusief \nbalanspost \n2020",{"$f":"K$10","v":"LASTEN 2024 inclusief balanspost "}]
[null,null,null," Gecontracteerde zorg: aanneemsom"]
[null,null,null," Gecontracteerde zorg: plafond"]
[null,null,null," Gecontracteerde zorg: nacalculatie bij aanneemsommen en plafondcontracten"]
[null,null,null," Gecontracteerde zorg: open einde contract"]
[null,null,null," Subtotaal gecontracteerde zorg",null,null,null,null,null,{"$f":"SUM(J55:J58)","v":0},{"$f":"SUM(K55:K58)","v":0}]
[null,null,null," Lopende onderhandelingen"]
[null,null,null," Niet gecontracteerde zorg"]
[null,null,null," TOTAAL RUBRIEK 10 ",null,null,null,null,null,{"$f":"SUM(J59:J61)","v":0},{"$f":"SUM(K59:K61)","v":0}]
[]
[null,null,null,null,null,null,null,null,null,2020,{"$f":"K43","v":2024}]
[null,null,null," Totaal afgesproken maximumomzet plafondcontracten"]
[]
[null,null,null," CONTRACTINFORMATIE ZINTUIGLIJK GEHANDICAPTEN, code 702 "]
[null,null,null,null,null,null,null,null,null,"Lasten inclusief \nbalanspost \n2020",{"$f":"K$10","v":"LASTEN 2024 inclusief balanspost "}]
[null,null,null," Gecontracteerde zorg"]
[null,null,null," Lopende onderhandelingen"]
[null,null,null," Niet gecontracteerde zorg"]
[null,null,null," TOTAAL CODE 702",null,null,null,null,null,{"$f":"SUM(J69:J71)","v":0},{"$f":"SUM(K69:K71)","v":0}]
[]
[null,null,null," CONTRACTINFORMATIE GERIATRISCHE REVALIDATIE, EERSTELIJNSVERBLIJF EN GENEESKUNDIGE ZORG       SPECIFIEKE PATIENTGROEPEN, rubriek 11"]
[null,null,null,null,null,null,null,null,null,"Lasten inclusief \nbalanspost \n2020",{"$f":"K$10","v":"LASTEN 2024 inclusief balanspost "}]
[null,null,null," Geriatrische Revalidatie, code 670"]
[null,null,null," Gecontracteerde zorg"]
[null,null,null," Lopende onderhandelingen"]
[null,null,null," Niet gecontracteerde zorg"]
[null,null,null," Subtotaal Geriatrische Revalidatie zorg",null,null,null,null,null,{"$f":"SUM(J77:J79)","v":0},{"$f":"SUM(K77:K79)","v":0}]
[null,null,null," Eerstelijnsverblijf, code 671"]
[null,null,null," Gecontracteerde zorg"]
[null,null,null," Lopende onderhandelingen"]
[null,null,null," Niet gecontracteerde zorg"]
[null,null,null," Subtotaal Eerstelijnsverblijf ",null,null,null,null,null,{"$f":"SUM(J82:J84)","v":0},{"$f":"SUM(K82:K84)","v":0}]
[null,null,null," Geneeskundige Zorg Specifieke Patiëntgroepen, code 672"]
[null,null,null," Gecontracteerde zorg"]
[null,null,null," Lopende onderhandelingen"]
[null,null,null," Niet gecontracteerde zorg"]
[null,null,null," Subtotaal Geneeskundige Zorg Specifieke Patiëntgroepen",null,null,null,null,null,null,{"$f":"SUM(K87:K89)","v":0}]
[null,null,null," TOTAAL RUBRIEK 11 ",null,null,null,null,null,{"$f":"SUM(J80+J85+#REF!)","v":{"$error":"#REF!"}},{"$f":"SUM(K80+K85+K90)","v":0}]
[]
[null,null,null,{"$f":"NOW()","v":"2023-12-18T14:42:37.950"},null,null,null,null,null,null,{"$f":"CONCATENATE(\"Specifieke informatie C - Contractinformatie, \",LOWER(A50))","v":"Specifieke informatie C - Contractinformatie, pagina 2"}]

{"sheet":"Wanbetalers","index":9,"n_rows":48,"n_cols":11,"rows_kept":48,"cut":false,"hidden":false,"merged":[[15,3,15,7],[16,3,16,7],[10,3,10,7],[11,3,11,7],[12,3,12,7],[13,3,13,7],[26,3,26,7],[47,3,47,4],[27,3,27,7],[17,3,17,7],[19,3,19,7],[20,3,20,7],[21,3,21,7],[22,3,22,7],[24,3,24,7],[25,3,25,7]]}
[null,null,"INVULSPECIFICATIES SPECIFIEKE INFORMATIE C"]
[]
[]
[]
[]
["Pagina 1",null,null,{"$f":"CONCATENATE(\"KWARTAALSTAAT ZVW \", jaar_id)","v":"KWARTAALSTAAT ZVW 2024"}]
[null,null,null,"SPECIFIEKE INFORMATIE C - WANBETALERS"]
[null,null,null,{"$f":"IF(naw_uzovi_zorgverzekeraar<>\"0000\",CONCATENATE(UPPER(naw_naam_zorgverzekeraar),\", \",UPPER(naw_plaats_zorgverzekeraar)),\"\")","v":""},null,null,null,null,null,null,{"$f":"CONCATENATE(\"UZOVI: \",naw_uzovi_zorgverzekeraar)","v":"UZOVI: 0000"}]
[]
[null,null,null,"SPECIFICATIES VAN WANBETALERS"]
[null,null,null,null,null,null,null,null,"AANTAL \njanuari","AANTAL \nfebruari","AANTAL \nmaart"]
[null,null,null," Verzekeringnemers die een achterstand in de premiebetaling hebben van \n twee of meer, maar minder dan vier volle maandpremies."]
[null,null,null," Verzekeringnemers die een achterstand in de premiebetaling hebben van \n vier of meer, maar minder dan zes volle maandpremies."]
[null,null,null," Verzekeringnemers die een achterstand in de premiebetaling hebben van \n zes of meer volle maandpremies."]
[]
[null,null,null,null,null,null,null,null,"AANTAL \njanuari","AANTAL \nfebruari","AANTAL \nmaart"]
[null,null,null," Verstuurde tweedemaandsbrieven"]
[null,null,null," Verstuurde vierdemaandsbrieven"]
[]
[null,null,null,null,null,null,null,null,"AANTAL \njanuari","AANTAL \nfebruari","AANTAL \nmaart"]
[null,null,null," Debiteuren met een interne betalingsregeling, al dan niet uitsluitend \n voor premiebetaling."]
[null,null,null," Debiteuren met een externe betalingsregeling, al dan niet uitsluitend \n voor premiebetaling."]
[null,null,null," Actieve stabilisatieovereenkomsten voor premiebetaling."]
[]
[null,null,null,null,null,null,null,null,"AANTAL \njanuari","AANTAL \nfebruari","AANTAL \nmaart"]
[null,null,null," Wanbetalers bij CAK aangemeld met een betalingsachterstand van minder \n dan € 250."]
[null,null,null," Wanbetalers bij CAK aangemeld met een betalingsachterstand van \n meer dan € 250, maar minder dan € 750."]
[null,null,null," Wanbetalers bij CAK aangemeld met een betalingsachterstand van meer \n dan € 750."]
[]
[]
[]
[]
[]
[]
[]
[]
[]
[]
[]
[]
[]
[]
[]
[]
[]
[]
[]
[null,null,null,{"$f":"NOW()","v":"2023-12-18T14:42:37.950"},null,null,null,null,null,null,{"$f":"CONCATENATE(\"Specifieke informatie C - Wanbetalers, \",LOWER(A6))","v":"Specifieke informatie C - Wanbetalers, pagina 1"}]

{"sheet":"Controleoverzicht","index":10,"n_rows":171,"n_cols":12,"rows_kept":171,"cut":false,"hidden":false,"merged":[[14,11,15,11],[14,9,15,9],[166,3,166,8],[38,3,38,8],[65,3,65,8],[164,3,164,8],[165,3,165,8],[167,3,167,8],[18,11,19,11],[18,9,19,9],[18,10,19,10],[20,3,20,8],[57,10,58,10],[57,9,58,9],[33,3,33,8],[40,3,40,8],[34,3,34,8],[35,3,35,8],[31,3,31,8],[32,3,32,8],[14,10,15,10],[41,3,41,8],[130,9,131,9],[169,3,169,8],[46,3,46,8],[47,3,47,8],[57,3,58,8],[168,3,168,8],[81,3,81,8],[148,3,149,8],[162,3,163,8],[154,3,154,8],[143,3,143,8],[146,3,146,8],[145,3,145,8],[142,3,142,8],[141,3,141,8],[155,3,155,8],[152,3,152,8],[76,3,76,8],[78,3,78,8],[73,3,73,8],[63,3,63,8],[60,3,60,8],[112,3,112,8],[158,3,158,10],[157,3,157,10],[8,9,9,9],[61,3,61,8],[8,3,9,8],[10,3,10,8],[14,3,15,8],[11,3,11,8],[12,3,12,8],[28,3,28,8],[29,3,29,8],[27,3,27,8],[23,3,23,8],[25,3,25,8],[22,3,22,8],[24,3,24,8],[16,3,16,8],[18,3,19,8],[26,3,26,8],[21,3,21,8],[30,3,30,8],[49,3,49,8],[50,3,50,8],[48,3,48,8],[36,3,36,8],[37,3,37,8],[106,9,107,9],[70,3,70,8],[85,3,86,8],[106,11,107,11],[106,10,107,10],[130,3,131,8],[111,3,111,8],[62,3,62,8],[64,3,64,8],[113,3,113,8],[101,11,102,11],[89,3,89,8],[104,3,104,8],[103,3,103,8],[87,3,87,8],[68,3,68,8],[75,3,75,8],[74,3,74,8],[72,3,72,8],[71,3,71,8],[115,10,116,10],[115,11,116,11],[119,3,119,8],[57,11,58,11],[45,3,45,8],[59,3,59,8],[115,9,116,9],[44,3,44,8],[42,3,42,8],[39,3,39,8],[43,3,43,8],[139,9,140,9],[139,3,140,8],[66,3,66,8],[67,3,67,8],[69,3,69,8],[85,11,86,11],[101,9,102,9],[110,3,110,8],[85,9,86,9],[92,3,92,8],[85,10,86,10],[101,3,102,8],[101,10,102,10],[90,3,90,8],[106,3,107,8],[108,3,108,8],[162,11,163,11],[139,11,140,11],[139,10,140,10],[150,3,150,8],[130,10,131,10],[136,3,136,8],[133,3,133,8],[162,9,163,9],[162,10,163,10],[134,3,134,8],[135,3,135,8],[159,3,159,11],[144,3,144,8],[130,11,131,11],[148,11,149,11],[148,10,149,10],[148,9,149,9],[151,3,151,8],[153,3,153,8],[132,3,132,8],[137,3,137,8],[120,3,120,8],[117,3,117,8],[121,3,121,8],[122,3,122,8],[79,3,79,8],[77,3,77,8],[115,3,116,8],[118,3,118,8],[91,3,91,8],[109,3,109,8],[88,3,88,8],[80,3,80,8],[82,3,82,8]]}
[null,null,"CONTROLEOVERZICHT"]
[]
[]
[]
[]
["Pagina 1",null,null,{"$f":"CONCATENATE(\"KWARTAALSTAAT ZVW \", jaar_id)","v":"KWARTAALSTAAT ZVW 2024"}]
[null,null,null,"CONTROLEOVERZICHT",null,null,null,null,null,null,null,{"$f":"CONCATENATE(\"UZOVI: \",naw_uzovi_zorgverzekeraar)","v":"UZOVI: 0000"}]
[null,null,null,"SPECIFIEKE INFORMATIE A"]
[null,null,null," VERZEKERDENSTANDEN",null,null,null,null,null,"APRIL"]
[]
[null,null,null," Verzekerdenstand naar risicoklasse",null,null,null,null,null,{"$f":"'Specifieke informatie A'!L79","v":0}]
[null,null,null," Verzekerdenstand naar nominale premie",null,null,null,null,null,{"$f":"'Specifieke informatie A'!L86","v":0}]
[null,null,null," Verschil",null,null,null,null,null,{"$f":"IF(J11<>J12,J11-J12,\"\")","v":""}]
[]
[null,null,null," KOSTENSPECIFICATIES",null,null,null,null,null,"VOLGENS\nKOSTENVER- \nZAMELSTAAT","VOLGENS\nDETAIL- \nSPECIFICATIE ","VERSCHIL"]
[]
[null,null,null," Totaal kosten t.l.v. deelbijdragen (totaal lasten t/m rubriek 16)\n - inclusief balanspost",null,null,null,null,null,{"$f":"Kostenverzamelstaat!I124","v":0},{"$f":"'Specifieke informatie A'!K17","v":0},{"$f":"IF(J17<>K17,J17-K17,\"\")","v":""}]
[]
[null,null,null," KOSTENVERZAMELSTAAT",null,null,null,null,null,{"$f":"CONCATENATE(\"Kosten balanspost  \", jaar_id-2)","v":"Kosten balanspost  2022"},{"$f":"CONCATENATE(\"Kosten balanspost  \", jaar_id-1)","v":"Kosten balanspost  2023"},{"$f":"CONCATENATE(\"Kosten balanspost  \", jaar_id)","v":"Kosten balanspost  2024"}]
[]
[null,null,null," 503 Bijzondere betalingen",null,null,null,null,null,{"$f":"Kostenverzamelstaat!M16-Kostenverzamelstaat!N16","v":0},{"$f":"Kostenverzamelstaat!K16-Kostenverzamelstaat!L16","v":0},{"$f":"Kostenverzamelstaat!I16-Kostenverzamelstaat!J16","v":0}]
[null,null,null," 504 Avond-, nacht- en weekenddiensten",null,null,null,null,null,{"$f":"(Kostenverzamelstaat!M17)-(Kostenverzamelstaat!N17)","v":0},{"$f":"Kostenverzamelstaat!K17-Kostenverzamelstaat!L17","v":0},{"$f":"Kostenverzamelstaat!I17-Kostenverzamelstaat!J17","v":0}]
[null,null,null," 505 Inschrijftarieven",null,null,null,null,null,{"$f":"Kostenverzamelstaat!M18-Kostenverzamelstaat!N18","v":0},{"$f":"Kostenverzamelstaat!K18-Kostenverzamelstaat!L18","v":0},{"$f":"Kostenverzamelstaat!I18-Kostenverzamelstaat!J18","v":0}]
[null,null,null," 506 Consulttarieven",null,null,null,null,null,{"$f":"(Kostenverzamelstaat!M19)-(Kostenverzamelstaat!N19)","v":0},{"$f":"Kostenverzamelstaat!K19-Kostenverzamelstaat!L19","v":0},{"$f":"Kostenverzamelstaat!I19-Kostenverzamelstaat!J19","v":0}]
[null,null,null," 507 Overige tarieven",null,null,null,null,null,{"$f":"(Kostenverzamelstaat!M20)-(Kostenverzamelstaat!N20)","v":0},{"$f":"Kostenverzamelstaat!K20-Kostenverzamelstaat!L20","v":0},{"$f":"Kostenverzamelstaat!I20-Kostenverzamelstaat!J20","v":0}]
[null,null,null," 510 Multidisciplinaire zorg",null,null,null,null,null,{"$f":"Kostenverzamelstaat!M21-Kostenverzamelstaat!N21","v":0},{"$f":"Kostenverzamelstaat!K21-Kostenverzamelstaat!L21","v":0},{"$f":"Kostenverzamelstaat!I21-Kostenverzamelstaat!J21","v":0}]
[null,null,null," 515 Resultaatbeloning en zorgvernieuwing huisartsen",null,null,null,null,null,{"$f":"(Kostenverzamelstaat!M22)-(Kostenverzamelstaat!N22)","v":0},{"$f":"Kostenverzamelstaat!K22-Kostenverzamelstaat!L22","v":0},{"$f":"Kostenverzamelstaat!I22-Kostenverzamelstaat!J22","v":0}]
[null,null,null," 516 Resultaatbeloning en zorgvernieuwing MDZ",null,null,null,null,null,{"$f":"Kostenverzamelstaat!M23-Kostenverzamelstaat!N23","v":0},{"$f":"Kostenverzamelstaat!K23-Kostenverzamelstaat!L23","v":0},{"$f":"Kostenverzamelstaat!I23-Kostenverzamelstaat!J23","v":0}]
[null,null,null," 520 Farmaceutische zorg",null,null,null,null,null,{"$f":"Kostenverzamelstaat!M26-Kostenverzamelstaat!N26","v":0},{"$f":"Kostenverzamelstaat!K26-Kostenverzamelstaat!L26","v":0},{"$f":"Kostenverzamelstaat!I26-Kostenverzamelstaat!J26","v":0}]
[null,null,null," 530 Kosten van verpleging en verzorging",null,null,null,null,null,{"$f":"(Kostenverzamelstaat!M29)-(Kostenverzamelstaat!N29)","v":0},{"$f":"Kostenverzamelstaat!K29-Kostenverzamelstaat!L29","v":0},{"$f":"Kostenverzamelstaat!I29-Kostenverzamelstaat!J29","v":0}]
[null,null,null," 803.1 Meerkosten COVID-19, indirect",null,null,null,null,null,{"$f":"Kostenverzamelstaat!M30-Kostenverzamelstaat!N30","v":0}]
[null,null,null," 545 Kosten specialisten mondziekten en kaakchirurgie",null,null,null,null,null,{"$f":"Kostenverzamelstaat!M54-Kostenverzamelstaat!N54","v":0},{"$f":"Kostenverzamelstaat!K54-Kostenverzamelstaat!L54","v":0},{"$f":"Kostenverzamelstaat!I54-Kostenverzamelstaat!J54","v":0}]
[null,null,null," 560.1 Kosten mondzorg volwassen verzekerden",null,null,null,null,null,{"$f":"Kostenverzamelstaat!M33-Kostenverzamelstaat!N33","v":0},{"$f":"Kostenverzamelstaat!K33-Kostenverzamelstaat!L33","v":0},{"$f":"Kostenverzamelstaat!I33-Kostenverzamelstaat!J33","v":0}]
[null,null,null," 560.2 Kosten mondzorg jeugdige verzekerden",null,null,null,null,null,{"$f":"Kostenverzamelstaat!M34-Kostenverzamelstaat!N34","v":0},{"$f":"Kostenverzamelstaat!K34-Kostenverzamelstaat!L34","v":0},{"$f":"Kostenverzamelstaat!I34-Kostenverzamelstaat!J34","v":0}]
[null,null,null," 561 Kosten gebitsprothesen",null,null,null,null,null,{"$f":"Kostenverzamelstaat!M35-Kostenverzamelstaat!N35","v":0},{"$f":"Kostenverzamelstaat!K35-Kostenverzamelstaat!L35","v":0},{"$f":"Kostenverzamelstaat!I35-Kostenverzamelstaat!J35","v":0}]
[null,null,null," 580 Kosten verloskundige zorg door verloskundigen",null,null,null,null,null,{"$f":"Kostenverzamelstaat!M38-Kostenverzamelstaat!N38","v":0},{"$f":"Kostenverzamelstaat!K38-Kostenverzamelstaat!L38","v":0},{"$f":"Kostenverzamelstaat!I38-Kostenverzamelstaat!J38","v":0}]
[null,null,null," 582 Kosten Integrale geboortezorg ",null,null,null,null,null,{"$f":"Kostenverzamelstaat!M39-Kostenverzamelstaat!N39","v":0},{"$f":"Kostenverzamelstaat!K39-Kostenverzamelstaat!L39","v":0},{"$f":"Kostenverzamelstaat!I39-Kostenverzamelstaat!J39","v":0}]
[null,null,null," 610 Overige kosten ziekenhuiszorg en curatieve zorg",null,null,null,null,null,{"$f":"Kostenverzamelstaat!M55-Kostenverzamelstaat!N55","v":0}]
[null,null,null," 610.1  NTS",null,null,null,null,null,null,{"$f":"Kostenverzamelstaat!K56-Kostenverzamelstaat!L56","v":0},{"$f":"Kostenverzamelstaat!I56-Kostenverzamelstaat!J56","v":0}]
[null,null,null," 610.2  Eerstelijnsdiagnostiek aangevraagd door eerstelijnszorg-aanbieders geleverd door huisartsenlaboratoria en Trombosediensten",null,null,null,null,null,null,{"$f":"Kostenverzamelstaat!K57-Kostenverzamelstaat!L57","v":0},{"$f":"Kostenverzamelstaat!I57-Kostenverzamelstaat!J57","v":0}]
[null,null,null," 611 Overige zorgproducten",null,null,null,null,null,{"$f":"Kostenverzamelstaat!M58-Kostenverzamelstaat!N58","v":0},{"$f":"Kostenverzamelstaat!K58-Kostenverzamelstaat!L58","v":0},{"$f":"Kostenverzamelstaat!I58-Kostenverzamelstaat!J58","v":0}]
[null,null,null," 612.1 Kosten add-ons - Dure geneesmiddelen",null,null,null,null,null,{"$f":"Kostenverzamelstaat!M59-Kostenverzamelstaat!N59","v":0},{"$f":"Kostenverzamelstaat!K59-Kostenverzamelstaat!L59","v":0},{"$f":"Kostenverzamelstaat!I59-Kostenverzamelstaat!J59","v":0}]
[null,null,null," 612.2 Kosten add-ons - IC",null,null,null,null,null,{"$f":"(Kostenverzamelstaat!M60)-(Kostenverzamelstaat!N60)","v":0},{"$f":"Kostenverzamelstaat!K60-Kostenverzamelstaat!L60","v":0},{"$f":"Kostenverzamelstaat!I60-Kostenverzamelstaat!J60","v":0}]
[null,null,null," 613.1 Integrale kosten van DBC-zorgproduct gereguleerde segment ",null,null,null,null,null,{"$f":"(Kostenverzamelstaat!M61)-(Kostenverzamelstaat!N61)","v":0},{"$f":"Kostenverzamelstaat!K61-Kostenverzamelstaat!L61","v":0},{"$f":"Kostenverzamelstaat!I61-Kostenverzamelstaat!J61","v":0}]
[null,null,null," 615.1 Integrale kosten van DBC-zorgproduct vrije segment",null,null,null,null,null,{"$f":"(Kostenverzamelstaat!M62)-(Kostenverzamelstaat!N62)","v":0},{"$f":"Kostenverzamelstaat!K62-Kostenverzamelstaat!L62","v":0},{"$f":"Kostenverzamelstaat!I62-Kostenverzamelstaat!J62","v":0}]
[null,null,null," 619 Integrale kosten extramuraal werkende specialisten",null,null,null,null,null,{"$f":"Kostenverzamelstaat!M63-Kostenverzamelstaat!N63","v":0},{"$f":"Kostenverzamelstaat!K63-Kostenverzamelstaat!L63","v":0},{"$f":"Kostenverzamelstaat!I63-Kostenverzamelstaat!J63","v":0}]
[null,null,null," 806.1 Meerkosten COVID-19, indirect",null,null,null,null,null,{"$f":"Kostenverzamelstaat!M64-Kostenverzamelstaat!N64","v":0}]
[null,null,null," 806.2 Meerkosten COVID-19, toeslagen",null,null,null,null,null,{"$f":"Kostenverzamelstaat!M65-Kostenverzamelstaat!N65","v":0},{"$f":"(Kostenverzamelstaat!K65)-(Kostenverzamelstaat!L65)","v":0}]
[null,null,null," 620 Kosten fysiotherapie",null,null,null,null,null,{"$f":"(Kostenverzamelstaat!M68)-(Kostenverzamelstaat!N68)","v":0},{"$f":"Kostenverzamelstaat!K68-Kostenverzamelstaat!L68","v":0},{"$f":"Kostenverzamelstaat!I68-Kostenverzamelstaat!J68","v":0}]
[null,null,null," 621 Kosten oefentherapie Mensendieck/Cesar",null,null,null,null,null,{"$f":"(Kostenverzamelstaat!M69)-(Kostenverzamelstaat!N69)","v":0},{"$f":"Kostenverzamelstaat!K69-Kostenverzamelstaat!L69","v":0},{"$f":"Kostenverzamelstaat!I69-Kostenverzamelstaat!J69","v":0}]
[null,null,null," 623 Kosten logopedie",null,null,null,null,null,{"$f":"(Kostenverzamelstaat!M70)-(Kostenverzamelstaat!N70)","v":0},{"$f":"Kostenverzamelstaat!K70-Kostenverzamelstaat!L70","v":0},{"$f":"Kostenverzamelstaat!I70-Kostenverzamelstaat!J70","v":0}]
[null,null,null,{"$f":"NOW()","v":"2023-12-18T14:42:37.950"},null,null,null,null,null,null,null,{"$f":"CONCATENATE(\"Controleoverzicht \",LOWER(A6))","v":"Controleoverzicht pagina 1"}]
[]
["Pagina 2",null,null,{"$f":"CONCATENATE(\"KWARTAALSTAAT ZVW \", jaar_id,\" \",kwartaal_id,\"E KWARTAAL\")","v":"KWARTAALSTAAT ZVW 2024 1E KWARTAAL"}]
[null,null,null,"CONTROLEOVERZICHT"]
[null,null,null,{"$f":"IF(naw_uzovi_zorgverzekeraar<>\"0000\",CONCATENATE(UPPER(naw_naam_zorgverzekeraar),\", \",UPPER(naw_plaats_zorgverzekeraar)),\"\")","v":""},null,null,null,null,null,null,null,{"$f":"CONCATENATE(\"UZOVI: \",naw_uzovi_zorgverzekeraar)","v":"UZOVI: 0000"}]
[null,null,null,"SPECIFIEKE INFORMATIE A - vervolg"]
[null,null,null," KOSTENVERZAMELSTAAT",null,null,null,null,null,{"$f":"CONCATENATE(\"Kosten balanspost  \", jaar_id-2)","v":"Kosten balanspost  2022"},{"$f":"CONCATENATE(\"Kosten balanspost  \", jaar_id-1)","v":"Kosten balanspost  2023"},{"$f":"CONCATENATE(\"Kosten balanspost  \", jaar_id)","v":"Kosten balanspost  2024"}]
[]
[null,null,null," 624 Kosten ergotherapie",null,null,null,null,null,{"$f":"(Kostenverzamelstaat!M71)-(Kostenverzamelstaat!N71)","v":0},{"$f":"Kostenverzamelstaat!K71-Kostenverzamelstaat!L71","v":0},{"$f":"Kostenverzamelstaat!I71-Kostenverzamelstaat!J71","v":0}]
[null,null,null," 625 Kosten dieetadvisering ",null,null,null,null,null,{"$f":"(Kostenverzamelstaat!M72)-(Kostenverzamelstaat!N72)","v":0},{"$f":"Kostenverzamelstaat!K72-Kostenverzamelstaat!L72","v":0},{"$f":"Kostenverzamelstaat!I72-Kostenverzamelstaat!J72","v":0}]
[null,null,null," 626 Gecombineerde Leefstijl Interventie (GLI)",null,null,null,null,null,{"$f":"Kostenverzamelstaat!M73-Kostenverzamelstaat!N73","v":0},{"$f":"Kostenverzamelstaat!K73-Kostenverzamelstaat!L73","v":0},{"$f":"Kostenverzamelstaat!I73-Kostenverzamelstaat!J73","v":0}]
[null,null,null," 640 Hulpmiddelenzorg",null,null,null,null,null,{"$f":"Kostenverzamelstaat!M76-Kostenverzamelstaat!N76","v":0},{"$f":"Kostenverzamelstaat!K76-Kostenverzamelstaat!L76","v":0},{"$f":"Kostenverzamelstaat!I76-Kostenverzamelstaat!J76","v":0}]
[null,null,null," 650 Kosten vervoer per ambulance/helikopter",null,null,null,null,null,{"$f":"(Kostenverzamelstaat!M79)-(Kostenverzamelstaat!N79)","v":0},{"$f":"Kostenverzamelstaat!K79-Kostenverzamelstaat!L79","v":0},{"$f":"Kostenverzamelstaat!I79-Kostenverzamelstaat!J79","v":0}]
[null,null,null," 650.1 Opbrengstenverrekeningen regionale ambulancevoorzieningen",null,null,null,null,null,{"$f":"Kostenverzamelstaat!M80-Kostenverzamelstaat!N80","v":0},{"$f":"Kostenverzamelstaat!K80-Kostenverzamelstaat!L80","v":0},{"$f":"Kostenverzamelstaat!I80-Kostenverzamelstaat!J80","v":0}]
[null,null,null," 651 Kosten vervoer per openbaar vervoer, taxi en eigen auto",null,null,null,null,null,{"$f":"Kostenverzamelstaat!M81-Kostenverzamelstaat!N81","v":0},{"$f":"Kostenverzamelstaat!K81-Kostenverzamelstaat!L81","v":0},{"$f":"Kostenverzamelstaat!I81-Kostenverzamelstaat!J81","v":0}]
[null,null,null," 666 1.1 Kosten consulten GGZ",null,null,null,null,null,{"$f":"Kostenverzamelstaat!M96-Kostenverzamelstaat!N96","v":0},{"$f":"Kostenverzamelstaat!K96-Kostenverzamelstaat!L96","v":0},{"$f":"Kostenverzamelstaat!I96-Kostenverzamelstaat!J96","v":0}]
[null,null,null," 667 Kosten intramuraal verblijf GGZ",null,null,null,null,null,{"$f":"Kostenverzamelstaat!M97-Kostenverzamelstaat!N97","v":0},{"$f":"Kostenverzamelstaat!K97-Kostenverzamelstaat!L97","v":0},{"$f":"Kostenverzamelstaat!I97-Kostenverzamelstaat!J97","v":0}]
[null,null,null," 668 overige prestaties GGZ",null,null,null,null,null,{"$f":"Kostenverzamelstaat!M98-Kostenverzamelstaat!N98","v":0},{"$f":"Kostenverzamelstaat!K98-Kostenverzamelstaat!L98","v":0},{"$f":"Kostenverzamelstaat!I98-Kostenverzamelstaat!J98","v":0}]
[null,null,null," 810.1 Meerkosten COVID-19, indirect",null,null,null,null,null,{"$f":"Kostenverzamelstaat!M99-Kostenverzamelstaat!N99","v":0}]
[null,null,null," 670 Geriatrische revalidatiezorg",null,null,null,null,null,{"$f":"(Kostenverzamelstaat!M102)-(Kostenverzamelstaat!N102)","v":0},{"$f":"Kostenverzamelstaat!K102-Kostenverzamelstaat!L102","v":0},{"$f":"Kostenverzamelstaat!I102-Kostenverzamelstaat!J102","v":0}]
[null,null,null," 811.1.1 Meerkosten COVID-19 indirect GRZ",null,null,null,null,null,{"$f":"(Kostenverzamelstaat!M103)-(Kostenverzamelstaat!N103)","v":0}]
[null,null,null," 671 Eerstelijnsverblijf (ELV)",null,null,null,null,null,{"$f":"(Kostenverzamelstaat!M104)-(Kostenverzamelstaat!N104)","v":0},{"$f":"Kostenverzamelstaat!K104-Kostenverzamelstaat!L104","v":0},{"$f":"Kostenverzamelstaat!I104-Kostenverzamelstaat!J104","v":0}]
[null,null,null," 811.2.1 Meerkosten COVID-19 indirect ELV",null,null,null,null,null,{"$f":"(Kostenverzamelstaat!M105)-(Kostenverzamelstaat!N105)","v":0}]
[null,null,null," 672 Geneeskundige  Zorg Specifieke Patiëntgroepen (GZSP)",null,null,null,null,null,{"$f":"Kostenverzamelstaat!M106-Kostenverzamelstaat!N106","v":0},{"$f":"Kostenverzamelstaat!K106-Kostenverzamelstaat!L106","v":0},{"$f":"Kostenverzamelstaat!I106-Kostenverzamelstaat!J106","v":0}]
[null,null,null," 680 Kraamzorg",null,null,null,null,null,{"$f":"Kostenverzamelstaat!M109-Kostenverzamelstaat!N109","v":0},{"$f":"Kostenverzamelstaat!K109-Kostenverzamelstaat!L109","v":0},{"$f":"Kostenverzamelstaat!I109-Kostenverzamelstaat!J109","v":0}]
[null,null,null," 700 Overige kosten",null,null,null,null,null,{"$f":"Kostenverzamelstaat!M112-Kostenverzamelstaat!N112","v":0},{"$f":"Kostenverzamelstaat!K112-Kostenverzamelstaat!L112","v":0},{"$f":"Kostenverzamelstaat!I112-Kostenverzamelstaat!J112","v":0}]
[null,null,null," 701 Overige geneeskundige zorg",null,null,null,null,null,{"$f":"Kostenverzamelstaat!M113-Kostenverzamelstaat!N113","v":0},{"$f":"Kostenverzamelstaat!K113-Kostenverzamelstaat!L113","v":0},{"$f":"Kostenverzamelstaat!I113-Kostenverzamelstaat!J113","v":0}]
[null,null,null," 702 Kosten van zorg zintuiglijk gehandicapten ",null,null,null,null,null,{"$f":"Kostenverzamelstaat!M114-Kostenverzamelstaat!N114","v":0},{"$f":"Kostenverzamelstaat!K114-Kostenverzamelstaat!L114","v":0},{"$f":"Kostenverzamelstaat!I114-Kostenverzamelstaat!J114","v":0}]
[null,null,null," 703 Transformatiemiddelen IZA",null,null,null,null,null,null,{"$f":"Kostenverzamelstaat!K115-Kostenverzamelstaat!L115","v":0},{"$f":"Kostenverzamelstaat!I115-Kostenverzamelstaat!J115","v":0}]
[null,null,null," 720 Kosten via verzekeraar",null,null,null,null,null,{"$f":"Kostenverzamelstaat!M118-Kostenverzamelstaat!N118","v":0},{"$f":"Kostenverzamelstaat!K118-Kostenverzamelstaat!L118","v":0},{"$f":"Kostenverzamelstaat!I118-Kostenverzamelstaat!J118","v":0}]
[null,null,null," 721 Kosten via verbindingsorgaan",null,null,null,null,null,{"$f":"Kostenverzamelstaat!M119-Kostenverzamelstaat!N119","v":0},{"$f":"Kostenverzamelstaat!K119-Kostenverzamelstaat!L119","v":0},{"$f":"Kostenverzamelstaat!I119-Kostenverzamelstaat!J119","v":0}]
[null,null,null," 730 Kwaliteitsgelden",null,null,null,null,null,{"$f":"Kostenverzamelstaat!M122-Kostenverzamelstaat!N122","v":0},{"$f":"Kostenverzamelstaat!K122-Kostenverzamelstaat!L122","v":0},{"$f":"Kostenverzamelstaat!I122-Kostenverzamelstaat!J122","v":0}]
[]
[null,null,null,"VERGELIJKING SPECIFIEKE INFORMATIE A EN C"]
[null,null,null,"KOSTEN PER CODENUMMER\n(ONTVANGEN EN GEACCEPTEERDE DECLARATIES) 2024",null,null,null,null,null,"Spec. inform. A\nkostenver-\nzamelstaat","Spec. inform. C\ndetail-\ninformatie","VERSCHIL"]
[]
[null,null,null," 610.2  Eerstelijnsdiagnostiek aangevraagd door eerstelijnszorg-aanbieders geleverd door huisartsenlaboratoria en Trombosediensten"]
[null,null,null," 611 Overige zorgproducten (naar instelling)"]
[null,null,null," 612.1 Kosten add-ons - Dure geneesmiddelen"]
[null,null,null," 612.2  Kosten add-ons - IC"]
[null,null,null," 613.1 Integrale kosten DBC-zorgproduct gereguleerd segment"]
[null,null,null," 615.1 Integrale kosten DBC-zorgproduct vrije segment"]
[]
[null,null,null,{"$f":"NOW()","v":"2023-12-18T14:42:37.950"},null,null,null,null,null,null,null,{"$f":"CONCATENATE(\"Controleoverzicht \",LOWER(A54))","v":"Controleoverzicht pagina 2"}]
[]
["Pagina 3",null,null,{"$f":"CONCATENATE(\"KWARTAALSTAAT ZVW \", jaar_id,\" \",kwartaal_id,\"E KWARTAAL\")","v":"KWARTAALSTAAT ZVW 2024 1E KWARTAAL"}]
[null,null,null,"CONTROLEOVERZICHT"]
[null,null,null,{"$f":"IF(naw_uzovi_zorgverzekeraar<>\"0000\",CONCATENATE(UPPER(naw_naam_zorgverzekeraar),\", \",UPPER(naw_plaats_zorgverzekeraar)),\"\")","v":""},null,null,null,null,null,null,null,{"$f":"CONCATENATE(\"UZOVI: \",naw_uzovi_zorgverzekeraar)","v":"UZOVI: 0000"}]
[]
[null,null,null,"VERGELIJKING SPECIFIEKE INFORMATIE A EN C - vervolg"]
[null,null,null,"KOSTEN PER CODENUMMER \n(ONTVANGEN EN GEACCEPTEERDE DECLARATIES) 2024\n",null,null,null,null,null,"Spec. inform. A\nkostenver-\nzamelstaat","Spec. inform. C\ndetail-\ninformatie","VERSCHIL"]
[]
[null,null,null," 701 Overige geneeskundige zorg"]
[null,null,null," 702 Kosten van zorg zintuiglijk gehandicapten "]
[]
[null,null,null," KOSTEN PER CODENUMMER (KOSTEN INCLUSIEF BALANSPOST) 2024",null,null,null,null,null,"Spec. inform. A\nkostenver-\nzamelstaat","Spec. inform. C\ndetail-\ninformatie","VERSCHIL"]
[]
[null,null,null," 610.2  Eerstelijnsdiagnostiek aangevraagd door eerstelijnszorg-aanbieders geleverd door huisartsenlaboratoria en Trombosediensten"]
[null,null,null," 611 Overige zorgproducten (naar instelling)"]
[null,null,null," 612.1 Kosten add-ons - Dure geneesmiddelen"]
[null,null,null," 612.2  Kosten add-ons - IC"]
[null,null,null," 613.1 Integrale kosten DBC-zorgproduct gereguleerd segment"]
[null,null,null," 615.1 Integrale kosten DBC-zorgproduct vrije segment"]
[]
[null,null,null,"KOSTEN PER CODENUMMER \n(ONTVANGEN EN GEACCEPTEERDE DECLARATIES) 2023\n",null,null,null,null,null,"Spec. inform. A\nkostenver-\nzamelstaat","Spec. inform. C\ndetail-\ninformatie","VERSCHIL"]
[]
[null,null,null," 610.2  Eerstelijnsdiagnostiek aangevraagd door eerstelijnszorg-aanbieders geleverd door huisartsenlaboratoria en Trombosediensten"]
[null,null,null," 611 Overige zorgproducten (naar instelling)"]
[null,null,null," 612.1 Kosten add-ons - Dure geneesmiddelen"]
[null,null,null," 612.2  Kosten add-ons - IC"]
[null,null,null," 613.1 Integrale kosten DBC-zorgproduct gereguleerd segment"]
[null,null,null," 615.1 Integrale kosten DBC-zorgproduct vrije segment"]
[]
[null,null,null,{"$f":"NOW()","v":"2023-12-18T14:42:37.950"},null,null,null,null,null,null,null,{"$f":"CONCATENATE(\"Controleoverzicht \",LOWER(A97))","v":"Controleoverzicht pagina 3"}]
[]
["Pagina 4",null,null,{"$f":"CONCATENATE(\"KWARTAALSTAAT ZVW \", jaar_id,\" \",kwartaal_id,\"E KWARTAAL\")","v":"KWARTAALSTAAT ZVW 2024 1E KWARTAAL"}]
[null,null,null,"CONTROLEOVERZICHT"]
[null,null,null,{"$f":"IF(naw_uzovi_zorgverzekeraar<>\"0000\",CONCATENATE(UPPER(naw_naam_zorgverzekeraar),\", \",UPPER(naw_plaats_zorgverzekeraar)),\"\")","v":""},null,null,null,null,null,null,null,{"$f":"CONCATENATE(\"UZOVI: \",naw_uzovi_zorgverzekeraar)","v":"UZOVI: 0000"}]
[null,null,null,"VERGELIJKING SPECIFIEKE INFORMATIE A EN C - vervolg"]
[null,null,null," KOSTEN PER CODENUMMER (KOSTEN INCLUSIEF BALANSPOST) 2023",null,null,null,null,null,"Spec. inform. A\nkostenver-\nzamelstaat","Spec. inform. C\ndetail-\ninformatie","VERSCHIL"]
[]
[null,null,null," 610.2  Eerstelijnsdiagnostiek aangevraagd door eerstelijnszorg-aanbieders geleverd door huisartsenlaboratoria en Trombosediensten"]
[null,null,null," 611 Overige zorgproducten (naar instelling)"]
[null,null,null," 612.1 Kosten add-ons - Dure geneesmiddelen"]
[null,null,null," 612.2  Kosten add-ons - IC"]
[null,null,null," 613.1 Integrale kosten DBC-zorgproduct gereguleerd segment"]
[null,null,null," 615.1 Integrale kosten DBC-zorgproduct vrije segment"]
[]
[null,null,null,"KOSTEN PER CODENUMMER \n(ONTVANGEN EN GEACCEPTEERDE DECLARATIES \n M.B.T. 2022 EN OUDER)",null,null,null,null,null,"Spec. inform. A\nkostenver-\nzamelstaat","Spec. inform. C\ndetail-\ninformatie","VERSCHIL"]
[]
[null,null,null," 610 Overige kosten ziekenhuiszorg en curatieve zorg"]
[null,null,null," 611 Overige zorgproducten (naar instelling)"]
[null,null,null," 612.1 Kosten add-ons - Dure geneesmiddelen"]
[null,null,null," 612.2  Kosten add-ons - IC"]
[null,null,null," 613.1 Integrale kosten DBC-zorgproduct gereguleerd segment"]
[null,null,null," 615.1 Integrale kosten DBC-zorgproduct vrije segment"]
[]
[null,null,null," KOSTEN PER CODENUMMER \n (KOSTEN INCLUSIEF BALANSPOST) M.B.T. 2022 EN OUDER",null,null,null,null,null,"Spec. inform. A\nkostenver-\nzamelstaat","Spec. inform. C\ndetail-\ninformatie","VERSCHIL"]
[]
[null,null,null," 610 Overige kosten ziekenhuiszorg en curatieve zorg"]
[null,null,null," 611 Overige zorgproducten (naar instelling)"]
[null,null,null," 612.1 Kosten add-ons - Dure geneesmiddelen"]
[null,null,null," 612.2  Kosten add-ons - IC"]
[null,null,null," 613.1 Integrale kosten DBC-zorgproduct gereguleerd segment"]
[null,null,null," 615.1 Integrale kosten DBC-zorgproduct vrije segment"]
[]
[null,null,null," Controle code 505 kostenverzamelstaat",null,null,null,null,null,null,null,{"$f":"Kostenverzamelstaat!I18","v":0}]
[null,null,null," Kosten per verzekerde o.b.v. laatst bekende verzekerdenstand (in hele euro's)",null,null,null,null,null,null,null,{"$f":"IF(L158<>0,(L158/J11),0)","v":0}]
[null,null,null,{"$f":"IF(OR(L159>kwartaal_id*112),\"Attentiebericht: Kosten per verzekerde liggen buiten het verwachte bereik. Controleer de kostenverzamelstaat!\",\"\")","v":""}]
[]
[null,null,null,"VERGELIJKING SPECIFIEKE INFORMATIE A EN C (Contractinformatie)"]
[null,null,null," KOSTEN PER RUBRIEK OF CODENUMMER \n (KOSTEN INCLUSIEF BALANSPOST) 2024",null,null,null,null,null,"Spec. inform. A\nkostenver-\nzamelstaat","Spec. inform. C\ncontract-\ninformatie","VERSCHIL"]
[]
[null,null,null," Huisartsenzorg en Multidisciplinaire Zorg, rubriek 01"]
[null,null,null," Verpleging en Verzorging, rubriek 03"]
[null,null,null," Medisch Specialistische zorg, rubriek 06"]
[null,null,null," Geneeskundige Geestelijke Gezondheidszorg, rubriek 10"]
[null,null,null," Zintuiglijk Gehandicapten, code 702"]
[null,null,null,"Geriatrische Revalidatie, Eerstelijnsverblijf en Geneeskundige zorg specifieke patinetgroepen, rubriek 11"]
[null,null,null,{"$f":"NOW()","v":"2023-12-18T14:42:37.950"},null,null,null,null,null,null,null,{"$f":"CONCATENATE(\"Controleoverzicht \",LOWER(A127))","v":"Controleoverzicht pagina 4"}]

{"sheet":"Blad1","index":11,"n_rows":737,"n_cols":17,"rows_kept":737,"cut":false,"hidden":true,"merged":[]}
[]
[]
[]
[]
[]
[]
[]
[]
[]
[]
[]
[null,null,null,null,"vcd_spec_idvar","vcd_waarde_flt","vcd_waarde_txt","vcd_toelichting_txt","vcd_spec1_idvar","vcd_spec2_idvar","vcd_spec3_idvar","vcd_attrib_idvar","vcd_eenheid_txt","vcd_dsnorder_flt","vcd_datatype_txt","vcd_format_txt","vcd_eenheid_flt"]
[null,null,null,null,"xstaat_kdrwet_id_","*=0","ZVQ1","Excel numeriek om te zetten sleutel kdrwet via waarden","xstaat","kdrwet","id","","",null,"C",""]
[null,null,null,null,"xstaat_kdrwet_idjmd_","*=0",20240331,"Excel numeriek om te zetten sleutel kdrwet periode","xstaat","kdrwet","idjmd","","",null,"C",""]
[null,null,null,null,"xstaat_uzovi_filename_","*=0","*=CEL(\"bestandsnaam\")","Excel numeriek filenaam bevat ook sleutels","xstaat","uzovi","filename","","",null,"C",""]
[null,null,null,null,"xstaat_uzovi_id_","*=0","*=NUMERIEKE.WAARDE(NAW_gegevens!$C$6)","Excel numeriek om te zetten sleutel uzovi","xstaat","uzovi","id","","",null,"C",""]
[null,null,null,null,"xstaat_uzovi_idvrs_","*=0","01","Excel numeriek om te zetten sleutel uzovi versie levering","xstaat","uzovi","idvrs","","",null,"C",""]
[null,null,null,null,"zvkx01_c503__TY0V01","*=Kostenverzamelstaat!$I$16","","Huisartsen- bijz betalingen- incl balans","zvkx01","c503","","TY0V01","Euro's",null,"N","",1]
[null,null,null,null,"zvkx01_a503__TY0V01","*=Kostenverzamelstaat!$J$16","","Huisartsen- bijz betalingen- geaccepteerd","zvkx01","a503","","TY0V01","Euro's",null,"N","",1]
[null,null,null,null,"zvkx01_c503__TY1V01","*=Kostenverzamelstaat!$K$16","","Huisartsen- bijz betalingen- incl balans","zvkx01","c503","","TY1V01","Euro's",null,"N","",1]
[null,null,null,null,"zvkx01_a503__TY1V01","*=Kostenverzamelstaat!$L$16","","Huisartsen- bijz betalingen- geaccepteerd","zvkx01","a503","","TY1V01","Euro's",null,"N","",1]
[null,null,null,null,"zvkx01_c503__TY2V01","*=Kostenverzamelstaat!$M$16","","Huisartsen- bijz betalingen- incl balans","zvkx01","c503","","TY2V01","Euro's",null,"N","",1]
[null,null,null,null,"zvkx01_a503__TY2V01","*=Kostenverzamelstaat!$N$16","","Huisartsen- bijz betalingen- geaccepteerd","zvkx01","a503","","TY2V01","Euro's",null,"N","",1]
[null,null,null,null,"zvkx01_c504__TY0V01","*=Kostenverzamelstaat!$I$17","","Huisartsen- bijz diensttijden- incl balans","zvkx01","c504","","TY0V01","Euro's",null,"N","",1]
[null,null,null,null,"zvkx01_a504__TY0V01","*=Kostenverzamelstaat!$J$17","","Huisartsen- bijz diensttijden- geaccepteerd","zvkx01","a504","","TY0V01","Euro's",null,"N","",1]
[null,null,null,null,"zvkx01_c504__TY1V01","*=Kostenverzamelstaat!$K$17","","Huisartsen- bijz diensttijden- incl balans","zvkx01","c504","","TY1V01","Euro's",null,"N","",1]
[null,null,null,null,"zvkx01_a504__TY1V01","*=Kostenverzamelstaat!$L$17","","Huisartsen- bijz diensttijden- geaccepteerd","zvkx01","a504","","TY1V01","Euro's",null,"N","",1]
[null,null,null,null,"zvkx01_c504__TY2V01","*=Kostenverzamelstaat!$M$17","","Huisartsen- bijz diensttijden- incl balans","zvkx01","c504","","TY2V01","Euro's",null,"N","",1]
[null,null,null,null,"zvkx01_a504__TY2V01","*=Kostenverzamelstaat!$N$17","","Huisartsen- bijz diensttijden- geaccepteerd","zvkx01","a504","","TY2V01","Euro's",null,"N","",1]
[null,null,null,null,"zvkx01_c505__TY0V01","*=Kostenverzamelstaat!$I$18","","Huisartsen- Inschrijvingen- incl balans","zvkx01","c505","","TY0V01","Euro's",null,"N","",1]
[null,null,null,null,"zvkx01_a505__TY0V01","*=Kostenverzamelstaat!$J$18","","Huisartsen- Inschrijvingen- geaccepteerd","zvkx01","a505","","TY0V01","Euro's",null,"N","",1]
[null,null,null,null,"zvkx01_c505__TY1V01","*=Kostenverzamelstaat!$K$18","","Huisartsen- Inschrijvingen- incl balans","zvkx01","c505","","TY1V01","Euro's",null,"N","",1]
[null,null,null,null,"zvkx01_a505__TY1V01","*=Kostenverzamelstaat!$L$18","","Huisartsen- Inschrijvingen- geaccepteerd","zvkx01","a505","","TY1V01","Euro's",null,"N","",1]
[null,null,null,null,"zvkx01_c505__TY2V01","*=Kostenverzamelstaat!$M$18","","Huisartsen- Inschrijvingen- incl balans","zvkx01","c505","","TY2V01","Euro's",null,"N","",1]
[null,null,null,null,"zvkx01_a505__TY2V01","*=Kostenverzamelstaat!$N$18","","Huisartsen- Inschrijvingen- geaccepteerd","zvkx01","a505","","TY2V01","Euro's",null,"N","",1]
[null,null,null,null,"zvkx01_c506__TY0V01","*=Kostenverzamelstaat!$I$19","","Huisartsen- Consult- incl balans","zvkx01","c506","","TY0V01","Euro's",null,"N","",1]
[null,null,null,null,"zvkx01_a506__TY0V01","*=Kostenverzamelstaat!$J$19","","Huisartsen- Consult- geaccepteerd","zvkx01","a506","","TY0V01","Euro's",null,"N","",1]
[null,null,null,null,"zvkx01_c506__TY1V01","*=Kostenverzamelstaat!$K$19","","Huisartsen- Consult- incl balans","zvkx01","c506","","TY1V01","Euro's",null,"N","",1]
[null,null,null,null,"zvkx01_a506__TY1V01","*=Kostenverzamelstaat!$L$19","","Huisartsen- Consult- geaccepteerd","zvkx01","a506","","TY1V01","Euro's",null,"N","",1]
[null,null,null,null,"zvkx01_c506__TY2V01","*=Kostenverzamelstaat!$M$19","","Huisartsen- Consult- incl balans","zvkx01","c506","","TY2V01","Euro's",null,"N","",1]
[null,null,null,null,"zvkx01_a506__TY2V01","*=Kostenverzamelstaat!$N$19","","Huisartsen- Consult- geaccepteerd","zvkx01","a506","","TY2V01","Euro's",null,"N","",1]
[null,null,null,null,"zvkx01_c507__TY0V01","*=Kostenverzamelstaat!$I$20","","Huisartsen- Overige- incl balans","zvkx01","c507","","TY0V01","Euro's",null,"N","",1]
[null,null,null,null,"zvkx01_a507__TY0V01","*=Kostenverzamelstaat!$J$20","","Huisartsen- Overige- geaccepteerd","zvkx01","a507","","TY0V01","Euro's",null,"N","",1]
[null,null,null,null,"zvkx01_c507__TY1V01","*=Kostenverzamelstaat!$K$20","","Huisartsen- Overige- incl balans","zvkx01","c507","","TY1V01","Euro's",null,"N","",1]
[null,null,null,null,"zvkx01_a507__TY1V01","*=Kostenverzamelstaat!$L$20","","Huisartsen- Overige- geaccepteerd","zvkx01","a507","","TY1V01","Euro's",null,"N","",1]
[null,null,null,null,"zvkx01_c507__TY2V01","*=Kostenverzamelstaat!$M$20","","Huisartsen- Overige- incl balans","zvkx01","c507","","TY2V01","Euro's",null,"N","",1]
[null,null,null,null,"zvkx01_a507__TY2V01","*=Kostenverzamelstaat!$N$20","","Huisartsen- Overige- geaccepteerd","zvkx01","a507","","TY2V01","Euro's",null,"N","",1]
[null,null,null,null,"zvkx01_c510__TY0V01","*=Kostenverzamelstaat!$I$21","","Huisartsen- MDZ- incl balans","zvkx01","c510","","TY0V01","Euro's",null,"N","",1]
[null,null,null,null,"zvkx01_a510__TY0V01","*=Kostenverzamelstaat!$J$21","","Huisartsen- MDZ- geaccepteerd","zvkx01","a510","","TY0V01","Euro's",null,"N","",1]
[null,null,null,null,"zvkx01_c510__TY1V01","*=Kostenverzamelstaat!$K$21","","Huisartsen- MDZ- incl balans","zvkx01","c510","","TY1V01","Euro's",null,"N","",1]
[null,null,null,null,"zvkx01_a510__TY1V01","*=Kostenverzamelstaat!$L$21","","Huisartsen- MDZ- geaccepteerd","zvkx01","a510","","TY1V01","Euro's",null,"N","",1]
[null,null,null,null,"zvkx01_c510__TY2V01","*=Kostenverzamelstaat!$M$21","","Huisartsen- MDZ- incl balans","zvkx01","c510","","TY2V01","Euro's",null,"N","",1]
[null,null,null,null,"zvkx01_a510__TY2V01","*=Kostenverzamelstaat!$N$21","","Huisartsen- MDZ- geaccepteerd","zvkx01","a510","","TY2V01","Euro's",null,"N","",1]
[null,null,null,null,"zvkx01_c515__TY0V01","*=Kostenverzamelstaat!$I$22","","Huisartsen- Resultaatbel. huisartsen- incl balans","zvkx01","c515","","TY0V01","Euro's",null,"N","",1]
[null,null,null,null,"zvkx01_a515__TY0V01","*=Kostenverzamelstaat!$J$22","","Huisartsen- Resultaatbel. huisartsen- geaccepteerd","zvkx01","a515","","TY0V01","Euro's",null,"N","",1]
[null,null,null,null,"zvkx01_c515__TY1V01","*=Kostenverzamelstaat!$K$22","","Huisartsen- Resultaatbel. huisartsen- incl balans","zvkx01","c515","","TY1V01","Euro's",null,"N","",1]
[null,null,null,null,"zvkx01_a515__TY1V01","*=Kostenverzamelstaat!$L$22","","Huisartsen- Resultaatbel. huisartsen- geaccepteerd","zvkx01","a515","","TY1V01","Euro's",null,"N","",1]
[null,null,null,null,"zvkx01_c515__TY2V01","*=Kostenverzamelstaat!$M$22","","Huisartsen- Resultaatbel. huisartsen- incl balans","zvkx01","c515","","TY2V01","Euro's",null,"N","",1]
[null,null,null,null,"zvkx01_a515__TY2V01","*=Kostenverzamelstaat!$N$22","","Huisartsen- Resultaatbel. huisartsen- geaccepteerd","zvkx01","a515","","TY2V01","Euro's",null,"N","",1]
[null,null,null,null,"zvkx01_c516__TY0V01","*=Kostenverzamelstaat!$I$23","","Huisartsen- Resultaatbel. MDZ- incl balans","zvkx01","c516","","TY0V01","Euro's",null,"N","",1]
[null,null,null,null,"zvkx01_a516__TY0V01","*=Kostenverzamelstaat!$J$23","","Huisartsen- Resultaatbel. MDZ- geaccepteerd","zvkx01","a516","","TY0V01","Euro's",null,"N","",1]
[null,null,null,null,"zvkx01_c516__TY1V01","*=Kostenverzamelstaat!$K$23","","Huisartsen- Resultaatbel. MDZ- incl balans","zvkx01","c516","","TY1V01","Euro's",null,"N","",1]
[null,null,null,null,"zvkx01_a516__TY1V01","*=Kostenverzamelstaat!$L$23","","Huisartsen- Resultaatbel. MDZ- geaccepteerd","zvkx01","a516","","TY1V01","Euro's",null,"N","",1]
[null,null,null,null,"zvkx01_c516__TY2V01","*=Kostenverzamelstaat!$M$23","","Huisartsen- Resultaatbel. MDZ- incl balans","zvkx01","c516","","TY2V01","Euro's",null,"N","",1]
[null,null,null,null,"zvkx01_a516__TY2V01","*=Kostenverzamelstaat!$N$23","","Huisartsen- Resultaatbel. MDZ- geaccepteerd","zvkx01","a516","","TY2V01","Euro's",null,"N","",1]
[null,null,null,null,"zvkx01_c__TY0V01","*=Kostenverzamelstaat!$I$24"]
[null,null,null,null,"zvkx01_a__TY0V01","*=Kostenverzamelstaat!$J$24"]
[null,null,null,null,"zvkx01_c__TY1V01","*=Kostenverzamelstaat!$K$24"]
[null,null,null,null,"zvkx01_a__TY1V01","*=Kostenverzamelstaat!$L$24"]
[null,null,null,null,"zvkx01_c__TY2V01","*=Kostenverzamelstaat!$M$24"]
[null,null,null,null,"zvkx01_a__TY2V01","*=Kostenverzamelstaat!$N$24"]
[null,null,null,null,"zvkx02_c520__TY0V01","*=Kostenverzamelstaat!$I$26","","Farmaceutische hulp- incl balans","zvkx02","c520","","TY0V01","Euro's",null,"N","",1]
[null,null,null,null,"zvkx02_a520__TY0V01","*=Kostenverzamelstaat!$J$26","","Farmaceutische hulp- geaccepteerd","zvkx02","a520","","TY0V01","Euro's",null,"N","",1]
[null,null,null,null,"zvkx02_c520__TY1V01","*=Kostenverzamelstaat!$K$26","","Farmaceutische hulp- incl balans","zvkx02","c520","","TY1V01","Euro's",null,"N","",1]
[null,null,null,null,"zvkx02_a520__TY1V01","*=Kostenverzamelstaat!$L$26","","Farmaceutische hulp- geaccepteerd","zvkx02","a520","","TY1V01","Euro's",null,"N","",1]
[null,null,null,null,"zvkx02_c520__TY2V01","*=Kostenverzamelstaat!$M$26","","Farmaceutische hulp- incl balans","zvkx02","c520","","TY2V01","Euro's",null,"N","",1]
[null,null,null,null,"zvkx02_a520__TY2V01","*=Kostenverzamelstaat!$N$26","","Farmaceutische hulp- geaccepteerd","zvkx02","a520","","TY2V01","Euro's",null,"N","",1]
[null,null,null,null,"zvkx02_c__TY0V01","*=Kostenverzamelstaat!$I$27"]
[null,null,null,null,"zvkx02_a__TY0V01","*=Kostenverzamelstaat!$J$27"]
[null,null,null,null,"zvkx02_c__TY1V01","*=Kostenverzamelstaat!$K$27"]
[null,null,null,null,"zvkx02_a__TY1V01","*=Kostenverzamelstaat!$L$27"]
[null,null,null,null,"zvkx02_c__TY2V01","*=Kostenverzamelstaat!$M$27"]
[null,null,null,null,"zvkx02_a__TY2V01","*=Kostenverzamelstaat!$N$27"]
[null,null,null,null,"zvkx03_c530__TY0V01","*=Kostenverzamelstaat!$I$29","","Verpleging en verzorging- incl balans","zvkx03","c530","","TY0V01","Euro's",null,"N","",1]
[null,null,null,null,"zvkx03_a530__TY0V01","*=Kostenverzamelstaat!$J$29","","Verpleging en verzorging- geaccepteerd","zvkx03","a530","","TY0V01","Euro's",null,"N","",1]
[null,null,null,null,"zvkx03_c530__TY1V01","*=Kostenverzamelstaat!$K$29","","Verpleging en verzorging- incl balans","zvkx03","c530","","TY1V01","Euro's",null,"N","",1]
[null,null,null,null,"zvkx03_a530__TY1V01","*=Kostenverzamelstaat!$L$29","","Verpleging en verzorging- geaccepteerd","zvkx03","a530","","TY1V01","Euro's",null,"N","",1]
[null,null,null,null,"zvkx03_c530__TY2V01","*=Kostenverzamelstaat!$M$29","","Verpleging en verzorging- incl balans","zvkx03","c530","","TY2V01","Euro's",null,"N","",1]
[null,null,null,null,"zvkx03_a530__TY2V01","*=Kostenverzamelstaat!$N$29","","Verpleging en verzorging- geaccepteerd","zvkx03","a530","","TY2V01","Euro's",null,"N","",1]
[null,null,null,null,"zvkx03_c8031__TY2V01","*=Kostenverzamelstaat!$M$30",null,"Verpleging en verzorging- Meerkosten Corona indirect- incl balans","zvkx03","c8031","","TY2V01","Euro's",null,"N","",1]
[null,null,null,null,"zvkx03_a8031__TY2V01","*=Kostenverzamelstaat!$N$30",null,"Verpleging en verzorging- Meerkosten Corona indirect- geaccepteerd","zvkx03","a8031","","TY2V01","Euro's",null,"N","",1]
[null,null,null,null,"zvkx03_c__TY0V01","*=Kostenverzamelstaat!$I$31"]
[null,null,null,null,"zvkx03_a__TY0V01","*=Kostenverzamelstaat!$J$31"]
[null,null,null,null,"zvkx03_c__TY1V01","*=Kostenverzamelstaat!$K$31"]
[null,null,null,null,"zvkx03_a__TY1V01","*=Kostenverzamelstaat!$L$31"]
[null,null,null,null,"zvkx03_c__TY2V01","*=Kostenverzamelstaat!$M$31"]
[null,null,null,null,"zvkx03_a__TY2V01","*=Kostenverzamelstaat!$N$31"]
[null,null,null,null,"zvkx04_c5601__TY0V01","*=Kostenverzamelstaat!$I$33","","Mondzorg- volwassen verzekerden- incl balans","zvkx04","c5601","","TY0V01","Euro's",null,"N","",1]
[null,null,null,null,"zvkx04_a5601__TY0V01","*=Kostenverzamelstaat!$J$33","","Mondzorg- volwassen verzekerden- geaccepteerd","zvkx04","a5601","","TY0V01","Euro's",null,"N","",1]
[null,null,null,null,"zvkx04_c5601__TY1V01","*=Kostenverzamelstaat!$K$33","","Mondzorg- volwassen verzekerden- incl balans","zvkx04","c5601","","TY1V01","Euro's",null,"N","",1]
[null,null,null,null,"zvkx04_a5601__TY1V01","*=Kostenverzamelstaat!$L$33","","Mondzorg- volwassen verzekerden- geaccepteerd","zvkx04","a5601","","TY1V01","Euro's",null,"N","",1]
[null,null,null,null,"zvkx04_c5601__TY2V01","*=Kostenverzamelstaat!$M$33","","Mondzorg- volwassen verzekerden- incl balans","zvkx04","c5601","","TY2V01","Euro's",null,"N","",1]
[null,null,null,null,"zvkx04_a5601__TY2V01","*=Kostenverzamelstaat!$N$33","","Mondzorg- volwassen verzekerden- geaccepteerd","zvkx04","a5601","","TY2V01","Euro's",null,"N","",1]
[null,null,null,null,"zvkx04_c5602__TY0V01","*=Kostenverzamelstaat!$I$34","","Mondzorg- jeugdige verzekerden- incl balans","zvkx04","c5602","","TY0V01","Euro's",null,"N","",1]
[null,null,null,null,"zvkx04_a5602__TY0V01","*=Kostenverzamelstaat!$J$34","","Mondzorg- jeugdige verzekerden- geaccepteerd","zvkx04","a5602","","TY0V01","Euro's",null,"N","",1]
[null,null,null,null,"zvkx04_c5602__TY1V01","*=Kostenverzamelstaat!$K$34","","Mondzorg- jeugdige verzekerden- incl balans","zvkx04","c5602","","TY1V01","Euro's",null,"N","",1]
[null,null,null,null,"zvkx04_a5602__TY1V01","*=Kostenverzamelstaat!$L$34","","Mondzorg- jeugdige verzekerden- geaccepteerd","zvkx04","a5602","","TY1V01","Euro's",null,"N","",1]
[null,null,null,null,"zvkx04_c5602__TY2V01","*=Kostenverzamelstaat!$M$34","","Mondzorg- jeugdige verzekerden- incl balans","zvkx04","c5602","","TY2V01","Euro's",null,"N","",1]
[null,null,null,null,"zvkx04_a5602__TY2V01","*=Kostenverzamelstaat!$N$34","","Mondzorg- jeugdige verzekerden- geaccepteerd","zvkx04","a5602","","TY2V01","Euro's",null,"N","",1]
[null,null,null,null,"zvkx04_c561__TY0V01","*=Kostenverzamelstaat!$I$35","","Mondzorg- gebitsprothesen- incl balans","zvkx04","c561","","TY0V01","Euro's",null,"N","",1]
[null,null,null,null,"zvkx04_a561__TY0V01","*=Kostenverzamelstaat!$J$35","","Mondzorg- gebitsprothesen- geaccepteerd","zvkx04","a561","","TY0V01","Euro's",null,"N","",1]
[null,null,null,null,"zvkx04_c561__TY1V01","*=Kostenverzamelstaat!$K$35","","Mondzorg- gebitsprothesen- incl balans","zvkx04","c561","","TY1V01","Euro's",null,"N","",1]
[null,null,null,null,"zvkx04_a561__TY1V01","*=Kostenverzamelstaat!$L$35","","Mondzorg- gebitsprothesen- geaccepteerd","zvkx04","a561","","TY1V01","Euro's",null,"N","",1]
[null,null,null,null,"zvkx04_c561__TY2V01","*=Kostenverzamelstaat!$M$35","","Mondzorg- gebitsprothesen- incl balans","zvkx04","c561","","TY2V01","Euro's",null,"N","",1]
[null,null,null,null,"zvkx04_a561__TY2V01","*=Kostenverzamelstaat!$N$35","","Mondzorg- gebitsprothesen- geaccepteerd","zvkx04","a561","","TY2V01","Euro's",null,"N","",1]
[null,null,null,null,"zvkx04_c__TY0V01","*=Kostenverzamelstaat!$I$36"]
[null,null,null,null,"zvkx04_a__TY0V01","*=Kostenverzamelstaat!$J$36"]
[null,null,null,null,"zvkx04_c__TY1V01","*=Kostenverzamelstaat!$K$36"]
[null,null,null,null,"zvkx04_a__TY1V01","*=Kostenverzamelstaat!$L$36"]
[null,null,null,null,"zvkx04_c__TY2V01","*=Kostenverzamelstaat!$M$36"]
[null,null,null,null,"zvkx04_a__TY2V01","*=Kostenverzamelstaat!$N$36"]
[null,null,null,null,"zvkx05_c580__TY0V01","*=Kostenverzamelstaat!$I$38","","Verloskundige hulp- door verloskundigen- incl balans","zvkx05","c580","","TY0V01","Euro's",null,"N","",1]
[null,null,null,null,"zvkx05_a580__TY0V01","*=Kostenverzamelstaat!$J$38","","Verloskundige hulp- door verloskundigen- geaccepteerd","zvkx05","a580","","TY0V01","Euro's",null,"N","",1]
[null,null,null,null,"zvkx05_c580__TY1V01","*=Kostenverzamelstaat!$K$38","","Verloskundige hulp- door verloskundigen- incl balans","zvkx05","c580","","TY1V01","Euro's",null,"N","",1]
[null,null,null,null,"zvkx05_a580__TY1V01","*=Kostenverzamelstaat!$L$38","","Verloskundige hulp- door verloskundigen- geaccepteerd","zvkx05","a580","","TY1V01","Euro's",null,"N","",1]
[null,null,null,null,"zvkx05_c580__TY2V01","*=Kostenverzamelstaat!$M$38","","Verloskundige hulp- door verloskundigen- incl balans","zvkx05","c580","","TY2V01","Euro's",null,"N","",1]
[null,null,null,null,"zvkx05_a580__TY2V01","*=Kostenverzamelstaat!$N$38","","Verloskundige hulp- door verloskundigen- geaccepteerd","zvkx05","a580","","TY2V01","Euro's",null,"N","",1]
[null,null,null,null,"zvkx05_c582__TY0V01","*=Kostenverzamelstaat!$I$39","","Verloskundige hulp- Integrale geboortezorg-  incl balans","zvkx05","c582","","TY0V01","Euro's",null,"N","",1]
[null,null,null,null,"zvkx05_a582__TY0V01","*=Kostenverzamelstaat!$J$39","","Verloskundige hulp- Integrale geboortezorg- geaccepteerd","zvkx05","a582","","TY0V01","Euro's",null,"N","",1]
[null,null,null,null,"zvkx05_c582__TY1V01","*=Kostenverzamelstaat!$K$39","","Verloskundige hulp- Integrale geboortezorg-  incl balans","zvkx05","c582","","TY1V01","Euro's",null,"N","",1]
[null,null,null,null,"zvkx05_a582__TY1V01","*=Kostenverzamelstaat!$L$39","","Verloskundige hulp- Integrale geboortezorg- geaccepteerd","zvkx05","a582","","TY1V01","Euro's",null,"N","",1]
[null,null,null,null,"zvkx05_c582__TY2V01","*=Kostenverzamelstaat!$M$39","","Verloskundige hulp- Integrale geboortezorg-  incl balans","zvkx05","c582","","TY2V01","Euro's",null,"N","",1]
[null,null,null,null,"zvkx05_a582__TY2V01","*=Kostenverzamelstaat!$N$39","","Verloskundige hulp- Integrale geboortezorg- geaccepteerd","zvkx05","a582","","TY2V01","Euro's",null,"N","",1]
[null,null,null,null,"zvkx05_c__TY0V01","*=Kostenverzamelstaat!$I$40"]
[null,null,null,null,"zvkx05_a__TY0V01","*=Kostenverzamelstaat!$J$40"]
[null,null,null,null,"zvkx05_c__TY1V01","*=Kostenverzamelstaat!$K$40"]
[null,null,null,null,"zvkx05_a__TY1V01","*=Kostenverzamelstaat!$L$40"]
[null,null,null,null,"zvkx05_c__TY2V01","*=Kostenverzamelstaat!$M$40"]
[null,null,null,null,"zvkx05_a__TY2V01","*=Kostenverzamelstaat!$N$40"]
[null,null,null,null,"zvkx06_c545__TY0V01","*=Kostenverzamelstaat!$I$54","","Medisch specialistische hulp- mondziekten en kaakchirurgie- incl balans","zvkx06","c545","","TY0V01","Euro's",null,"N","",1]
[null,null,null,null,"zvkx06_a545__TY0V01","*=Kostenverzamelstaat!$J$54","","Medisch specialistische hulp- mondziekten en kaakchirurgie- geaccepteerd","zvkx06","a545","","TY0V01","Euro's",null,"N","",1]
[null,null,null,null,"zvkx06_c545__TY1V01","*=Kostenverzamelstaat!$K$54","","Medisch specialistische hulp- mondziekten en kaakchirurgie- incl balans","zvkx06","c545","","TY1V01","Euro's",null,"N","",1]
[null,null,null,null,"zvkx06_a545__TY1V01","*=Kostenverzamelstaat!$L$54","","Medisch specialistische hulp- mondziekten en kaakchirurgie- geaccepteerd","zvkx06","a545","","TY1V01","Euro's",null,"N","",1]
[null,null,null,null,"zvkx06_c545__TY2V01","*=Kostenverzamelstaat!$M$54","","Medisch specialistische hulp- mondziekten en kaakchirurgie- incl balans","zvkx06","c545","","TY2V01","Euro's",null,"N","",1]
[null,null,null,null,"zvkx06_a545__TY2V01","*=Kostenverzamelstaat!$N$54","","Medisch specialistische hulp- mondziekten en kaakchirurgie- geaccepteerd","zvkx06","a545","","TY2V01","Euro's",null,"N","",1]
[null,null,null,null,"zvkx06_c610__TY2V01","*=Kostenverzamelstaat!$M$55","","Medisch specialistische hulp- Overige ziekenhuiszorg,curatief- incl balans","zvkx06","c610","","TY2V01","Euro's",null,"N","",1]
[null,null,null,null,"zvkx06_a610__TY2V01","*=Kostenverzamelstaat!$N$55","","Medisch specialistische hulp- Overige ziekenhuiszorg,curatief- geaccepteerd","zvkx06","a610","","TY2V01","Euro's",null,"N","",1]
[null,null,null,null,"zvkx06_c6101__TY0V01","*=Kostenverzamelstaat!$I$56","","Medisch specialistische hulp- Overige zorg- incl balans","zvkx06","c6101","","TY0V01","Euro's",null,"N","",1]
[null,null,null,null,"zvkx06_a6101__TY0V01","*=Kostenverzamelstaat!$J$56","","Medisch specialistische hulp- Overige zorg- geaccepteerd","zvkx06","a6101","","TY0V01","Euro's",null,"N","",1]
[null,null,null,null,"zvkx06_c6101__TY1V01","*=Kostenverzamelstaat!$K$56","","Medisch specialistische hulp- Overige zorg- incl balans","zvkx06","c6101","","TY1V01","Euro's",null,"N","",1]
[null,null,null,null,"zvkx06_a6101__TY1V01","*=Kostenverzamelstaat!$L$56","","Medisch specialistische hulp- Overige zorg- geaccepteerd","zvkx06","a6101","","TY1V01","Euro's",null,"N","",1]
[null,null,null,null,"zvkx06_c6102__TY0V01","*=Kostenverzamelstaat!$I$57","","Medisch specialistische hulp- add-on's Dure geneesmiddelen- incl balans","zvkx06","c6102","","TY0V01","Euro's",null,"N","",1]
[null,null,null,null,"zvkx06_a6102__TY0V01","*=Kostenverzamelstaat!$J$57","","Medisch specialistische hulp- add-on's Dure geneesmiddelen- geaccepteerd","zvkx06","a6102","","TY0V01","Euro's",null,"N","",1]
[null,null,null,null,"zvkx06_c6102__TY1V01","*=Kostenverzamelstaat!$K$57","","Medisch specialistische hulp- add-on's Dure geneesmiddelen- incl balans","zvkx06","c6102","","TY1V01","Euro's",null,"N","",1]
[null,null,null,null,"zvkx06_a6102__TY1V01","*=Kostenverzamelstaat!$L$57","","Medisch specialistische hulp- add-on's Dure geneesmiddelen- geaccepteerd","zvkx06","a6102","","TY1V01","Euro's",null,"N","",1]
[null,null,null,null,"zvkx06_c611__TY0V01","*=Kostenverzamelstaat!$I$58","","Medisch specialistische hulp- Overige zorg- incl balans","zvkx06","c611","","TY0V01","Euro's",null,"N","",1]
[null,null,null,null,"zvkx06_a611__TY0V01","*=Kostenverzamelstaat!$J$58","","Medisch specialistische hulp- Overige zorg- geaccepteerd","zvkx06","a611","","TY0V01","Euro's",null,"N","",1]
[null,null,null,null,"zvkx06_c611__TY1V01","*=Kostenverzamelstaat!$K$58","","Medisch specialistische hulp- Overige zorg- incl balans","zvkx06","c611","","TY1V01","Euro's",null,"N","",1]
[null,null,null,null,"zvkx06_a611__TY1V01","*=Kostenverzamelstaat!$L$58","","Medisch specialistische hulp- Overige zorg- geaccepteerd","zvkx06","a611","","TY1V01","Euro's",null,"N","",1]
[null,null,null,null,"zvkx06_c611__TY2V01","*=Kostenverzamelstaat!$M$58","","Medisch specialistische hulp- Overige zorg- incl balans","zvkx06","c611","","TY2V01","Euro's",null,"N","",1]
[null,null,null,null,"zvkx06_a611__TY2V01","*=Kostenverzamelstaat!$N$58","","Medisch specialistische hulp- Overige zorg- geaccepteerd","zvkx06","a611","","TY2V01","Euro's",null,"N","",1]
[null,null,null,null,"zvkx06_c6121__TY0V01","*=Kostenverzamelstaat!$I$59","","Medisch specialistische hulp- add-on's Dure geneesmiddelen- incl balans","zvkx06","c6121","","TY0V01","Euro's",null,"N","",1]
[null,null,null,null,"zvkx06_a6121__TY0V01","*=Kostenverzamelstaat!$J59","","Medisch specialistische hulp- add-on's Dure geneesmiddelen- geaccepteerd","zvkx06","a6121","","TY0V01","Euro's",null,"N","",1]
[null,null,null,null,"zvkx06_c6121__TY1V01","*=Kostenverzamelstaat!$K$59","","Medisch specialistische hulp- add-on's Dure geneesmiddelen- incl balans","zvkx06","c6121","","TY1V01","Euro's",null,"N","",1]
[null,null,null,null,"zvkx06_a6121__TY1V01","*=Kostenverzamelstaat!$L59","","Medisch specialistische hulp- add-on's Dure geneesmiddelen- geaccepteerd","zvkx06","a6121","","TY1V01","Euro's",null,"N","",1]
[null,null,null,null,"zvkx06_c6121__TY2V01","*=Kostenverzamelstaat!$M$59","","Medisch specialistische hulp- add-on's Dure geneesmiddelen- incl balans","zvkx06","c6121","","TY2V01","Euro's",null,"N","",1]
[null,null,null,null,"zvkx06_a6121__TY2V01","*=Kostenverzamelstaat!$N$59","","Medisch specialistische hulp- add-on's Dure geneesmiddelen- geaccepteerd","zvkx06","a6121","","TY2V01","Euro's",null,"N","",1]
[null,null,null,null,"zvkx06_c6122__TY0V01","*=Kostenverzamelstaat!$I$60","","Medisch specialistische hulp- IC- incl balans","zvkx06","c6122","","TY0V01","Euro's",null,"N","",1]
[null,null,null,null,"zvkx06_a6122__TY0V01","*=Kostenverzamelstaat!$J$60","","Medisch specialistische hulp- IC- geaccepteerd","zvkx06","a6122","","TY0V01","Euro's",null,"N","",1]
[null,null,null,null,"zvkx06_c6122__TY1V01","*=Kostenverzamelstaat!$K$60","","Medisch specialistische hulp- IC- incl balans","zvkx06","c6122","","TY1V01","Euro's",null,"N","",1]
[null,null,null,null,"zvkx06_a6122__TY1V01","*=Kostenverzamelstaat!$L$60","","Medisch specialistische hulp- IC- geaccepteerd","zvkx06","a6122","","TY1V01","Euro's",null,"N","",1]
[null,null,null,null,"zvkx06_c6122__TY2V01","*=Kostenverzamelstaat!$M$60","","Medisch specialistische hulp- IC- incl balans","zvkx06","c6122","","TY2V01","Euro's",null,"N","",1]
[null,null,null,null,"zvkx06_a6122__TY2V01","*=Kostenverzamelstaat!$N$60","","Medisch specialistische hulp- IC- geaccepteerd","zvkx06","a6122","","TY2V01","Euro's",null,"N","",1]
[null,null,null,null,"zvkx06_c6131__TY0V01","*=Kostenverzamelstaat!$I$61","","Medisch specialistische hulp- Integraal DBC-zorgproduct gereguleerd- incl balans","zvkx06","c6131","","TY0V01","Euro's",null,"N","",1]
[null,null,null,null,"zvkx06_a6131__TY0V01","*=Kostenverzamelstaat!$J$61","","Medisch specialistische hulp- Integraal DBC-zorgproduct gereguleerd- geaccepteerd","zvkx06","a6131","","TY0V01","Euro's",null,"N","",1]
[null,null,null,null,"zvkx06_c6131__TY1V01","*=Kostenverzamelstaat!$K$61","","Medisch specialistische hulp- Integraal DBC-zorgproduct gereguleerd- incl balans","zvkx06","c6131","","TY1V01","Euro's",null,"N","",1]
[null,null,null,null,"zvkx06_a6131__TY1V01","*=Kostenverzamelstaat!$L$61","","Medisch specialistische hulp- Integraal DBC-zorgproduct gereguleerd- geaccepteerd","zvkx06","a6131","","TY1V01","Euro's",null,"N","",1]
[null,null,null,null,"zvkx06_c6131__TY2V01","*=Kostenverzamelstaat!$M$61","","Medisch specialistische hulp- Integraal DBC-zorgproduct gereguleerd- incl balans","zvkx06","c6131","","TY2V01","Euro's",null,"N","",1]
[null,null,null,null,"zvkx06_a6131__TY2V01","*=Kostenverzamelstaat!$N$61","","Medisch specialistische hulp- Integraal DBC-zorgproduct gereguleerd- geaccepteerd","zvkx06","a6131","","TY2V01","Euro's",null,"N","",1]
[null,null,null,null,"zvkx06_c6151__TY0V01","*=Kostenverzamelstaat!$I$62","","Medisch specialistische hulp- Integraal DBC-zorgproduct vrije segment- incl balans","zvkx06","c6151","","TY0V01","Euro's",null,"N","",1]
[null,null,null,null,"zvkx06_a6151__TY0V01","*=Kostenverzamelstaat!$J$62","","Medisch specialistische hulp- Integraal DBC-zorgproduct vrije segment- geaccepteerd","zvkx06","a6151","","TY0V01","Euro's",null,"N","",1]
[null,null,null,null,"zvkx06_c6151__TY1V01","*=Kostenverzamelstaat!$K$62","","Medisch specialistische hulp- Integraal DBC-zorgproduct vrije segment- incl balans","zvkx06","c6151","","TY1V01","Euro's",null,"N","",1]
[null,null,null,null,"zvkx06_a6151__TY1V01","*=Kostenverzamelstaat!$L$62","","Medisch specialistische hulp- Integraal DBC-zorgproduct vrije segment- geaccepteerd","zvkx06","a6151","","TY1V01","Euro's",null,"N","",1]
[null,null,null,null,"zvkx06_c6151__TY2V01","*=Kostenverzamelstaat!$M$62","","Medisch specialistische hulp- Integraal DBC-zorgproduct vrije segment- incl balans","zvkx06","c6151","","TY2V01","Euro's",null,"N","",1]
[null,null,null,null,"zvkx06_a6151__TY2V01","*=Kostenverzamelstaat!$N$62","","Medisch specialistische hulp- Integraal DBC-zorgproduct vrije segment- geaccepteerd","zvkx06","a6151","","TY2V01","Euro's",null,"N","",1]
[null,null,null,null,"zvkx06_c619__TY0V01","*=Kostenverzamelstaat!$I$63","","Medisch specialistische hulp- honoraria extramuraal- incl balans","zvkx06","c619","","TY0V01","Euro's",null,"N","",1]
[null,null,null,null,"zvkx06_a619__TY0V01","*=Kostenverzamelstaat!$J$63","","Medisch specialistische hulp- honoraria extramuraal- geaccepteerd","zvkx06","a619","","TY0V01","Euro's",null,"N","",1]
[null,null,null,null,"zvkx06_c619__TY1V01","*=Kostenverzamelstaat!$K$63","","Medisch specialistische hulp- honoraria extramuraal- incl balans","zvkx06","c619","","TY1V01","Euro's",null,"N","",1]
[null,null,null,null,"zvkx06_a619__TY1V01","*=Kostenverzamelstaat!$L$63","","Medisch specialistische hulp- honoraria extramuraal- geaccepteerd","zvkx06","a619","","TY1V01","Euro's",null,"N","",1]
[null,null,null,null,"zvkx06_c619__TY2V01","*=Kostenverzamelstaat!$M$63","","Medisch specialistische hulp- honoraria extramuraal- incl balans","zvkx06","c619","","TY2V01","Euro's",null,"N","",1]
[null,null,null,null,"zvkx06_a619__TY2V01","*=Kostenverzamelstaat!$N$63","","Medisch specialistische hulp- honoraria extramuraal- geaccepteerd","zvkx06","a619","","TY2V01","Euro's",null,"N","",1]
[null,null,null,null,"zvkx06_c8061__TY2V01","*=Kostenverzamelstaat!$M$64",null,"Medisch specialistische hulp- Meerkosten Corona indirect en toeslagen- incl balans","zvkx06","c8061",null,"TY2V01","Euro's",null,"N","",1]
[null,null,null,null,"zvkx06_a8061__TY2V01","*=Kostenverzamelstaat!$N$64",null,"Medisch specialistische hulp- Meerkosten Corona indirect en toeslagen- geaccepteerd","zvkx06","a8061",null,"TY2V01","Euro's",null,"N","",1]
[null,null,null,null,"zvkx06_c8062__TY1V01","*=Kostenverzamelstaat!$K$65",null,"Medisch specialistische hulp- Meerkosten Corona indirect en toeslagen- incl balans","zvkx06","c8062",null,"TY1V01","Euro's",null,"N","",1]
[null,null,null,null,"zvkx06_a8062__TY1V01","*=Kostenverzamelstaat!$L$65",null,"Medisch specialistische hulp- Meerkosten Corona indirect en toeslagen- geaccepteerd","zvkx06","a8062",null,"TY1V01","Euro's",null,"N","",1]
[null,null,null,null,"zvkx06_c8062__TY2V01","*=Kostenverzamelstaat!$M$65",null,"Medisch specialistische hulp- Meerkosten Corona indirect en toeslagen- incl balans","zvkx06","c8062",null,"TY2V01","Euro's",null,"N","",1]
[null,null,null,null,"zvkx06_a8062__TY2V01","*=Kostenverzamelstaat!$N$65",null,"Medisch specialistische hulp- Meerkosten Corona indirect en toeslagen- geaccepteerd","zvkx06","a8062",null,"TY2V01","Euro's",null,"N","",1]
[null,null,null,null,"zvkx06_c__TY0V01","*=Kostenverzamelstaat!$I$66"]
[null,null,null,null,"zvkx06_a__TY0V01","*=Kostenverzamelstaat!$J$66"]
[null,null,null,null,"zvkx06_c__TY1V01","*=Kostenverzamelstaat!$K$66"]
[null,null,null,null,"zvkx06_a__TY1V01","*=Kostenverzamelstaat!$L$66"]
[null,null,null,null,"zvkx06_c__TY2V01","*=Kostenverzamelstaat!$M$66"]
[null,null,null,null,"zvkx06_a__TY2V01","*=Kostenverzamelstaat!$N$66"]
[null,null,null,null,"zvkx07_c620__TY0V01","*=Kostenverzamelstaat!$I$68","","paramedische hulp- fysiotherapie- incl balans","zvkx07","c620","","TY0V01","Euro's",null,"N","",1]
[null,null,null,null,"zvkx07_a620__TY0V01","*=Kostenverzamelstaat!$J$68","","paramedische hulp- fysiotherapie- geaccepteerd","zvkx07","a620","","TY0V01","Euro's",null,"N","",1]
[null,null,null,null,"zvkx07_c620__TY1V01","*=Kostenverzamelstaat!$K$68","","paramedische hulp- fysiotherapie- incl balans","zvkx07","c620","","TY1V01","Euro's",null,"N","",1]
[null,null,null,null,"zvkx07_a620__TY1V01","*=Kostenverzamelstaat!$L$68","","paramedische hulp- fysiotherapie- geaccepteerd","zvkx07","a620","","TY1V01","Euro's",null,"N","",1]
[null,null,null,null,"zvkx07_c620__TY2V01","*=Kostenverzamelstaat!$M$68","","paramedische hulp- fysiotherapie- incl balans","zvkx07","c620","","TY2V01","Euro's",null,"N","",1]
[null,null,null,null,"zvkx07_a620__TY2V01","*=Kostenverzamelstaat!$N$68","","paramedische hulp- fysiotherapie- geaccepteerd","zvkx07","a620","","TY2V01","Euro's",null,"N","",1]
[null,null,null,null,"zvkx07_c621__TY0V01","*=Kostenverzamelstaat!$I$69","","paramedische hulp- Mensendieck/Cesar- incl balans","zvkx07","c621","","TY0V01","Euro's",null,"N","",1]
[null,null,null,null,"zvkx07_a621__TY0V01","*=Kostenverzamelstaat!$J$69","","paramedische hulp- Mensendieck/Cesar- geaccepteerd","zvkx07","a621","","TY0V01","Euro's",null,"N","",1]
[null,null,null,null,"zvkx07_c621__TY1V01","*=Kostenverzamelstaat!$K$69","","paramedische hulp- Mensendieck/Cesar- incl balans","zvkx07","c621","","TY1V01","Euro's",null,"N","",1]
[null,null,null,null,"zvkx07_a621__TY1V01","*=Kostenverzamelstaat!$L$69","","paramedische hulp- Mensendieck/Cesar- geaccepteerd","zvkx07","a621","","TY1V01","Euro's",null,"N","",1]
[null,null,null,null,"zvkx07_c621__TY2V01","*=Kostenverzamelstaat!$M$69","","paramedische hulp- Mensendieck/Cesar- incl balans","zvkx07","c621","","TY2V01","Euro's",null,"N","",1]
[null,null,null,null,"zvkx07_a621__TY2V01","*=Kostenverzamelstaat!$N$69","","paramedische hulp- Mensendieck/Cesar- geaccepteerd","zvkx07","a621","","TY2V01","Euro's",null,"N","",1]
[null,null,null,null,"zvkx07_c623__TY0V01","*=Kostenverzamelstaat!$I$70","","paramedische hulp- logopedie- incl balans","zvkx07","c623","","TY0V01","Euro's",null,"N","",1]
[null,null,null,null,"zvkx07_a623__TY0V01","*=Kostenverzamelstaat!$J$70","","paramedische hulp- logopedie- geaccepteerd","zvkx07","a623","","TY0V01","Euro's",null,"N","",1]
[null,null,null,null,"zvkx07_c623__TY1V01","*=Kostenverzamelstaat!$K$70","","paramedische hulp- logopedie- incl balans","zvkx07","c623","","TY1V01","Euro's",null,"N","",1]
[null,null,null,null,"zvkx07_a623__TY1V01","*=Kostenverzamelstaat!$L$70","","paramedische hulp- logopedie- geaccepteerd","zvkx07","a623","","TY1V01","Euro's",null,"N","",1]
[null,null,null,null,"zvkx07_c623__TY2V01","*=Kostenverzamelstaat!$M$70","","paramedische hulp- logopedie- incl balans","zvkx07","c623","","TY2V01","Euro's",null,"N","",1]
[null,null,null,null,"zvkx07_a623__TY2V01","*=Kostenverzamelstaat!$N$70","","paramedische hulp- logopedie- geaccepteerd","zvkx07","a623","","TY2V01","Euro's",null,"N","",1]
[null,null,null,null,"zvkx07_c624__TY0V01","*=Kostenverzamelstaat!$I$71","","paramedische hulp- ergotherapie- incl balans","zvkx07","c624","","TY0V01","Euro's",null,"N","",1]
[null,null,null,null,"zvkx07_a624__TY0V01","*=Kostenverzamelstaat!$J$71","","paramedische hulp- ergotherapie- geaccepteerd","zvkx07","a624","","TY0V01","Euro's",null,"N","",1]
[null,null,null,null,"zvkx07_c624__TY1V01","*=Kostenverzamelstaat!$K$71","","paramedische hulp- ergotherapie- incl balans","zvkx07","c624","","TY1V01","Euro's",null,"N","",1]
[null,null,null,null,"zvkx07_a624__TY1V01","*=Kostenverzamelstaat!$L$71","","paramedische hulp- ergotherapie- geaccepteerd","zvkx07","a624","","TY1V01","Euro's",null,"N","",1]
[null,null,null,null,"zvkx07_c624__TY2V01","*=Kostenverzamelstaat!$M$71","","paramedische hulp- ergotherapie- incl balans","zvkx07","c624","","TY2V01","Euro's",null,"N","",1]
[null,null,null,null,"zvkx07_a624__TY2V01","*=Kostenverzamelstaat!$N$71","","paramedische hulp- ergotherapie- geaccepteerd","zvkx07","a624","","TY2V01","Euro's",null,"N","",1]
[null,null,null,null,"zvkx07_c625__TY0V01","*=Kostenverzamelstaat!$I$72","","paramedische hulp- dieetadvisering- incl balans","zvkx07","c625","","TY0V01","Euro's",null,"N","",1]
[null,null,null,null,"zvkx07_a625__TY0V01","*=Kostenverzamelstaat!$J$72","","paramedische hulp- dieetadvisering- geaccepteerd","zvkx07","a625","","TY0V01","Euro's",null,"N","",1]
[null,null,null,null,"zvkx07_c625__TY1V01","*=Kostenverzamelstaat!$K$72","","paramedische hulp- dieetadvisering- incl balans","zvkx07","c625","","TY1V01","Euro's",null,"N","",1]
[null,null,null,null,"zvkx07_a625__TY1V01","*=Kostenverzamelstaat!$L$72","","paramedische hulp- dieetadvisering- geaccepteerd","zvkx07","a625","","TY1V01","Euro's",null,"N","",1]
[null,null,null,null,"zvkx07_c625__TY2V01","*=Kostenverzamelstaat!$M$72","","paramedische hulp- dieetadvisering- incl balans","zvkx07","c625","","TY2V01","Euro's",null,"N","",1]
[null,null,null,null,"zvkx07_a625__TY2V01","*=Kostenverzamelstaat!$N$72","","paramedische hulp- dieetadvisering- geaccepteerd","zvkx07","a625","","TY2V01","Euro's",null,"N","",1]
[null,null,null,null,"zvkx07_c626__TY0V01","*=Kostenverzamelstaat!$I$73","","paramedische hulp- GLI-  incl balans","zvkx07","c626","","TY0V01","Euro's",null,"N","",1]
[null,null,null,null,"zvkx07_a626__TY0V01","*=Kostenverzamelstaat!$J$73","","paramedische hulp- GLI- geaccepteerd","zvkx07","a626","","TY0V01","Euro's",null,"N","",1]
[null,null,null,null,"zvkx07_c626__TY1V01","*=Kostenverzamelstaat!$K$73","","paramedische hulp- GLI-  incl balans","zvkx07","c626","","TY1V01","Euro's",null,"N","",1]
[null,null,null,null,"zvkx07_a626__TY1V01","*=Kostenverzamelstaat!$L$73","","paramedische hulp- GLI- geaccepteerd","zvkx07","a626","","TY1V01","Euro's",null,"N","",1]
[null,null,null,null,"zvkx07_c626__TY2V01","*=Kostenverzamelstaat!$M$73","","paramedische hulp- GLI-  incl balans","zvkx07","c626","","TY2V01","Euro's",null,"N","",1]
[null,null,null,null,"zvkx07_a626__TY2V01","*=Kostenverzamelstaat!$N$73","","paramedische hulp- GLI- geaccepteerd","zvkx07","a626","","TY2V01","Euro's",null,"N","",1]
[null,null,null,null,"zvkx07_c__TY0V01","*=Kostenverzamelstaat!$I$74"]
[null,null,null,null,"zvkx07_a__TY0V01","*=Kostenverzamelstaat!$J$74"]
[null,null,null,null,"zvkx07_c__TY1V01","*=Kostenverzamelstaat!$K$74"]
[null,null,null,null,"zvkx07_a__TY1V01","*=Kostenverzamelstaat!$L$74"]
[null,null,null,null,"zvkx07_c__TY2V01","*=Kostenverzamelstaat!$M$74"]
[null,null,null,null,"zvkx07_a__TY2V01","*=Kostenverzamelstaat!$N$74"]
[null,null,null,null,"zvkx08_c640__TY0V01","*=Kostenverzamelstaat!$I$76","","Hulpmiddelen-- incl balans","zvkx08","c640","","TY0V01","Euro's",null,"N","",1]
[null,null,null,null,"zvkx08_a640__TY0V01","*=Kostenverzamelstaat!$J$76","","Hulpmiddelen-- geaccepteerd","zvkx08","a640","","TY0V01","Euro's",null,"N","",1]
[null,null,null,null,"zvkx08_c640__TY1V01","*=Kostenverzamelstaat!$K$76","","Hulpmiddelen-- incl balans","zvkx08","c640","","TY1V01","Euro's",null,"N","",1]
[null,null,null,null,"zvkx08_a640__TY1V01","*=Kostenverzamelstaat!$L$76","","Hulpmiddelen-- geaccepteerd","zvkx08","a640","","TY1V01","Euro's",null,"N","",1]
[null,null,null,null,"zvkx08_c640__TY2V01","*=Kostenverzamelstaat!$M$76","","Hulpmiddelen-- incl balans","zvkx08","c640","","TY2V01","Euro's",null,"N","",1]
[null,null,null,null,"zvkx08_a640__TY2V01","*=Kostenverzamelstaat!$N$76","","Hulpmiddelen-- geaccepteerd","zvkx08","a640","","TY2V01","Euro's",null,"N","",1]
[null,null,null,null,"zvkx08_c__TY0V01","*=Kostenverzamelstaat!$I$77"]
[null,null,null,null,"zvkx08_a__TY0V01","*=Kostenverzamelstaat!$J$77"]
[null,null,null,null,"zvkx08_c__TY1V01","*=Kostenverzamelstaat!$K$77"]
[null,null,null,null,"zvkx08_a__TY1V01","*=Kostenverzamelstaat!$L$77"]
[null,null,null,null,"zvkx08_c__TY2V01","*=Kostenverzamelstaat!$M$77"]
[null,null,null,null,"zvkx08_a__TY2V01","*=Kostenverzamelstaat!$N$77"]
[null,null,null,null,"zvkx09_c650__TY0V01","*=Kostenverzamelstaat!$I$79","","Ziekenvervoer- ambulance/helicopter- incl balans","zvkx09","c650","","TY0V01","Euro's",null,"N","",1]
[null,null,null,null,"zvkx09_a650__TY0V01","*=Kostenverzamelstaat!$J$79","","Ziekenvervoer- ambulance/helicopter- geaccepteerd","zvkx09","a650","","TY0V01","Euro's",null,"N","",1]
[null,null,null,null,"zvkx09_c650__TY1V01","*=Kostenverzamelstaat!$K$79","","Ziekenvervoer- ambulance/helicopter- incl balans","zvkx09","c650","","TY1V01","Euro's",null,"N","",1]
[null,null,null,null,"zvkx09_a650__TY1V01","*=Kostenverzamelstaat!$L$79","","Ziekenvervoer- ambulance/helicopter- geaccepteerd","zvkx09","a650","","TY1V01","Euro's",null,"N","",1]
[null,null,null,null,"zvkx09_c650__TY2V01","*=Kostenverzamelstaat!$M$79","","Ziekenvervoer- ambulance/helicopter- incl balans","zvkx09","c650","","TY2V01","Euro's",null,"N","",1]
[null,null,null,null,"zvkx09_a650__TY2V01","*=Kostenverzamelstaat!$N$79","","Ziekenvervoer- ambulance/helicopter- geaccepteerd","zvkx09","a650","","TY2V01","Euro's",null,"N","",1]
[null,null,null,null,"zvkx09_c6501__TY0V01","*=Kostenverzamelstaat!$I$80","","Ziekenvervoer- regionale ambulance- incl balans","zvkx09","c6501","","TY0V01","Euro's",null,"N","",1]
[null,null,null,null,"zvkx09_a6501__TY0V01","*=Kostenverzamelstaat!$J$80","","Ziekenvervoer- regionale ambulance- geaccepteerd","zvkx09","a6501","","TY0V01","Euro's",null,"N","",1]
[null,null,null,null,"zvkx09_c6501__TY1V01","*=Kostenverzamelstaat!$K$80","","Ziekenvervoer- regionale ambulance- incl balans","zvkx09","c6501","","TY1V01","Euro's",null,"N","",1]
[null,null,null,null,"zvkx09_a6501__TY1V01","*=Kostenverzamelstaat!$L$80","","Ziekenvervoer- regionale ambulance- geaccepteerd","zvkx09","a6501","","TY1V01","Euro's",null,"N","",1]
[null,null,null,null,"zvkx09_c6501__TY2V01","*=Kostenverzamelstaat!$M$80","","Ziekenvervoer- regionale ambulance- incl balans","zvkx09","c6501","","TY2V01","Euro's",null,"N","",1]
[null,null,null,null,"zvkx09_a6501__TY2V01","*=Kostenverzamelstaat!$N$80","","Ziekenvervoer- regionale ambulance- geaccepteerd","zvkx09","a6501","","TY2V01","Euro's",null,"N","",1]
[null,null,null,null,"zvkx09_c651__TY0V01","*=Kostenverzamelstaat!$I$81","","Ziekenvervoer- ov, taxi en eigen auto- incl balans","zvkx09","c651","","TY0V01","Euro's",null,"N","",1]
[null,null,null,null,"zvkx09_a651__TY0V01","*=Kostenverzamelstaat!$J$81","","Ziekenvervoer- ov, taxi en eigen auto- geaccepteerd","zvkx09","a651","","TY0V01","Euro's",null,"N","",1]
[null,null,null,null,"zvkx09_c651__TY1V01","*=Kostenverzamelstaat!$K$81","","Ziekenvervoer- ov, taxi en eigen auto- incl balans","zvkx09","c651","","TY1V01","Euro's",null,"N","",1]
[null,null,null,null,"zvkx09_a651__TY1V01","*=Kostenverzamelstaat!$L$81","","Ziekenvervoer- ov, taxi en eigen auto- geaccepteerd","zvkx09","a651","","TY1V01","Euro's",null,"N","",1]
[null,null,null,null,"zvkx09_c651__TY2V01","*=Kostenverzamelstaat!$M$81","","Ziekenvervoer- ov, taxi en eigen auto- incl balans","zvkx09","c651","","TY2V01","Euro's",null,"N","",1]
[null,null,null,null,"zvkx09_a651__TY2V01","*=Kostenverzamelstaat!$N$81","","Ziekenvervoer- ov, taxi en eigen auto- geaccepteerd","zvkx09","a651","","TY2V01","Euro's",null,"N","",1]
[null,null,null,null,"zvkx09_c__TY0V01","*=Kostenverzamelstaat!$I$82"]
[null,null,null,null,"zvkx09_a__TY0V01","*=Kostenverzamelstaat!$J$82"]
[null,null,null,null,"zvkx09_c__TY1V01","*=Kostenverzamelstaat!$K$82"]
[null,null,null,null,"zvkx09_a__TY1V01","*=Kostenverzamelstaat!$L$82"]
[null,null,null,null,"zvkx09_c__TY2V01","*=Kostenverzamelstaat!$M$82"]
[null,null,null,null,"zvkx09_a__TY2V01","*=Kostenverzamelstaat!$N$82"]
[null,null,null,null,"zvkx10_c666__TY0V01","*=Kostenverzamelstaat!$I$96","","Geneeskundige GGZ- consulten GGZ- incl balans","zvkx10","c666","","TY0V01","Euro's",null,"N","",1]
[null,null,null,null,"zvkx10_a666__TY0V01","*=Kostenverzamelstaat!$J$96","","Geneeskundige GGZ- consulten GGZ- geaccepteerd","zvkx10","a666","","TY0V01","Euro's",null,"N","",1]
[null,null,null,null,"zvkx10_c666__TY1V01","*=Kostenverzamelstaat!$K$96","","Geneeskundige GGZ- consulten GGZ- incl balans","zvkx10","c666","","TY1V01","Euro's",null,"N","",1]
[null,null,null,null,"zvkx10_a666__TY1V01","*=Kostenverzamelstaat!$L$96","","Geneeskundige GGZ- consulten GGZ- geaccepteerd","zvkx10","a666","","TY1V01","Euro's",null,"N","",1]
[null,null,null,null,"zvkx10_c666__TY2V01","*=Kostenverzamelstaat!$M$96","","Geneeskundige GGZ- consulten GGZ- incl balans","zvkx10","c666","","TY2V01","Euro's",null,"N","",1]
[null,null,null,null,"zvkx10_a666__TY2V01","*=Kostenverzamelstaat!$N$96","","Geneeskundige GGZ- consulten GGZ- geaccepteerd","zvkx10","a666","","TY2V01","Euro's",null,"N","",1]
[null,null,null,null,"zvkx10_c667__TY0V01","*=Kostenverzamelstaat!$I$97","","Geneeskundige GGZ- intramuraal verblijf GGZ- incl balans","zvkx10","c667","","TY0V01","Euro's",null,"N","",1]
[null,null,null,null,"zvkx10_a667__TY0V01","*=Kostenverzamelstaat!$J$97","","Geneeskundige GGZ- intramuraal verblijf GGZ- geaccepteerd","zvkx10","a667","","TY0V01","Euro's",null,"N","",1]
[null,null,null,null,"zvkx10_c667__TY1V01","*=Kostenverzamelstaat!$K$97","","Geneeskundige GGZ- intramuraal verblijf GGZ- incl balans","zvkx10","c667","","TY1V01","Euro's",null,"N","",1]
[null,null,null,null,"zvkx10_a667__TY1V01","*=Kostenverzamelstaat!$L$97","","Geneeskundige GGZ- intramuraal verblijf GGZ- geaccepteerd","zvkx10","a667","","TY1V01","Euro's",null,"N","",1]
[null,null,null,null,"zvkx10_c667__TY2V01","*=Kostenverzamelstaat!$M$97","","Geneeskundige GGZ- intramuraal verblijf GGZ- incl balans","zvkx10","c667","","TY2V01","Euro's",null,"N","",1]
[null,null,null,null,"zvkx10_a667__TY2V01","*=Kostenverzamelstaat!$N$97","","Geneeskundige GGZ- intramuraal verblijf GGZ- geaccepteerd","zvkx10","a667","","TY2V01","Euro's",null,"N","",1]
[null,null,null,null,"zvkx10_c668__TY0V01","*=Kostenverzamelstaat!$I$98","","Geneeskundige GGZ- overige prestaties GGZ- incl balans","zvkx10","c668","","TY0V01","Euro's",null,"N","",1]
[null,null,null,null,"zvkx10_a668__TY0V01","*=Kostenverzamelstaat!$J$98","","Geneeskundige GGZ- overige prestaties GGZ- geaccepteerd","zvkx10","a668","","TY0V01","Euro's",null,"N","",1]
[null,null,null,null,"zvkx10_c668__TY1V01","*=Kostenverzamelstaat!$K$98","","Geneeskundige GGZ- overige prestaties GGZ- incl balans","zvkx10","c668","","TY1V01","Euro's",null,"N","",1]
[null,null,null,null,"zvkx10_a668__TY1V01","*=Kostenverzamelstaat!$L$98","","Geneeskundige GGZ- overige prestaties GGZ- geaccepteerd","zvkx10","a668","","TY1V01","Euro's",null,"N","",1]
[null,null,null,null,"zvkx10_c668__TY2V01","*=Kostenverzamelstaat!$M$98","","Geneeskundige GGZ- overige prestaties GGZ- incl balans","zvkx10","c668","","TY2V01","Euro's",null,"N","",1]
[null,null,null,null,"zvkx10_a668__TY2V01","*=Kostenverzamelstaat!$N$98","","Geneeskundige GGZ- overige prestaties GGZ- geaccepteerd","zvkx10","a668","","TY2V01","Euro's",null,"N","",1]
[null,null,null,null,"zvkx10_c8101__TY2V01","*=Kostenverzamelstaat!$M$99",null,"Geneeskundige GGZ-  Meerkosten Corona indirect- incl balans","zvkx10","c8101",null,"TY2V01","Euro's",null,"N","",1]
[null,null,null,null,"zvkx10_a8101__TY2V01","*=Kostenverzamelstaat!$N$99",null,"Geneeskundige GGZ-  Meerkosten Corona indirect- geaccepteerd","zvkx10","a8101",null,"TY2V01","Euro's",null,"N","",1]
[null,null,null,null,"zvkx10_c__TY0V01","*=Kostenverzamelstaat!$I$100"]
[null,null,null,null,"zvkx10_a__TY0V01","*=Kostenverzamelstaat!$J$100"]
[null,null,null,null,"zvkx10_c__TY1V01","*=Kostenverzamelstaat!$K$100"]
[null,null,null,null,"zvkx10_a__TY1V01","*=Kostenverzamelstaat!$L$100"]
[null,null,null,null,"zvkx10_c__TY2V01","*=Kostenverzamelstaat!$M$100"]
[null,null,null,null,"zvkx10_a__TY2V01","*=Kostenverzamelstaat!$N$100"]
[null,null,null,null,"zvkx11_c670__TY0V01","*=Kostenverzamelstaat!$I$102","","Geriatische revalidatiezorg- GRZ- incl balans","zvkx11","c670","","TY0V01","Euro's",null,"N","",1]
[null,null,null,null,"zvkx11_a670__TY0V01","*=Kostenverzamelstaat!$J$102","","Geriatische revalidatiezorg- GRZ- geaccepteerd","zvkx11","a670","","TY0V01","Euro's",null,"N","",1]
[null,null,null,null,"zvkx11_c670__TY1V01","*=Kostenverzamelstaat!$K$102","","Geriatische revalidatiezorg- GRZ- incl balans","zvkx11","c670","","TY1V01","Euro's",null,"N","",1]
[null,null,null,null,"zvkx11_a670__TY1V01","*=Kostenverzamelstaat!$L$102","","Geriatische revalidatiezorg- GRZ- geaccepteerd","zvkx11","a670","","TY1V01","Euro's",null,"N","",1]
[null,null,null,null,"zvkx11_c670__TY2V01","*=Kostenverzamelstaat!$M$102","","Geriatische revalidatiezorg- GRZ- incl balans","zvkx11","c670","","TY2V01","Euro's",null,"N","",1]
[null,null,null,null,"zvkx11_a670__TY2V01","*=Kostenverzamelstaat!$N$102","","Geriatische revalidatiezorg- GRZ- geaccepteerd","zvkx11","a670","","TY2V01","Euro's",null,"N","",1]
[null,null,null,null,"zvkx11_c81111__TY2V01","*=Kostenverzamelstaat!$M$103",null,"Geriatische revalidatiezorg- GRZ- Meerkosten COVID-19, indirect- incl balans","zvkx11","c81111",null,"TY2V01","Euro's",null,"N","",1]
[null,null,null,null,"zvkx11_a81111__TY2V01","*=Kostenverzamelstaat!$N$103",null,"Geriatische revalidatiezorg- GRZ- Meerkosten COVID-19, indirect- geaccepteerd","zvkx11","a81111",null,"TY2V01","Euro's",null,"N","",1]
[null,null,null,null,"zvkx11_c671__TY0V01","*=Kostenverzamelstaat!$I$104","","Geriatische revalidatiezorg- Eerstelijnsverblijf- incl balans","zvkx11","c671","","TY0V01","Euro's",null,"N","",1]
[null,null,null,null,"zvkx11_a671__TY0V01","*=Kostenverzamelstaat!$J$104","","Geriatische revalidatiezorg- Eerstelijnsverblijf- geaccepteerd","zvkx11","a671","","TY0V01","Euro's",null,"N","",1]
[null,null,null,null,"zvkx11_c671__TY1V01","*=Kostenverzamelstaat!$K$104","","Geriatische revalidatiezorg- Eerstelijnsverblijf- incl balans","zvkx11","c671","","TY1V01","Euro's",null,"N","",1]
[null,null,null,null,"zvkx11_a671__TY1V01","*=Kostenverzamelstaat!$L$104","","Geriatische revalidatiezorg- Eerstelijnsverblijf- geaccepteerd","zvkx11","a671","","TY1V01","Euro's",null,"N","",1]
[null,null,null,null,"zvkx11_c671__TY2V01","*=Kostenverzamelstaat!$M$104","","Geriatische revalidatiezorg- Eerstelijnsverblijf- incl balans","zvkx11","c671","","TY2V01","Euro's",null,"N","",1]
[null,null,null,null,"zvkx11_a671__TY2V01","*=Kostenverzamelstaat!$N$104","","Geriatische revalidatiezorg- Eerstelijnsverblijf- geaccepteerd","zvkx11","a671","","TY2V01","Euro's",null,"N","",1]
[null,null,null,null,"zvkx11_c81121__TY2V01","*=Kostenverzamelstaat!$M$105",null,"Geriatische revalidatiezorg-  Eerstelijnsverblijf- Meerkosten COVID-19, indirect- incl balans","zvkx11","c81121",null,"TY2V01","Euro's",null,"N","",1]
[null,null,null,null,"zvkx11_a81121__TY2V01","*=Kostenverzamelstaat!$N$105",null,"Geriatische revalidatiezorg-  Eerstelijnsverblijf- Meerkosten COVID-19, indirect- geaccepteerd","zvkx11","a81121",null,"TY2V01","Euro's",null,"N","",1]
[null,null,null,null,"zvkx11_c672__TY0V01","*=Kostenverzamelstaat!$I$106",null,"Geriatische revalidatiezorg- GZSP- incl balans","zvkx11","c672","","TY0V01","Euro's",null,"N","",1]
[null,null,null,null,"zvkx11_a672__TY0V01","*=Kostenverzamelstaat!$J$106",null,"Geriatische revalidatiezorg- GZSP- geaccepteerd","zvkx11","a672","","TY0V01","Euro's",null,"N","",1]
[null,null,null,null,"zvkx11_c672__TY1V01","*=Kostenverzamelstaat!$K$106",null,"Geriatische revalidatiezorg- GZSP- incl balans","zvkx11","c672","","TY1V01","Euro's",null,"N","",1]
[null,null,null,null,"zvkx11_a672__TY1V01","*=Kostenverzamelstaat!$L$106",null,"Geriatische revalidatiezorg- GZSP- geaccepteerd","zvkx11","a672","","TY1V01","Euro's",null,"N","",1]
[null,null,null,null,"zvkx11_c672__TY2V01","*=Kostenverzamelstaat!$M$106",null,"Geriatische revalidatiezorg- GZSP- incl balans","zvkx11","c672","","TY2V01","Euro's",null,"N","",1]
[null,null,null,null,"zvkx11_a672__TY2V01","*=Kostenverzamelstaat!$N$106",null,"Geriatische revalidatiezorg- GZSP- geaccepteerd","zvkx11","a672","","TY2V01","Euro's",null,"N","",1]
[null,null,null,null,"zvkx11_c__TY0V01","*=Kostenverzamelstaat!$I$107"]
[null,null,null,null,"zvkx11_a__TY0V01","*=Kostenverzamelstaat!$J$107"]
[null,null,null,null,"zvkx11_c__TY1V01","*=Kostenverzamelstaat!$K$107"]
[null,null,null,null,"zvkx11_a__TY1V01","*=Kostenverzamelstaat!$L$107"]
[null,null,null,null,"zvkx11_c__TY2V01","*=Kostenverzamelstaat!$M$107"]
[null,null,null,null,"zvkx11_a__TY2V01","*=Kostenverzamelstaat!$N$107"]
[null,null,null,null,"zvkx12_c680__TY0V01","*=Kostenverzamelstaat!$I$109","","Kraamzorg-- incl balans","zvkx12","c680","","TY0V01","Euro's",null,"N","",1]
[null,null,null,null,"zvkx12_a680__TY0V01","*=Kostenverzamelstaat!$J$109","","Kraamzorg-- geaccepteerd","zvkx12","a680","","TY0V01","Euro's",null,"N","",1]
[null,null,null,null,"zvkx12_c680__TY1V01","*=Kostenverzamelstaat!$K$109","","Kraamzorg-- incl balans","zvkx12","c680","","TY1V01","Euro's",null,"N","",1]
[null,null,null,null,"zvkx12_a680__TY1V01","*=Kostenverzamelstaat!$L$109","","Kraamzorg-- geaccepteerd","zvkx12","a680","","TY1V01","Euro's",null,"N","",1]
[null,null,null,null,"zvkx12_c680__TY2V01","*=Kostenverzamelstaat!$M$109","","Kraamzorg-- incl balans","zvkx12","c680","","TY2V01","Euro's",null,"N","",1]
[null,null,null,null,"zvkx12_a680__TY2V01","*=Kostenverzamelstaat!$N$109","","Kraamzorg-- geaccepteerd","zvkx12","a680","","TY2V01","Euro's",null,"N","",1]
[null,null,null,null,"zvkx12_c__TY0V01","*=Kostenverzamelstaat!$I$110"]
[null,null,null,null,"zvkx12_a__TY0V01","*=Kostenverzamelstaat!$J$110"]
[null,null,null,null,"zvkx12_c__TY1V01","*=Kostenverzamelstaat!$K$110"]
[null,null,null,null,"zvkx12_a__TY1V01","*=Kostenverzamelstaat!$L$110"]
[null,null,null,null,"zvkx12_c__TY2V01","*=Kostenverzamelstaat!$M$110"]
[null,null,null,null,"zvkx12_a__TY2V01","*=Kostenverzamelstaat!$N$110"]
[null,null,null,null,"zvkx13_c700__TY0V01","*=Kostenverzamelstaat!$I$112","","Overige kosten-- incl balans","zvkx13","c700","","TY0V01","Euro's",null,"N","",1]
[null,null,null,null,"zvkx13_a700__TY0V01","*=Kostenverzamelstaat!$J$112","","Overige kosten- geaccepteerd","zvkx13","a700","","TY0V01","Euro's",null,"N","",1]
[null,null,null,null,"zvkx13_c700__TY1V01","*=Kostenverzamelstaat!$K$112","","Overige kosten-- incl balans","zvkx13","c700","","TY1V01","Euro's",null,"N","",1]
[null,null,null,null,"zvkx13_a700__TY1V01","*=Kostenverzamelstaat!$L$112","","Overige kosten-- geaccepteerd","zvkx13","a700","","TY1V01","Euro's",null,"N","",1]
[null,null,null,null,"zvkx13_c700__TY2V01","*=Kostenverzamelstaat!$M$112","","Overige kosten-- incl balans","zvkx13","c700","","TY2V01","Euro's",null,"N","",1]
[null,null,null,null,"zvkx13_a700__TY2V01","*=Kostenverzamelstaat!$N$112","","Overige kosten-- geaccepteerd","zvkx13","a700","","TY2V01","Euro's",null,"N","",1]
[null,null,null,null,"zvkx13_c701__TY0V01","*=Kostenverzamelstaat!$I$113","","Overige kosten- geneeskundige zorg- incl balans","zvkx13","c701","","TY0V01","Euro's",null,"N","",1]
[null,null,null,null,"zvkx13_a701__TY0V01","*=Kostenverzamelstaat!$J$113","","Overige kosten- geneeskundige zorg-geaccepteerd","zvkx13","a701","","TY0V01","Euro's",null,"N","",1]
[null,null,null,null,"zvkx13_c701__TY1V01","*=Kostenverzamelstaat!$K$113","","Overige kosten- geneeskundige zorg- incl balans","zvkx13","c701","","TY1V01","Euro's",null,"N","",1]
[null,null,null,null,"zvkx13_a701__TY1V01","*=Kostenverzamelstaat!$L$113","","Overige kosten- geneeskundige zorg- geaccepteerd","zvkx13","a701","","TY1V01","Euro's",null,"N","",1]
[null,null,null,null,"zvkx13_c701__TY2V01","*=Kostenverzamelstaat!$M$113","","Overige kosten- geneeskundige zorg- incl balans","zvkx13","c701","","TY2V01","Euro's",null,"N","",1]
[null,null,null,null,"zvkx13_a701__TY2V01","*=Kostenverzamelstaat!$N$113","","Overige kosten- geneeskundige zorg- geaccepteerd","zvkx13","a701","","TY2V01","Euro's",null,"N","",1]
[null,null,null,null,"zvkx13_c702__TY0V01","*=Kostenverzamelstaat!$I$114","","Overige kosten- zintuiglijk gehandicapten- incl balans","zvkx13","c702","","TY0V01","Euro's",null,"N","",1]
[null,null,null,null,"zvkx13_a702__TY0V01","*=Kostenverzamelstaat!$J$114","","Overige kosten- zintuiglijk gehandicapten- geaccepteerd","zvkx13","a702","","TY0V01","Euro's",null,"N","",1]
[null,null,null,null,"zvkx13_c702__TY1V01","*=Kostenverzamelstaat!$K$114","","Overige kosten- zintuiglijk gehandicapten- incl balans","zvkx13","c702","","TY1V01","Euro's",null,"N","",1]
[null,null,null,null,"zvkx13_a702__TY1V01","*=Kostenverzamelstaat!$L$114","","Overige kosten- zintuiglijk gehandicapten- geaccepteerd","zvkx13","a702","","TY1V01","Euro's",null,"N","",1]
[null,null,null,null,"zvkx13_c702__TY2V01","*=Kostenverzamelstaat!$M$114","","Overige kosten- zintuiglijk gehandicapten- incl balans","zvkx13","c702","","TY2V01","Euro's",null,"N","",1]
[null,null,null,null,"zvkx13_a702__TY2V01","*=Kostenverzamelstaat!$N$114","","Overige kosten- zintuiglijk gehandicapten- geaccepteerd","zvkx13","a702","","TY2V01","Euro's",null,"N","",1]
[null,null,null,null,"zvkx13_c703__TY0V01","*=Kostenverzamelstaat!$I$115","","Overige kosten- Transformatiemiddelen IZA- incl balans","zvkx13","c703","","TY0V01","Euro's",null,"N","",1]
[null,null,null,null,"zvkx13_a703__TY0V01","*=Kostenverzamelstaat!$J$115","","Overige kosten- Transformatiemiddelen IZA- geaccepteerd","zvkx13","a703","","TY0V01","Euro's",null,"N","",1]
[null,null,null,null,"zvkx13_c703__TY1V01","*=Kostenverzamelstaat!$K$115","","Overige kosten- Transformatiemiddelen IZA- incl balans","zvkx13","c703","","TY1V01","Euro's",null,"N","",1]
[null,null,null,null,"zvkx13_a703__TY1V01","*=Kostenverzamelstaat!$L$115","","Overige kosten- Transformatiemiddelen IZA- geaccepteerd","zvkx13","a703","","TY1V01","Euro's",null,"N","",1]
[null,null,null,null,"zvkx13_c__TY0V01","*=Kostenverzamelstaat!$I$116"]
[null,null,null,null,"zvkx13_a__TY0V01","*=Kostenverzamelstaat!$J$116"]
[null,null,null,null,"zvkx13_c__TY1V01","*=Kostenverzamelstaat!$K$116"]
[null,null,null,null,"zvkx13_a__TY1V01","*=Kostenverzamelstaat!$L$116"]
[null,null,null,null,"zvkx13_c__TY2V01","*=Kostenverzamelstaat!$M$116"]
[null,null,null,null,"zvkx13_a__TY2V01","*=Kostenverzamelstaat!$N$116"]
[null,null,null,null,"zvkx15_c720__TY0V01","*=Kostenverzamelstaat!$I$118","","Grensoverschrijdende zorg- via verzekeraar- incl balans","zvkx15","c720","","TY0V01","Euro's",null,"N","",1]
[null,null,null,null,"zvkx15_a720__TY0V01","*=Kostenverzamelstaat!$J$118","","Grensoverschrijdende zorg- via verzekeraar- geaccepteerd","zvkx15","a720","","TY0V01","Euro's",null,"N","",1]
[null,null,null,null,"zvkx15_c720__TY1V01","*=Kostenverzamelstaat!$K$118","","Grensoverschrijdende zorg- via verzekeraar- incl balans","zvkx15","c720","","TY1V01","Euro's",null,"N","",1]
[null,null,null,null,"zvkx15_a720__TY1V01","*=Kostenverzamelstaat!$L$118","","Grensoverschrijdende zorg- via verzekeraar- geaccepteerd","zvkx15","a720","","TY1V01","Euro's",null,"N","",1]
[null,null,null,null,"zvkx15_c720__TY2V01","*=Kostenverzamelstaat!$M$118","","Grensoverschrijdende zorg- via verzekeraar- incl balans","zvkx15","c720","","TY2V01","Euro's",null,"N","",1]
[null,null,null,null,"zvkx15_a720__TY2V01","*=Kostenverzamelstaat!$N$118","","Grensoverschrijdende zorg- via verzekeraar- geaccepteerd","zvkx15","a720","","TY2V01","Euro's",null,"N","",1]
[null,null,null,null,"zvkx15_c721__TY0V01","*=Kostenverzamelstaat!$I$119","","Grensoverschrijdende zorg- via verbindingsorgaan- incl balans","zvkx15","c721","","TY0V01","Euro's",null,"N","",1]
[null,null,null,null,"zvkx15_a721__TY0V01","*=Kostenverzamelstaat!$J$119","","Grensoverschrijdende zorg- via verbindingsorgaan- geaccepteerd","zvkx15","a721","","TY0V01","Euro's",null,"N","",1]
[null,null,null,null,"zvkx15_c721__TY1V01","*=Kostenverzamelstaat!$K$119","","Grensoverschrijdende zorg- via verbindingsorgaan- incl balans","zvkx15","c721","","TY1V01","Euro's",null,"N","",1]
[null,null,null,null,"zvkx15_a721__TY1V01","*=Kostenverzamelstaat!$L$119","","Grensoverschrijdende zorg- via verbindingsorgaan- geaccepteerd","zvkx15","a721","","TY1V01","Euro's",null,"N","",1]
[null,null,null,null,"zvkx15_c721__TY2V01","*=Kostenverzamelstaat!$M$119","","Grensoverschrijdende zorg- via verbindingsorgaan- incl balans","zvkx15","c721","","TY2V01","Euro's",null,"N","",1]
[null,null,null,null,"zvkx15_a721__TY2V01","*=Kostenverzamelstaat!$N$119","","Grensoverschrijdende zorg- via verbindingsorgaan- geaccepteerd","zvkx15","a721","","TY2V01","Euro's",null,"N","",1]
[null,null,null,null,"zvkx15_c__TY0V01","*=Kostenverzamelstaat!$I$120"]
[null,null,null,null,"zvkx15_a__TY0V01","*=Kostenverzamelstaat!$J$120"]
[null,null,null,null,"zvkx15_c__TY1V01","*=Kostenverzamelstaat!$K$120"]
[null,null,null,null,"zvkx15_a__TY1V01","*=Kostenverzamelstaat!$L$120"]
[null,null,null,null,"zvkx15_c__TY2V01","*=Kostenverzamelstaat!$M$120"]
[null,null,null,null,"zvkx15_a__TY2V01","*=Kostenverzamelstaat!$N$120"]
[null,null,null,null,"zvkx16_c730__TY0V01","*=Kostenverzamelstaat!$I$122","","Kwaliteitsgelden-- incl balans","zvkx16","c730","","TY0V01","Euro's",null,"N","",1]
[null,null,null,null,"zvkx16_a730__TY0V01","*=Kostenverzamelstaat!$J$122","","Kwaliteitsgelden-- geaccepteerd","zvkx16","a730","","TY0V01","Euro's",null,"N","",1]
[null,null,null,null,"zvkx16_c730__TY1V01","*=Kostenverzamelstaat!$K$122","","Kwaliteitsgelden-- incl balans","zvkx16","c730","","TY1V01","Euro's",null,"N","",1]
[null,null,null,null,"zvkx16_a730__TY1V01","*=Kostenverzamelstaat!$L$122","","Kwaliteitsgelden-- geaccepteerd","zvkx16","a730","","TY1V01","Euro's",null,"N","",1]
[null,null,null,null,"zvkx16_c730__TY2V01","*=Kostenverzamelstaat!$M$122","","Kwaliteitsgelden-- incl balans","zvkx16","c730","","TY2V01","Euro's",null,"N","",1]
[null,null,null,null,"zvkx16_a730__TY2V01","*=Kostenverzamelstaat!$N$122","","Kwaliteitsgelden-- geaccepteerd","zvkx16","a730","","TY2V01","Euro's",null,"N","",1]
[null,null,null,null,"zvkx16_c__TY0V01","*=Kostenverzamelstaat!$I$123"]
[null,null,null,null,"zvkx16_a__TY0V01","*=Kostenverzamelstaat!$J$123"]
[null,null,null,null,"zvkx16_c__TY1V01","*=Kostenverzamelstaat!$K$123"]
[null,null,null,null,"zvkx16_a__TY1V01","*=Kostenverzamelstaat!$L$123"]
[null,null,null,null,"zvkx16_c__TY2V01","*=Kostenverzamelstaat!$M$123"]
[null,null,null,null,"zvkx16_a__TY2V01","*=Kostenverzamelstaat!$N$123"]
[null,null,null,null,"zvkx_c__TY0V01","*=Kostenverzamelstaat!$I$124"]
[null,null,null,null,"zvkx_a__TY0V01","*=Kostenverzamelstaat!$J$124"]
[null,null,null,null,"zvkx_c__TY1V01","*=Kostenverzamelstaat!$K$124"]
[null,null,null,null,"zvkx_a__TY1V01","*=Kostenverzamelstaat!$L$124"]
[null,null,null,null,"zvkx_c__TY2V01","*=Kostenverzamelstaat!$M$124"]
[null,null,null,null,"zvkx_a__TY2V01","*=Kostenverzamelstaat!$N$124"]
[null,null,null,null,"zvkx17_c1__TY3V01","*=Kostenverzamelstaat!$K$136",null,"TOTAAL NETTO CONTINUITEITSBIJDRAGE COVID (BASISVERZEKERING), VARIABEL- incl balans","zvkx17","c1",null,"TY3V01","Euro's"]
[null,null,null,null,"zvkx17_a1__TY3V01","*=Kostenverzamelstaat!$L$136",null,"TOTAAL NETTO CONTINUITEITSBIJDRAGE COVID (BASISVERZEKERING), VARIABEL-  geaccepteerd","zvkx17","a1",null,"TY3V01","Euro's"]
[null,null,null,null,"zvkx17_c1__TY4V01","*=Kostenverzamelstaat!$M$136",null,"TOTAAL NETTO CONTINUITEITSBIJDRAGE COVID (BASISVERZEKERING), VARIABEL- incl balans","zvkx17","c1",null,"TY4V01","Euro's"]
[null,null,null,null,"zvkx17_a1__TY4V01","*=Kostenverzamelstaat!$N$136",null,"TOTAAL NETTO CONTINUITEITSBIJDRAGE COVID (BASISVERZEKERING), VARIABEL-  geaccepteerd","zvkx17","a1",null,"TY4V01","Euro's"]
[null,null,null,null,"zvkx17_c2__TY3V01","*=Kostenverzamelstaat!$K$137",null,"'TOTAAL NETTO CONTINUITEITSBIJDRAGE COVID (BASISVERZEKERING), GGZ- incl balans","zvkx17","c2",null,"TY3V01","Euro's"]
[null,null,null,null,"zvkx17_a2__TY3V01","*=Kostenverzamelstaat!$L$137",null,"'TOTAAL NETTO CONTINUITEITSBIJDRAGE COVID (BASISVERZEKERING), GGZ-  geaccepteerd","zvkx17","a2",null,"TY3V01","Euro's"]
[null,null,null,null,"zvkx17_c2__TY4V01","*=Kostenverzamelstaat!$M$137",null,"'TOTAAL NETTO CONTINUITEITSBIJDRAGE COVID (BASISVERZEKERING), GGZ- incl balans","zvkx17","c2",null,"TY4V01","Euro's"]
[null,null,null,null,"zvkx17_a2__TY4V01","*=Kostenverzamelstaat!$N$137",null,"'TOTAAL NETTO CONTINUITEITSBIJDRAGE COVID (BASISVERZEKERING), GGZ-  geaccepteerd","zvkx17","a2",null,"TY4V01","Euro's"]
[null,null,null,null,"zvkx17_c3__TY3V01","*=Kostenverzamelstaat!$K$141",null,"TOTAAL COVID-19, PATIENT GEBONDEN, VARIABEL- incl balans","zvkx17","c3",null,"TY3V01","Euro's"]
[null,null,null,null,"zvkx17_a3__TY3V01","*=Kostenverzamelstaat!$L$141",null,"TOTAAL COVID-19, PATIENT GEBONDEN, VARIABEL-  geaccepteerd","zvkx17","a3",null,"TY3V01","Euro's"]
[null,null,null,null,"zvkx17_c3__TY4V01","*=Kostenverzamelstaat!$M$141",null,"'TOTAAL COVID-19, PATIENT GEBONDEN, VARIABEL- incl balans","zvkx17","c3",null,"TY4V01","Euro's"]
[null,null,null,null,"zvkx17_a3__TY4V01","*=Kostenverzamelstaat!$N$141",null,"'TOTAAL COVID-19, PATIENT GEBONDEN, VARIABEL-  geaccepteerd","zvkx17","a3",null,"TY4V01","Euro's"]
[null,null,null,null,"zvkx17_c4__TY3V01","*=Kostenverzamelstaat!$K$142",null,"TOTAAL COVID-19, INDIRECTE MEERKOSTEN, VARIABEL- incl balans","zvkx17","c4",null,"TY3V01","Euro's"]
[null,null,null,null,"zvkx17_a4__TY3V01","*=Kostenverzamelstaat!$L$142",null,"TOTAAL COVID-19, INDIRECTE MEERKOSTEN, VARIABEL-  geaccepteerd","zvkx17","a4",null,"TY3V01","Euro's"]
[null,null,null,null,"zvkx17_c4__TY4V01","*=Kostenverzamelstaat!$M$142",null,"'TOTAAL COVID-19, INDIRECTE MEERKOSTEN, VARIABEL- incl balans","zvkx17","c4",null,"TY4V01","Euro's"]
[null,null,null,null,"zvkx17_a4__TY4V01","*=Kostenverzamelstaat!$N$142",null,"'TOTAAL COVID-19, INDIRECTE MEERKOSTEN, VARIABEL-  geaccepteerd","zvkx17","a4",null,"TY4V01","Euro's"]
[null,null,null,null,"zvkx17_c5__TY3V01","*=Kostenverzamelstaat!$K$143",null,"TOTAAL COVID-19, TOESLAGEN, VARIABEL- incl balans","zvkx17","c5",null,"TY3V01","Euro's"]
[null,null,null,null,"zvkx17_a5__TY3V01","*=Kostenverzamelstaat!$L$143",null,"TOTAAL COVID-19, TOESLAGEN, VARIABEL-  geaccepteerd","zvkx17","a5",null,"TY3V01","Euro's"]
[null,null,null,null,"zvkx17_c5__TY4V01","*=Kostenverzamelstaat!$M$143",null,"'TOTAAL COVID-19, TOESLAGEN, VARIABEL- incl balans","zvkx17","c5",null,"TY4V01","Euro's"]
[null,null,null,null,"zvkx17_a5__TY4V01","*=Kostenverzamelstaat!$N$143",null,"'TOTAAL COVID-19, TOESLAGEN, VARIABEL-  geaccepteerd","zvkx17","a5",null,"TY4V01","Euro's"]
[null,null,null,null,"zvkx17_c8__TY3V01","*=Kostenverzamelstaat!$K$144",null,"TOTAAL COVID-19,TOESLAGEN, GGZ- incl balans","zvkx17","c8",null,"TY3V01","Euro's"]
[null,null,null,null,"zvkx17_a8__TY3V01","*=Kostenverzamelstaat!$L$144",null,"TOTAAL COVID-19,TOESLAGEN, GGZ-  geaccepteerd","zvkx17","a8",null,"TY3V01","Euro's"]
[null,null,null,null,"zvkx17_c8__TY4V01","*=Kostenverzamelstaat!$M$144",null,"'TOTAAL COVID-19,TOESLAGEN, GGZ- incl balans","zvkx17","c8",null,"TY4V01","Euro's"]
[null,null,null,null,"zvkx17_a8__TY4V01","*=Kostenverzamelstaat!$N$144",null,"'TOTAAL COVID-19,TOESLAGEN, GGZ-  geaccepteerd","zvkx17","a8",null,"TY4V01","Euro's"]
[null,null,null,null,"zvkxdnb_c8901__TY0V01","*=Kostenverzamelstaat!$I$149","","Verschilposten DNB- Opbrengsten verhaal- incl balans","zvkxdnb","c8901","","TY0V01","Euro's",null,"N","",1]
[null,null,null,null,"zvkxdnb_a8901__TY0V01","*=Kostenverzamelstaat!$J$149","","Verschilposten DNB- Opbrengsten verhaal- geaccepteerd","zvkxdnb","a8901","","TY0V01","Euro's",null,"N","",1]
[null,null,null,null,"zvkxdnb_c8901__TY1V01","*=Kostenverzamelstaat!$K$149","","Verschilposten DNB- Opbrengsten verhaal- incl balans","zvkxdnb","c8901","","TY1V01","Euro's",null,"N","",1]
[null,null,null,null,"zvkxdnb_a8901__TY1V01","*=Kostenverzamelstaat!$L$149","","Verschilposten DNB- Opbrengsten verhaal- geaccepteerd","zvkxdnb","a8901","","TY1V01","Euro's",null,"N","",1]
[null,null,null,null,"zvkxdnb_c8901__TY2V01","*=Kostenverzamelstaat!$M$149","","Verschilposten DNB- Opbrengsten verhaal- incl balans","zvkxdnb","c8901","","TY2V01","Euro's",null,"N","",1]
[null,null,null,null,"zvkxdnb_a8901__TY2V01","*=Kostenverzamelstaat!$N$149","","Verschilposten DNB- Opbrengsten verhaal- geaccepteerd","zvkxdnb","a8901","","TY2V01","Euro's",null,"N","",1]
[null,null,null,null,"zvkxdnb_c910__TY0V01","*=Kostenverzamelstaat!$I$150","","Verschilposten DNB- Schade tlv het vrijwillig eigen risico- incl balans","zvkxdnb","c910","","TY0V01","Euro's",null,"N","",1]
[null,null,null,null,"zvkxdnb_a910__TY0V01","*=Kostenverzamelstaat!$J$150","","Verschilposten DNB- Schade tlv het vrijwillig eigen risico- geaccepteerd","zvkxdnb","a910","","TY0V01","Euro's",null,"N","",1]
[null,null,null,null,"zvkxdnb_c910__TY1V01","*=Kostenverzamelstaat!$K$150","","Verschilposten DNB- Schade tlv het vrijwillig eigen risico- incl balans","zvkxdnb","c910","","TY1V01","Euro's",null,"N","",1]
[null,null,null,null,"zvkxdnb_a910__TY1V01","*=Kostenverzamelstaat!$L$150","","Verschilposten DNB- Schade tlv het vrijwillig eigen risico- geaccepteerd","zvkxdnb","a910","","TY1V01","Euro's",null,"N","",1]
[null,null,null,null,"zvkxdnb_c910__TY2V01","*=Kostenverzamelstaat!$M$150","","Verschilposten DNB- Schade tlv het vrijwillig eigen risico- incl balans","zvkxdnb","c910","","TY2V01","Euro's",null,"N","",1]
[null,null,null,null,"zvkxdnb_a910__TY2V01","*=Kostenverzamelstaat!$N$150","","Verschilposten DNB- Schade tlv het vrijwillig eigen risico- geaccepteerd","zvkxdnb","a910","","TY2V01","Euro's",null,"N","",1]
[null,null,null,null,"zvkxdnb_c915__TY0V01","*=Kostenverzamelstaat!$I$151","","Verschilposten DNB- Schade tlv het verplicht eigen risico- incl balans","zvkxdnb","c915","","TY0V01","Euro's",null,"N","",1]
[null,null,null,null,"zvkxdnb_a915__TY0V01","*=Kostenverzamelstaat!$J$151","","Verschilposten DNB- Schade tlv het verplicht eigen risico- geaccepteerd","zvkxdnb","a915","","TY0V01","Euro's",null,"N","",1]
[null,null,null,null,"zvkxdnb_c915__TY1V01","*=Kostenverzamelstaat!$K$151","","Verschilposten DNB- Schade tlv het verplicht eigen risico- incl balans","zvkxdnb","c915","","TY1V01","Euro's",null,"N","",1]
[null,null,null,null,"zvkxdnb_a915__TY1V01","*=Kostenverzamelstaat!$L$151","","Verschilposten DNB- Schade tlv het verplicht eigen risico- geaccepteerd","zvkxdnb","a915","","TY1V01","Euro's",null,"N","",1]
[null,null,null,null,"zvkxdnb_c915__TY2V01","*=Kostenverzamelstaat!$M$151","","Verschilposten DNB- Schade tlv het verplicht eigen risico- incl balans","zvkxdnb","c915","","TY2V01","Euro's",null,"N","",1]
[null,null,null,null,"zvkxdnb_a915__TY2V01","*=Kostenverzamelstaat!$N$151","","Verschilposten DNB- Schade tlv het verplicht eigen risico- geaccepteerd","zvkxdnb","a915","","TY2V01","Euro's",null,"N","",1]
[null,null,null,null,"zvkxdnb_c940__TY0V01","*=Kostenverzamelstaat!$I$152","","Verschilposten DNB- Netto Premieopbrengsten- incl balans","zvkxdnb","c940","","TY0V01","Euro's",null,"N","",1]
[null,null,null,null,"zvkxdnb_a940__TY0V01","*=Kostenverzamelstaat!$J$152","","Verschilposten DNB- Netto Premieopbrengsten- geaccepteerd","zvkxdnb","a940","","TY0V01","Euro's",null,"N","",1]
[null,null,null,null,"zvkxdnb_c940__TY1V01","*=Kostenverzamelstaat!$K$152","","Verschilposten DNB- Netto Premieopbrengsten- incl balans","zvkxdnb","c940","","TY1V01","Euro's",null,"N","",1]
[null,null,null,null,"zvkxdnb_a940__TY1V01","*=Kostenverzamelstaat!$L$152","","Verschilposten DNB- Netto Premieopbrengsten- geaccepteerd","zvkxdnb","a940","","TY1V01","Euro's",null,"N","",1]
[null,null,null,null,"zvkxdnb_c940__TY2V01","*=Kostenverzamelstaat!$M$152","","Verschilposten DNB- Netto Premieopbrengsten- incl balans","zvkxdnb","c940","","TY2V01","Euro's",null,"N","",1]
[null,null,null,null,"zvkxdnb_a940__TY2V01","*=Kostenverzamelstaat!$N$152","","Verschilposten DNB- Netto Premieopbrengsten- geaccepteerd","zvkxdnb","a940","","TY2V01","Euro's",null,"N","",1]
[null,null,null,null,"zvrxsg_c978_dl101_TY0V01","*='Specifieke informatie A'!$K$14","","Kosten naar deelbijdrage- Variabele zorgkosten- incl balans","zvrxsg","c978","dl101","TY0V01"]
[null,null,null,null,"zvrxsg_c978_dl102_TY0V01","*='Specifieke informatie A'!$K$15","","Kosten naar deelbijdrage- Vaste zorgkosten- incl balans","zvrxsg","c978","dl102","TY0V01"]
[null,null,null,null,"zvrxsg_c978_dl152_TY0V01","*='Specifieke informatie A'!$K$16","","Kosten naar deelbijdrage- Geneeskundige GGZ- incl balans","zvrxsg","c978","dl152","TY0V01"]
[null,null,null,null,"zvpxlft_m981_lft01a_m04V01","*='Specifieke informatie A'!$I$59","","Verzekerden risicoklasse- 00 t/m 01- man","zvpxlft","m981","lft01a","m04V01","Verzekerden",null,"N",""]
[null,null,null,null,"zvpxlft_m981_lft01b_m04V01","*='Specifieke informatie A'!$I$60","","Verzekerden risicoklasse- 02 t/m 04- man","zvpxlft","m981","lft01b","m04V01","Verzekerden",null,"N",""]
[null,null,null,null,"zvpxlft_m981_lft02_m04V01","*='Specifieke informatie A'!$I$61","","Verzekerden risicoklasse- 05 t/m 09- man","zvpxlft","m981","lft02","m04V01","Verzekerden",null,"N",""]
[null,null,null,null,"zvpxlft_m981_lft03_m04V01","*='Specifieke informatie A'!$I$62","","Verzekerden risicoklasse- 10 t/m 14- man","zvpxlft","m981","lft03","m04V01","Verzekerden",null,"N",""]
[null,null,null,null,"zvpxlft_m981_lft04_m04V01","*='Specifieke informatie A'!$I$63","","Verzekerden risicoklasse- 15 t/m 19- man","zvpxlft","m981","lft04","m04V01","Verzekerden",null,"N",""]
[null,null,null,null,"zvpxlft_m981_lft05_m04V01","*='Specifieke informatie A'!$I$64","","Verzekerden risicoklasse- 20 t/m 24- man","zvpxlft","m981","lft05","m04V01","Verzekerden",null,"N",""]
[null,null,null,null,"zvpxlft_m981_lft06_m04V01","*='Specifieke informatie A'!$I$65","","Verzekerden risicoklasse- 25 t/m 29- man","zvpxlft","m981","lft06","m04V01","Verzekerden",null,"N",""]
[null,null,null,null,"zvpxlft_m981_lft07_m04V01","*='Specifieke informatie A'!$I$66","","Verzekerden risicoklasse- 30 t/m 34- man","zvpxlft","m981","lft07","m04V01","Verzekerden",null,"N",""]
[null,null,null,null,"zvpxlft_m981_lft08_m04V01","*='Specifieke informatie A'!$I$67","","Verzekerden risicoklasse- 35 t/m 39- man","zvpxlft","m981","lft08","m04V01","Verzekerden",null,"N",""]
[null,null,null,null,"zvpxlft_m981_lft09_m04V01","*='Specifieke informatie A'!$I$68","","Verzekerden risicoklasse- 40 t/m 44- man","zvpxlft","m981","lft09","m04V01","Verzekerden",null,"N",""]
[null,null,null,null,"zvpxlft_m981_lft10_m04V01","*='Specifieke informatie A'!$I$69","","Verzekerden risicoklasse- 45 t/m 49- man","zvpxlft","m981","lft10","m04V01","Verzekerden",null,"N",""]
[null,null,null,null,"zvpxlft_m981_lft11_m04V01","*='Specifieke informatie A'!$I$70","","Verzekerden risicoklasse- 50 t/m 54- man","zvpxlft","m981","lft11","m04V01","Verzekerden",null,"N",""]
[null,null,null,null,"zvpxlft_m981_lft12_m04V01","*='Specifieke informatie A'!$I$71","","Verzekerden risicoklasse- 55 t/m 59- man","zvpxlft","m981","lft12","m04V01","Verzekerden",null,"N",""]
[null,null,null,null,"zvpxlft_m981_lft13_m04V01","*='Specifieke informatie A'!$I$72","","Verzekerden risicoklasse- 60 t/m 64- man","zvpxlft","m981","lft13","m04V01","Verzekerden",null,"N",""]
[null,null,null,null,"zvpxlft_m981_lft14_m04V01","*='Specifieke informatie A'!$I$73","","Verzekerden risicoklasse- 65 t/m 69- man","zvpxlft","m981","lft14","m04V01","Verzekerden",null,"N",""]
[null,null,null,null,"zvpxlft_m981_lft15_m04V01","*='Specifieke informatie A'!$I$74","","Verzekerden risicoklasse- 70 t/m 74- man","zvpxlft","m981","lft15","m04V01","Verzekerden",null,"N",""]
[null,null,null,null,"zvpxlft_m981_lft16_m04V01","*='Specifieke informatie A'!$I$75","","Verzekerden risicoklasse- 75 t/m 79- man","zvpxlft","m981","lft16","m04V01","Verzekerden",null,"N",""]
[null,null,null,null,"zvpxlft_m981_lft17_m04V01","*='Specifieke informatie A'!$I$76","","Verzekerden risicoklasse- 80 t/m 84- man","zvpxlft","m981","lft17","m04V01","Verzekerden",null,"N",""]
[null,null,null,null,"zvpxlft_m981_lft18_m04V01","*='Specifieke informatie A'!$I$77","","Verzekerden risicoklasse- 85 t/m 89- man","zvpxlft","m981","lft18","m04V01","Verzekerden",null,"N",""]
[null,null,null,null,"zvpxlft_m981_lft19_m04V01","*='Specifieke informatie A'!$I$78","","Verzekerden risicoklasse- 90 en ouder- man","zvpxlft","m981","lft19","m04V01","Verzekerden",null,"N",""]
[null,null,null,null,"zvpxlft_v981_lft01a_m04V01","*='Specifieke informatie A'!$J$59","","Verzekerden risicoklasse- 00 t/m 01- vrouw","zvpxlft","v981","lft01a","m04V01","Verzekerden",null,"N",""]
[null,null,null,null,"zvpxlft_v981_lft01b_m04V01","*='Specifieke informatie A'!$J$60","","Verzekerden risicoklasse- 02 t/m 04- vrouw","zvpxlft","v981","lft01b","m04V01","Verzekerden",null,"N",""]
[null,null,null,null,"zvpxlft_v981_lft02_m04V01","*='Specifieke informatie A'!$J$61","","Verzekerden risicoklasse- 05 t/m 09- vrouw","zvpxlft","v981","lft02","m04V01","Verzekerden",null,"N",""]
[null,null,null,null,"zvpxlft_v981_lft03_m04V01","*='Specifieke informatie A'!$J$62","","Verzekerden risicoklasse- 10 t/m 14- vrouw","zvpxlft","v981","lft03","m04V01","Verzekerden",null,"N",""]
[null,null,null,null,"zvpxlft_v981_lft04_m04V01","*='Specifieke informatie A'!$J$63","","Verzekerden risicoklasse- 15 t/m 19- vrouw","zvpxlft","v981","lft04","m04V01","Verzekerden",null,"N",""]
[null,null,null,null,"zvpxlft_v981_lft05_m04V01","*='Specifieke informatie A'!$J$64","","Verzekerden risicoklasse- 20 t/m 24- vrouw","zvpxlft","v981","lft05","m04V01","Verzekerden",null,"N",""]
[null,null,null,null,"zvpxlft_v981_lft06_m04V01","*='Specifieke informatie A'!$J$65","","Verzekerden risicoklasse- 25 t/m 29- vrouw","zvpxlft","v981","lft06","m04V01","Verzekerden",null,"N",""]
[null,null,null,null,"zvpxlft_v981_lft07_m04V01","*='Specifieke informatie A'!$J$66","","Verzekerden risicoklasse- 30 t/m 34- vrouw","zvpxlft","v981","lft07","m04V01","Verzekerden",null,"N",""]
[null,null,null,null,"zvpxlft_v981_lft08_m04V01","*='Specifieke informatie A'!$J$67","","Verzekerden risicoklasse- 35 t/m 39- vrouw","zvpxlft","v981","lft08","m04V01","Verzekerden",null,"N",""]
[null,null,null,null,"zvpxlft_v981_lft09_m04V01","*='Specifieke informatie A'!$J$68","","Verzekerden risicoklasse- 40 t/m 44- vrouw","zvpxlft","v981","lft09","m04V01","Verzekerden",null,"N",""]
[null,null,null,null,"zvpxlft_v981_lft10_m04V01","*='Specifieke informatie A'!$J$69","","Verzekerden risicoklasse- 45 t/m 49- vrouw","zvpxlft","v981","lft10","m04V01","Verzekerden",null,"N",""]
[null,null,null,null,"zvpxlft_v981_lft11_m04V01","*='Specifieke informatie A'!$J$70","","Verzekerden risicoklasse- 50 t/m 54- vrouw","zvpxlft","v981","lft11","m04V01","Verzekerden",null,"N",""]
[null,null,null,null,"zvpxlft_v981_lft12_m04V01","*='Specifieke informatie A'!$J$71","","Verzekerden risicoklasse- 55 t/m 59- vrouw","zvpxlft","v981","lft12","m04V01","Verzekerden",null,"N",""]
[null,null,null,null,"zvpxlft_v981_lft13_m04V01","*='Specifieke informatie A'!$J$72","","Verzekerden risicoklasse- 60 t/m 64- vrouw","zvpxlft","v981","lft13","m04V01","Verzekerden",null,"N",""]
[null,null,null,null,"zvpxlft_v981_lft14_m04V01","*='Specifieke informatie A'!$J$73","","Verzekerden risicoklasse- 65 t/m 69- vrouw","zvpxlft","v981","lft14","m04V01","Verzekerden",null,"N",""]
[null,null,null,null,"zvpxlft_v981_lft15_m04V01","*='Specifieke informatie A'!$J$74","","Verzekerden risicoklasse- 70 t/m 74- vrouw","zvpxlft","v981","lft15","m04V01","Verzekerden",null,"N",""]
[null,null,null,null,"zvpxlft_v981_lft16_m04V01","*='Specifieke informatie A'!$J$75","","Verzekerden risicoklasse- 75 t/m 79- vrouw","zvpxlft","v981","lft16","m04V01","Verzekerden",null,"N",""]
[null,null,null,null,"zvpxlft_v981_lft17_m04V01","*='Specifieke informatie A'!$J$76","","Verzekerden risicoklasse- 80 t/m 84- vrouw","zvpxlft","v981","lft17","m04V01","Verzekerden",null,"N",""]
[null,null,null,null,"zvpxlft_v981_lft18_m04V01","*='Specifieke informatie A'!$J$77","","Verzekerden risicoklasse- 85 t/m 89- vrouw","zvpxlft","v981","lft18","m04V01","Verzekerden",null,"N",""]
[null,null,null,null,"zvpxlft_v981_lft19_m04V01","*='Specifieke informatie A'!$J$78","","Verzekerden risicoklasse- 90 en ouder- vrouw","zvpxlft","v981","lft19","m04V01","Verzekerden",null,"N",""]
[null,null,null,null,"zvpxlft_o981_lft01a_m04V01","*='Specifieke informatie A'!$K$59","","Verzekerden risicoklasse- 00 t/m 01- onbepaald","zvpxlft","o981","lft01a","m04V01","Verzekerden",null,"N",""]
[null,null,null,null,"zvpxlft_o981_lft01b_m04V01","*='Specifieke informatie A'!$K$60","","Verzekerden risicoklasse- 02 t/m 04- onbepaald","zvpxlft","o981","lft01b","m04V01","Verzekerden",null,"N",""]
[null,null,null,null,"zvpxlft_o981_lft02_m04V01","*='Specifieke informatie A'!$K$61","","Verzekerden risicoklasse- 05 t/m 09- onbepaald","zvpxlft","o981","lft02","m04V01","Verzekerden",null,"N",""]
[null,null,null,null,"zvpxlft_o981_lft03_m04V01","*='Specifieke informatie A'!$K$62","","Verzekerden risicoklasse- 10 t/m 14- onbepaald","zvpxlft","o981","lft03","m04V01","Verzekerden",null,"N",""]
[null,null,null,null,"zvpxlft_o981_lft04_m04V01","*='Specifieke informatie A'!$K$63","","Verzekerden risicoklasse- 15 t/m 19- onbepaald","zvpxlft","o981","lft04","m04V01","Verzekerden",null,"N",""]
[null,null,null,null,"zvpxlft_o981_lft05_m04V01","*='Specifieke informatie A'!$K$64","","Verzekerden risicoklasse- 20 t/m 24- onbepaald","zvpxlft","o981","lft05","m04V01","Verzekerden",null,"N",""]
[null,null,null,null,"zvpxlft_o981_lft06_m04V01","*='Specifieke informatie A'!$K$65","","Verzekerden risicoklasse- 25 t/m 29- onbepaald","zvpxlft","o981","lft06","m04V01","Verzekerden",null,"N",""]
[null,null,null,null,"zvpxlft_o981_lft07_m04V01","*='Specifieke informatie A'!$K$66","","Verzekerden risicoklasse- 30 t/m 34- onbepaald","zvpxlft","o981","lft07","m04V01","Verzekerden",null,"N",""]
[null,null,null,null,"zvpxlft_o981_lft08_m04V01","*='Specifieke informatie A'!$K$67","","Verzekerden risicoklasse- 35 t/m 39- onbepaald","zvpxlft","o981","lft08","m04V01","Verzekerden",null,"N",""]
[null,null,null,null,"zvpxlft_o981_lft09_m04V01","*='Specifieke informatie A'!$K$68","","Verzekerden risicoklasse- 40 t/m 44- onbepaald","zvpxlft","o981","lft09","m04V01","Verzekerden",null,"N",""]
[null,null,null,null,"zvpxlft_o981_lft10_m04V01","*='Specifieke informatie A'!$K$69","","Verzekerden risicoklasse- 45 t/m 49- onbepaald","zvpxlft","o981","lft10","m04V01","Verzekerden",null,"N",""]
[null,null,null,null,"zvpxlft_o981_lft11_m04V01","*='Specifieke informatie A'!$K$70","","Verzekerden risicoklasse- 50 t/m 54- onbepaald","zvpxlft","o981","lft11","m04V01","Verzekerden",null,"N",""]
[null,null,null,null,"zvpxlft_o981_lft12_m04V01","*='Specifieke informatie A'!$K$71","","Verzekerden risicoklasse- 55 t/m 59- onbepaald","zvpxlft","o981","lft12","m04V01","Verzekerden",null,"N",""]
[null,null,null,null,"zvpxlft_o981_lft13_m04V01","*='Specifieke informatie A'!$K$72","","Verzekerden risicoklasse- 60 t/m 64- onbepaald","zvpxlft","o981","lft13","m04V01","Verzekerden",null,"N",""]
[null,null,null,null,"zvpxlft_o981_lft14_m04V01","*='Specifieke informatie A'!$K$73","","Verzekerden risicoklasse- 65 t/m 69- onbepaald","zvpxlft","o981","lft14","m04V01","Verzekerden",null,"N",""]
[null,null,null,null,"zvpxlft_o981_lft15_m04V01","*='Specifieke informatie A'!$K$74","","Verzekerden risicoklasse- 70 t/m 74- onbepaald","zvpxlft","o981","lft15","m04V01","Verzekerden",null,"N",""]
[null,null,null,null,"zvpxlft_o981_lft16_m04V01","*='Specifieke informatie A'!$K$75","","Verzekerden risicoklasse- 75 t/m 79- onbepaald","zvpxlft","o981","lft16","m04V01","Verzekerden",null,"N",""]
[null,null,null,null,"zvpxlft_o981_lft17_m04V01","*='Specifieke informatie A'!$K$76","","Verzekerden risicoklasse- 80 t/m 84- onbepaald","zvpxlft","o981","lft17","m04V01","Verzekerden",null,"N",""]
[null,null,null,null,"zvpxlft_o981_lft18_m04V01","*='Specifieke informatie A'!$K$77","","Verzekerden risicoklasse- 85 t/m 89- onbepaald","zvpxlft","o981","lft18","m04V01","Verzekerden",null,"N",""]
[null,null,null,null,"zvpxlft_o981_lft19_m04V01","*='Specifieke informatie A'!$K$78","","Verzekerden risicoklasse- 90 en ouder- onbepaald","zvpxlft","o981","lft19","m04V01","Verzekerden",null,"N",""]
[null,null,null,null,"zvpxprm_s981_nomy_m04V01","*='Specifieke informatie A'!$L$84","","Verzekerden premiekenmerk- met nominale premie ZVW","zvpxprm","s981","nomy","m04V01","Verzekerden",null,"N",""]
[null,null,null,null,"zvpxprm_s981_nomn_m04V01","*='Specifieke informatie A'!$L$85","","Verzekerden premiekenmerk- zonder nominale premie ZVW","zvpxprm","s981","nomn","m04V01","Verzekerden",null,"N",""]
[null,null,null,null,"zvsx06k_c610_d1l_TY2V01","*='Specifieke informatie C'!$K$15","","C610 Overige kosten ziekenhuiszorg en curatieve zorg- eerstelijnsdiagnostiek eerstelijnszorgaanbieders - huisartslab- incl balans","zvsx06k","c610","d1l","TY2V01"]
[null,null,null,null,"zvsx06k_a610_d1l_TY2V01","*='Specifieke informatie C'!$L$15","","C610 Overige kosten ziekenhuiszorg en curatieve zorg- eerstelijnsdiagnostiek eerstelijnszorgaanbieders - huisartslab- geaccepteerd","zvsx06k","a610","d1l","TY2V01"]
[null,null,null,null,"zvsx06k_c610_trmb_TY2V01","*='Specifieke informatie C'!$K$16","","C610 Overige kosten ziekenhuiszorg en curatieve zorg- Trombosediensten- incl balans","zvsx06k","c610","trmb","TY2V01"]
[null,null,null,null,"zvsx06k_a610_trmb_TY2V01","*='Specifieke informatie C'!$L$16","","C610 Overige kosten ziekenhuiszorg en curatieve zorg- Trombosediensten- geaccepteerd","zvsx06k","a610","trmb","TY2V01"]
[null,null,null,null,"zvsx06k_c610_sknt_TY2V01","*='Specifieke informatie C'!$K$17","","C610 Overige kosten ziekenhuiszorg en curatieve zorg- SKION en NTS- incl balans","zvsx06k","c610","sknt","TY2V01"]
[null,null,null,null,"zvsx06k_a610_sknt_TY2V01","*='Specifieke informatie C'!$L$17","","C610 Overige kosten ziekenhuiszorg en curatieve zorg- SKION en NTS- geaccepteerd","zvsx06k","a610","sknt","TY2V01"]
[null,null,null,null,"zvsx06k_c6102_d1l_TY0V01","*='Specifieke informatie C'!$G$24","","C6102 Overige kosten ziekenhuiszorg en curatieve zorg- eerstelijnsdiagnostiek eerstelijnszorgaanbieders - huisartslab- incl balans","zvsx06k","c6102","d1l","TY0V01"]
[null,null,null,null,"zvsx06k_a6102_d1l_TY0V01","*='Specifieke informatie C'!$H$24","","C6102 Overige kosten ziekenhuiszorg en curatieve zorg- eerstelijnsdiagnostiek eerstelijnszorgaanbieders - huisartslab- geaccepteerd","zvsx06k","a6102","d1l","TY0V01"]
[null,null,null,null,"zvsx06k_c6102_d1l_TY1V01","*='Specifieke informatie C'!$I$24","","C6102 Overige kosten ziekenhuiszorg en curatieve zorg- eerstelijnsdiagnostiek eerstelijnszorgaanbieders - huisartslab- incl balans","zvsx06k","c6102","d1l","TY1V01"]
[null,null,null,null,"zvsx06k_a6102_d1l_TY1V01","*='Specifieke informatie C'!$J$24","","C6102 Overige kosten ziekenhuiszorg en curatieve zorg- eerstelijnsdiagnostiek eerstelijnszorgaanbieders - huisartslab- geaccepteerd","zvsx06k","a6102","d1l","TY1V01"]
[null,null,null,null,"zvsx06k_c6102_trmb_TY0V01","*='Specifieke informatie C'!$G$25","","C6102 Overige kosten ziekenhuiszorg en curatieve zorg- Trombosediensten incl balans","zvsx06k","c6102","trmb","TY0V01"]
[null,null,null,null,"zvsx06k_a6102_trmb_TY0V01","*='Specifieke informatie C'!$H$25","","C6102 Overige kosten ziekenhuiszorg en curatieve zorg- Trombosediensten- geaccepteerd","zvsx06k","a6102","trmb","TY0V01"]
[null,null,null,null,"zvsx06k_c6102_trmb_TY1V01","*='Specifieke informatie C'!$I$25","","C6102 Overige kosten ziekenhuiszorg en curatieve zorg- Trombosediensten incl balans","zvsx06k","c6102","trmb","TY1V01"]
[null,null,null,null,"zvsx06k_a6102_trmb_TY1V01","*='Specifieke informatie C'!$J$25","","C6102 Overige kosten ziekenhuiszorg en curatieve zorg- Trombosediensten- geaccepteerd","zvsx06k","a6102","trmb","TY1V01"]
[null,null,null,null,"zvsx06k_c611_az_TY0V01","*='Specifieke informatie C'!$G$31","","C611 Naar Instelling- Academische ziekenhuizen- incl balans","zvsx06k","c611","az","TY0V01"]
[null,null,null,null,"zvsx06k_a611_az_TY0V01","*='Specifieke informatie C'!$H$31","","C611 Naar Instelling- Academische ziekenhuizen- geaccepteerd","zvsx06k","a611","az","TY0V01"]
[null,null,null,null,"zvsx06k_c611_az_TY1V01","*='Specifieke informatie C'!$I$31","","C611 Naar Instelling- Academische ziekenhuizen- incl balans","zvsx06k","c611","az","TY1V01"]
[null,null,null,null,"zvsx06k_a611_az_TY1V01","*='Specifieke informatie C'!$J$31","","C611 Naar Instelling- Academische ziekenhuizen- geaccepteerd","zvsx06k","a611","az","TY1V01"]
[null,null,null,null,"zvsx06k_c611_az_TY2V01","*='Specifieke informatie C'!$K$31","","C611 Naar Instelling- Academische ziekenhuizen- incl balans","zvsx06k","c611","az","TY2V01"]
[null,null,null,null,"zvsx06k_a611_az_TY2V01","*='Specifieke informatie C'!$L$31","","C611 Naar Instelling- Academische ziekenhuizen- geaccepteerd","zvsx06k","a611","az","TY2V01"]
[null,null,null,null,"zvsx06k_c611_sz_TY0V01","*='Specifieke informatie C'!$G$32","","C611 Naar Instelling- Algemene ziekenhuizen- incl balans","zvsx06k","c611","sz","TY0V01"]
[null,null,null,null,"zvsx06k_a611_sz_TY0V01","*='Specifieke informatie C'!$H$32","","C611 Naar Instelling- Algemene ziekenhuizen- geaccepteerd","zvsx06k","a611","sz","TY0V01"]
[null,null,null,null,"zvsx06k_c611_sz_TY1V01","*='Specifieke informatie C'!$I$32","","C611 Naar Instelling- Algemene ziekenhuizen- incl balans","zvsx06k","c611","sz","TY1V01"]
[null,null,null,null,"zvsx06k_a611_sz_TY1V01","*='Specifieke informatie C'!$J$32","","C611 Naar Instelling- Algemene ziekenhuizen- geaccepteerd","zvsx06k","a611","sz","TY1V01"]
[null,null,null,null,"zvsx06k_c611_sz_TY2V01","*='Specifieke informatie C'!$K$32","","C611 Naar Instelling- Algemene ziekenhuizen- incl balans","zvsx06k","c611","sz","TY2V01"]
[null,null,null,null,"zvsx06k_a611_sz_TY2V01","*='Specifieke informatie C'!$L$32","","C611 Naar Instelling- Algemene ziekenhuizen- geaccepteerd","zvsx06k","a611","sz","TY2V01"]
[null,null,null,null,"zvsx06k_c611_zb_TY0V01","*='Specifieke informatie C'!$G$33","","C611 Naar Instelling- Zelfstandige behandelcentra- incl balans","zvsx06k","c611","zb","TY0V01"]
[null,null,null,null,"zvsx06k_a611_zb_TY0V01","*='Specifieke informatie C'!$H$33","","C611 Naar Instelling- Zelfstandige behandelcentra- geaccepteerd","zvsx06k","a611","zb","TY0V01"]
[null,null,null,null,"zvsx06k_c611_zb_TY1V01","*='Specifieke informatie C'!$I$33","","C611 Naar Instelling- Zelfstandige behandelcentra- incl balans","zvsx06k","c611","zb","TY1V01"]
[null,null,null,null,"zvsx06k_a611_zb_TY1V01","*='Specifieke informatie C'!$J$33","","C611 Naar Instelling- Zelfstandige behandelcentra- geaccepteerd","zvsx06k","a611","zb","TY1V01"]
[null,null,null,null,"zvsx06k_c611_zb_TY2V01","*='Specifieke informatie C'!$K$33","","C611 Naar Instelling- Zelfstandige behandelcentra- incl balans","zvsx06k","c611","zb","TY2V01"]
[null,null,null,null,"zvsx06k_a611_zb_TY2V01","*='Specifieke informatie C'!$L$33","","C611 Naar Instelling- Zelfstandige behandelcentra- geaccepteerd","zvsx06k","a611","zb","TY2V01"]
[null,null,null,null,"zvsx06k_c611_ov_TY0V01","*='Specifieke informatie C'!$G$34","","C611 Naar Instelling- Overige zorgaanbieders- incl balans","zvsx06k","c611","ov","TY0V01"]
[null,null,null,null,"zvsx06k_a611_ov_TY0V01","*='Specifieke informatie C'!$H$34","","C611 Naar Instelling- Overige zorgaanbieders- geaccepteerd","zvsx06k","a611","ov","TY0V01"]
[null,null,null,null,"zvsx06k_c611_ov_TY1V01","*='Specifieke informatie C'!$I$34","","C611 Naar Instelling- Overige zorgaanbieders- incl balans","zvsx06k","c611","ov","TY1V01"]
[null,null,null,null,"zvsx06k_a611_ov_TY1V01","*='Specifieke informatie C'!$J$34","","C611 Naar Instelling- Overige zorgaanbieders- geaccepteerd","zvsx06k","a611","ov","TY1V01"]
[null,null,null,null,"zvsx06k_c611_ov_TY2V01","*='Specifieke informatie C'!$K$34","","C611 Naar Instelling- Overige zorgaanbieders- incl balans","zvsx06k","c611","ov","TY2V01"]
[null,null,null,null,"zvsx06k_a611_ov_TY2V01","*='Specifieke informatie C'!$L$34","","C611 Naar Instelling- Overige zorgaanbieders- geaccepteerd","zvsx06k","a611","ov","TY2V01"]
[null,null,null,null,"zvsx06k_c6121_az_TY0V01","*='Specifieke informatie C'!$G$40","","C612.1 Kosten add-ons dure geneesmiddelen naar instelling- Academische ziekenhuizen- incl balans","zvsx06k","c6121","az","TY0V01"]
[null,null,null,null,"zvsx06k_a6121_az_TY0V01","*='Specifieke informatie C'!$H$40","","C612.1 Kosten add-ons dure geneesmiddelen naar instelling- Academische ziekenhuizen- geaccepteerd","zvsx06k","a6121","az","TY0V01"]
[null,null,null,null,"zvsx06k_c6121_az_TY1V01","*='Specifieke informatie C'!$I$40","","C612.1 Kosten add-ons dure geneesmiddelen naar instelling- Academische ziekenhuizen- incl balans","zvsx06k","c6121","az","TY1V01"]
[null,null,null,null,"zvsx06k_a6121_az_TY1V01","*='Specifieke informatie C'!$J$40","","C612.1 Kosten add-ons dure geneesmiddelen naar instelling- Academische ziekenhuizen- geaccepteerd","zvsx06k","a6121","az","TY1V01"]
[null,null,null,null,"zvsx06k_c6121_az_TY2V01","*='Specifieke informatie C'!$K$40","","C612.1 Kosten add-ons dure geneesmiddelen naar instelling- Academische ziekenhuizen- incl balans","zvsx06k","c6121","az","TY2V01"]
[null,null,null,null,"zvsx06k_a6121_az_TY2V01","*='Specifieke informatie C'!$L$40","","C612.1 Kosten add-ons dure geneesmiddelen naar instelling- Academische ziekenhuizen- geaccepteerd","zvsx06k","a6121","az","TY2V01"]
[null,null,null,null,"zvsx06k_c6121_sz_TY0V01","*='Specifieke informatie C'!$G$41","","C612.1 Kosten add-ons dure geneesmiddelen naar instelling- Algemene ziekenhuizen- incl balans","zvsx06k","c6121","sz","TY0V01"]
[null,null,null,null,"zvsx06k_a6121_sz_TY0V01","*='Specifieke informatie C'!$H$41","","C612.1 Kosten add-ons dure geneesmiddelen naar instelling- Algemene ziekenhuizen- geaccepteerd","zvsx06k","a6121","sz","TY0V01"]
[null,null,null,null,"zvsx06k_c6121_sz_TY1V01","*='Specifieke informatie C'!$I$41","","C612.1 Kosten add-ons dure geneesmiddelen naar instelling- Algemene ziekenhuizen- incl balans","zvsx06k","c6121","sz","TY1V01"]
[null,null,null,null,"zvsx06k_a6121_sz_TY1V01","*='Specifieke informatie C'!$J$41","","C612.1 Kosten add-ons dure geneesmiddelen naar instelling- Algemene ziekenhuizen- geaccepteerd","zvsx06k","a6121","sz","TY1V01"]
[null,null,null,null,"zvsx06k_c6121_sz_TY2V01","*='Specifieke informatie C'!$K$41","","C612.1 Kosten add-ons dure geneesmiddelen naar instelling- Algemene ziekenhuizen- incl balans","zvsx06k","c6121","sz","TY2V01"]
[null,null,null,null,"zvsx06k_a6121_sz_TY2V01","*='Specifieke informatie C'!$L$41","","C612.1 Kosten add-ons dure geneesmiddelen naar instelling- Algemene ziekenhuizen- geaccepteerd","zvsx06k","a6121","sz","TY2V01"]
[null,null,null,null,"zvsx06k_c6121_zb_TY0V01","*='Specifieke informatie C'!$G$42","","C612.1 Kosten add-ons dure geneesmiddelen naar instelling- Zelfstandige behandelcentra- incl balans","zvsx06k","c6121","zb","TY0V01"]
[null,null,null,null,"zvsx06k_a6121_zb_TY0V01","*='Specifieke informatie C'!$H$42","","C612.1 Kosten add-ons dure geneesmiddelen naar instelling- Zelfstandige behandelcentra- geaccepteerd","zvsx06k","a6121","zb","TY0V01"]
[null,null,null,null,"zvsx06k_c6121_zb_TY1V01","*='Specifieke informatie C'!$I$42","","C612.1 Kosten add-ons dure geneesmiddelen naar instelling- Zelfstandige behandelcentra- incl balans","zvsx06k","c6121","zb","TY1V01"]
[null,null,null,null,"zvsx06k_a6121_zb_TY1V01","*='Specifieke informatie C'!$J$42","","C612.1 Kosten add-ons dure geneesmiddelen naar instelling- Zelfstandige behandelcentra- geaccepteerd","zvsx06k","a6121","zb","TY1V01"]
[null,null,null,null,"zvsx06k_c6121_zb_TY2V01","*='Specifieke informatie C'!$K$42","","C612.1 Kosten add-ons dure geneesmiddelen naar instelling- Zelfstandige behandelcentra- incl balans","zvsx06k","c6121","zb","TY2V01"]
[null,null,null,null,"zvsx06k_a6121_zb_TY2V01","*='Specifieke informatie C'!$L$42","","C612.1 Kosten add-ons dure geneesmiddelen naar instelling- Zelfstandige behandelcentra- geaccepteerd","zvsx06k","a6121","zb","TY2V01"]
[null,null,null,null,"zvsx06k_c6121_ov_TY0V01","*='Specifieke informatie C'!$G$43","","C612.1 Kosten add-ons dure geneesmiddelen naar instelling- Overige zorgaanbieders- incl balans","zvsx06k","c6121","ov","TY0V01"]
[null,null,null,null,"zvsx06k_a6121_ov_TY0V01","*='Specifieke informatie C'!$H$43","","C612.1 Kosten add-ons dure geneesmiddelen naar instelling- Overige zorgaanbieders- geaccepteerd","zvsx06k","a6121","ov","TY0V01"]
[null,null,null,null,"zvsx06k_c6121_ov_TY1V01","*='Specifieke informatie C'!$I$43","","C612.1 Kosten add-ons dure geneesmiddelen naar instelling- Overige zorgaanbieders- incl balans","zvsx06k","c6121","ov","TY1V01"]
[null,null,null,null,"zvsx06k_a6121_ov_TY1V01","*='Specifieke informatie C'!$J$43","","C612.1 Kosten add-ons dure geneesmiddelen naar instelling- Overige zorgaanbieders- geaccepteerd","zvsx06k","a6121","ov","TY1V01"]
[null,null,null,null,"zvsx06k_c6121_ov_TY2V01","*='Specifieke informatie C'!$K$43","","C612.1 Kosten add-ons dure geneesmiddelen naar instelling- Overige zorgaanbieders- incl balans","zvsx06k","c6121","ov","TY2V01"]
[null,null,null,null,"zvsx06k_a6121_ov_TY2V01","*='Specifieke informatie C'!$L$43","","C612.1 Kosten add-ons dure geneesmiddelen naar instelling- Overige zorgaanbieders- geaccepteerd","zvsx06k","a6121","ov","TY2V01"]
[null,null,null,null,"zvsx06k_c6122_az_TY0V01","*='Specifieke informatie C'!$G$57","","C612.2 Kosten add-ons IC naar instelling- Academische ziekenhuizen- incl balans","zvsx06k","c6122","az","TY0V01"]
[null,null,null,null,"zvsx06k_a6122_az_TY0V01","*='Specifieke informatie C'!$H$57","","C612.2 Kosten add-ons IC naar instelling- Academische ziekenhuizen- geaccepteerd","zvsx06k","a6122","az","TY0V01"]
[null,null,null,null,"zvsx06k_c6122_az_TY1V01","*='Specifieke informatie C'!$I$57","","C612.2 Kosten add-ons IC naar instelling- Academische ziekenhuizen- incl balans","zvsx06k","c6122","az","TY1V01"]
[null,null,null,null,"zvsx06k_a6122_az_TY1V01","*='Specifieke informatie C'!$J$57","","C612.2 Kosten add-ons IC naar instelling- Academische ziekenhuizen- geaccepteerd","zvsx06k","a6122","az","TY1V01"]
[null,null,null,null,"zvsx06k_c6122_az_TY2V01","*='Specifieke informatie C'!$K$57","","C612.2 Kosten add-ons IC naar instelling- Academische ziekenhuizen- incl balans","zvsx06k","c6122","az","TY2V01"]
[null,null,null,null,"zvsx06k_a6122_az_TY2V01","*='Specifieke informatie C'!$L$57","","C612.2 Kosten add-ons IC naar instelling- Academische ziekenhuizen- geaccepteerd","zvsx06k","a6122","az","TY2V01"]
[null,null,null,null,"zvsx06k_c6122_sz_TY0V01","*='Specifieke informatie C'!$G$58","","C612.2 Kosten add-ons IC naar instelling- Algemene ziekenhuizen- incl balans","zvsx06k","c6122","sz","TY0V01"]
[null,null,null,null,"zvsx06k_a6122_sz_TY0V01","*='Specifieke informatie C'!$H$58","","C612.2 Kosten add-ons IC naar instelling- Algemene ziekenhuizen- geaccepteerd","zvsx06k","a6122","sz","TY0V01"]
[null,null,null,null,"zvsx06k_c6122_sz_TY1V01","*='Specifieke informatie C'!$I$58","","C612.2 Kosten add-ons IC naar instelling- Algemene ziekenhuizen- incl balans","zvsx06k","c6122","sz","TY1V01"]
[null,null,null,null,"zvsx06k_a6122_sz_TY1V01","*='Specifieke informatie C'!$J$58","","C612.2 Kosten add-ons IC naar instelling- Algemene ziekenhuizen- geaccepteerd","zvsx06k","a6122","sz","TY1V01"]
[null,null,null,null,"zvsx06k_c6122_sz_TY2V01","*='Specifieke informatie C'!$K$58","","C612.2 Kosten add-ons IC naar instelling- Algemene ziekenhuizen- incl balans","zvsx06k","c6122","sz","TY2V01"]
[null,null,null,null,"zvsx06k_a6122_sz_TY2V01","*='Specifieke informatie C'!$L$58","","C612.2 Kosten add-ons IC naar instelling- Algemene ziekenhuizen- geaccepteerd","zvsx06k","a6122","sz","TY2V01"]
[null,null,null,null,"zvsx06k_c6122_zb_TY0V01","*='Specifieke informatie C'!$G$59","","C612.2 Kosten add-ons IC naar instelling- Zelfstandige behandelcentra- incl balans","zvsx06k","c6122","zb","TY0V01"]
[null,null,null,null,"zvsx06k_a6122_zb_TY0V01","*='Specifieke informatie C'!$H$59","","C612.2 Kosten add-ons IC naar instelling- Zelfstandige behandelcentra- geaccepteerd","zvsx06k","a6122","zb","TY0V01"]
[null,null,null,null,"zvsx06k_c6122_zb_TY1V01","*='Specifieke informatie C'!$I$59","","C612.2 Kosten add-ons IC naar instelling- Zelfstandige behandelcentra- incl balans","zvsx06k","c6122","zb","TY1V01"]
[null,null,null,null,"zvsx06k_a6122_zb_TY1V01","*='Specifieke informatie C'!$J$59","","C612.2 Kosten add-ons IC naar instelling- Zelfstandige behandelcentra- geaccepteerd","zvsx06k","a6122","zb","TY1V01"]
[null,null,null,null,"zvsx06k_c6122_zb_TY2V01","*='Specifieke informatie C'!$K$59","","C612.2 Kosten add-ons IC naar instelling- Zelfstandige behandelcentra- incl balans","zvsx06k","c6122","zb","TY2V01"]
[null,null,null,null,"zvsx06k_a6122_zb_TY2V01","*='Specifieke informatie C'!$L$59","","C612.2 Kosten add-ons IC naar instelling- Zelfstandige behandelcentra- geaccepteerd","zvsx06k","a6122","zb","TY2V01"]
[null,null,null,null,"zvsx06k_c6122_ov_TY0V01","*='Specifieke informatie C'!$G$60","","C612.2 Kosten add-ons IC naar instelling- Overige zorgaanbieders- incl balans","zvsx06k","c6122","ov","TY0V01"]
[null,null,null,null,"zvsx06k_a6122_ov_TY0V01","*='Specifieke informatie C'!$H$60","","C612.2 Kosten add-ons IC naar instelling- Overige zorgaanbieders- geaccepteerd","zvsx06k","a6122","ov","TY0V01"]
[null,null,null,null,"zvsx06k_c6122_ov_TY1V01","*='Specifieke informatie C'!$I$60","","C612.2 Kosten add-ons IC naar instelling- Overige zorgaanbieders- incl balans","zvsx06k","c6122","ov","TY1V01"]
[null,null,null,null,"zvsx06k_a6122_ov_TY1V01","*='Specifieke informatie C'!$J$60","","C612.2 Kosten add-ons IC naar instelling- Overige zorgaanbieders- geaccepteerd","zvsx06k","a6122","ov","TY1V01"]
[null,null,null,null,"zvsx06k_c6122_ov_TY2V01","*='Specifieke informatie C'!$K$60","","C612.2 Kosten add-ons IC naar instelling- Overige zorgaanbieders- incl balans","zvsx06k","c6122","ov","TY2V01"]
[null,null,null,null,"zvsx06k_a6122_ov_TY2V01","*='Specifieke informatie C'!$L$60","","C612.2 Kosten add-ons IC naar instelling- Overige zorgaanbieders- geaccepteerd","zvsx06k","a6122","ov","TY2V01"]
[null,null,null,null,"zvsx06k_c6131_az_TY0V01","*='Specifieke informatie C'!$G$66","","C613.1 Integrale kosten DBC-zorgproducten gereguleerde segment- Academische ziekenhuizen- incl balans","zvsx06k","c6131","az","TY0V01"]
[null,null,null,null,"zvsx06k_a6131_az_TY0V01","*='Specifieke informatie C'!$H$66","","C613.1 Integrale kosten DBC-zorgproducten gereguleerde segment- Academische ziekenhuizen- geaccepteerd","zvsx06k","a6131","az","TY0V01"]
[null,null,null,null,"zvsx06k_c6131_az_TY1V01","*='Specifieke informatie C'!$I$66","","C613.1 Integrale kosten DBC-zorgproducten gereguleerde segment- Academische ziekenhuizen- incl balans","zvsx06k","c6131","az","TY1V01"]
[null,null,null,null,"zvsx06k_a6131_az_TY1V01","*='Specifieke informatie C'!$J$66","","C613.1 Integrale kosten DBC-zorgproducten gereguleerde segment- Academische ziekenhuizen- geaccepteerd","zvsx06k","a6131","az","TY1V01"]
[null,null,null,null,"zvsx06k_c6131_az_TY2V01","*='Specifieke informatie C'!$K$66","","C613.1 Integrale kosten DBC-zorgproducten gereguleerde segment- Academische ziekenhuizen- incl balans","zvsx06k","c6131","az","TY2V01"]
[null,null,null,null,"zvsx06k_a6131_az_TY2V01","*='Specifieke informatie C'!$L$66","","C613.1 Integrale kosten DBC-zorgproducten gereguleerde segment- Academische ziekenhuizen- geaccepteerd","zvsx06k","a6131","az","TY2V01"]
[null,null,null,null,"zvsx06k_c6131_sz_TY0V01","*='Specifieke informatie C'!$G$67","","C613.1 Integrale kosten DBC-zorgproducten gereguleerde segment- Algemene ziekenhuizen- incl balans","zvsx06k","c6131","sz","TY0V01"]
[null,null,null,null,"zvsx06k_a6131_sz_TY0V01","*='Specifieke informatie C'!$H$67","","C613.1 Integrale kosten DBC-zorgproducten gereguleerde segment- Algemene ziekenhuizen- geaccepteerd","zvsx06k","a6131","sz","TY0V01"]
[null,null,null,null,"zvsx06k_c6131_sz_TY1V01","*='Specifieke informatie C'!$I$67","","C613.1 Integrale kosten DBC-zorgproducten gereguleerde segment- Algemene ziekenhuizen- incl balans","zvsx06k","c6131","sz","TY1V01"]
[null,null,null,null,"zvsx06k_a6131_sz_TY1V01","*='Specifieke informatie C'!$J$67","","C613.1 Integrale kosten DBC-zorgproducten gereguleerde segment- Algemene ziekenhuizen- geaccepteerd","zvsx06k","a6131","sz","TY1V01"]
[null,null,null,null,"zvsx06k_c6131_sz_TY2V01","*='Specifieke informatie C'!$K$67","","C613.1 Integrale kosten DBC-zorgproducten gereguleerde segment- Algemene ziekenhuizen- incl balans","zvsx06k","c6131","sz","TY2V01"]
[null,null,null,null,"zvsx06k_a6131_sz_TY2V01","*='Specifieke informatie C'!$L$67","","C613.1 Integrale kosten DBC-zorgproducten gereguleerde segment- Algemene ziekenhuizen- geaccepteerd","zvsx06k","a6131","sz","TY2V01"]
[null,null,null,null,"zvsx06k_c6131_zb_TY0V01","*='Specifieke informatie C'!$G$68","","C613.1 Integrale kosten DBC-zorgproducten gereguleerde segment- Zelfstandige behandelcentra- incl balans","zvsx06k","c6131","zb","TY0V01"]
[null,null,null,null,"zvsx06k_a6131_zb_TY0V01","*='Specifieke informatie C'!$H$68","","C613.1 Integrale kosten DBC-zorgproducten gereguleerde segment- Zelfstandige behandelcentra- geaccepteerd","zvsx06k","a6131","zb","TY0V01"]
[null,null,null,null,"zvsx06k_c6131_zb_TY1V01","*='Specifieke informatie C'!$I$68","","C613.1 Integrale kosten DBC-zorgproducten gereguleerde segment- Zelfstandige behandelcentra- incl balans","zvsx06k","c6131","zb","TY1V01"]
[null,null,null,null,"zvsx06k_a6131_zb_TY1V01","*='Specifieke informatie C'!$J$68","","C613.1 Integrale kosten DBC-zorgproducten gereguleerde segment- Zelfstandige behandelcentra- geaccepteerd","zvsx06k","a6131","zb","TY1V01"]
[null,null,null,null,"zvsx06k_c6131_zb_TY2V01","*='Specifieke informatie C'!$K$68","","C613.1 Integrale kosten DBC-zorgproducten gereguleerde segment- Zelfstandige behandelcentra- incl balans","zvsx06k","c6131","zb","TY2V01"]
[null,null,null,null,"zvsx06k_a6131_zb_TY2V01","*='Specifieke informatie C'!$L$68","","C613.1 Integrale kosten DBC-zorgproducten gereguleerde segment- Zelfstandige behandelcentra- geaccepteerd","zvsx06k","a6131","zb","TY2V01"]
[null,null,null,null,"zvsx06k_c6131_ov_TY0V01","*='Specifieke informatie C'!$G$69","","C613.1 Integrale kosten DBC-zorgproducten gereguleerde segment- Overige zorgaanbieders- incl balans","zvsx06k","c6131","ov","TY0V01"]
[null,null,null,null,"zvsx06k_a6131_ov_TY0V01","*='Specifieke informatie C'!$H$69","","C613.1 Integrale kosten DBC-zorgproducten gereguleerde segment- Overige zorgaanbieders- geaccepteerd","zvsx06k","a6131","ov","TY0V01"]
[null,null,null,null,"zvsx06k_c6131_ov_TY1V01","*='Specifieke informatie C'!$I$69","","C613.1 Integrale kosten DBC-zorgproducten gereguleerde segment- Overige zorgaanbieders- incl balans","zvsx06k","c6131","ov","TY1V01"]
[null,null,null,null,"zvsx06k_a6131_ov_TY1V01","*='Specifieke informatie C'!$J$69","","C613.1 Integrale kosten DBC-zorgproducten gereguleerde segment- Overige zorgaanbieders- geaccepteerd","zvsx06k","a6131","ov","TY1V01"]
[null,null,null,null,"zvsx06k_c6131_ov_TY2V01","*='Specifieke informatie C'!$K$69","","C613.1 Integrale kosten DBC-zorgproducten gereguleerde segment- Overige zorgaanbieders- incl balans","zvsx06k","c6131","ov","TY2V01"]
[null,null,null,null,"zvsx06k_a6131_ov_TY2V01","*='Specifieke informatie C'!$L$69","","C613.1 Integrale kosten DBC-zorgproducten gereguleerde segment- Overige zorgaanbieders- geaccepteerd","zvsx06k","a6131","ov","TY2V01"]
[null,null,null,null,"zvsx06k_c6151_az_TY0V01","*='Specifieke informatie C'!$G$75","","C615.1 Integrale kosten DBC-zorgproduct vrije segment- Academische ziekenhuizen- incl balans","zvsx06k","c6151","az","TY0V01"]
[null,null,null,null,"zvsx06k_a6151_az_TY0V01","*='Specifieke informatie C'!$H$75","","C615.1 Integrale kosten DBC-zorgproduct vrije segment- Academische ziekenhuizen- geaccepteerd","zvsx06k","a6151","az","TY0V01"]
[null,null,null,null,"zvsx06k_c6151_az_TY1V01","*='Specifieke informatie C'!$I$75","","C615.1 Integrale kosten DBC-zorgproduct vrije segment- Academische ziekenhuizen- incl balans","zvsx06k","c6151","az","TY1V01"]
[null,null,null,null,"zvsx06k_a6151_az_TY1V01","*='Specifieke informatie C'!$J$75","","C615.1 Integrale kosten DBC-zorgproduct vrije segment- Academische ziekenhuizen- geaccepteerd","zvsx06k","a6151","az","TY1V01"]
[null,null,null,null,"zvsx06k_c6151_az_TY2V01","*='Specifieke informatie C'!$K$75","","C615.1 Integrale kosten DBC-zorgproduct vrije segment- Academische ziekenhuizen- incl balans","zvsx06k","c6151","az","TY2V01"]
[null,null,null,null,"zvsx06k_a6151_az_TY2V01","*='Specifieke informatie C'!$L$75","","C615.1 Integrale kosten DBC-zorgproduct vrije segment- Academische ziekenhuizen- geaccepteerd","zvsx06k","a6151","az","TY2V01"]
[null,null,null,null,"zvsx06k_c6151_sz_TY0V01","*='Specifieke informatie C'!$G$76","","C615.1 Integrale kosten DBC-zorgproduct vrije segment- Algemene ziekenhuizen- incl balans","zvsx06k","c6151","sz","TY0V01"]
[null,null,null,null,"zvsx06k_a6151_sz_TY0V01","*='Specifieke informatie C'!$H$76","","C615.1 Integrale kosten DBC-zorgproduct vrije segment- Algemene ziekenhuizen- geaccepteerd","zvsx06k","a6151","sz","TY0V01"]
[null,null,null,null,"zvsx06k_c6151_sz_TY1V01","*='Specifieke informatie C'!$I$76","","C615.1 Integrale kosten DBC-zorgproduct vrije segment- Algemene ziekenhuizen- incl balans","zvsx06k","c6151","sz","TY1V01"]
[null,null,null,null,"zvsx06k_a6151_sz_TY1V01","*='Specifieke informatie C'!$J$76","","C615.1 Integrale kosten DBC-zorgproduct vrije segment- Algemene ziekenhuizen- geaccepteerd","zvsx06k","a6151","sz","TY1V01"]
[null,null,null,null,"zvsx06k_c6151_sz_TY2V01","*='Specifieke informatie C'!$K$76","","C615.1 Integrale kosten DBC-zorgproduct vrije segment- Algemene ziekenhuizen- incl balans","zvsx06k","c6151","sz","TY2V01"]
[null,null,null,null,"zvsx06k_a6151_sz_TY2V01","*='Specifieke informatie C'!$L$76","","C615.1 Integrale kosten DBC-zorgproduct vrije segment- Algemene ziekenhuizen- geaccepteerd","zvsx06k","a6151","sz","TY2V01"]
[null,null,null,null,"zvsx06k_a6151_zb_TY0V01","*='Specifieke informatie C'!$H$77","","C615.1 Integrale kosten DBC-zorgproduct vrije segment- Zelfstandige behandelcentra- geaccepteerd","zvsx06k","a6151","zb","TY0V01"]
[null,null,null,null,"zvsx06k_c6151_zb_TY0V01","*='Specifieke informatie C'!$G$77","","C615.1 Integrale kosten DBC-zorgproduct vrije segment- Zelfstandige behandelcentra- incl balans","zvsx06k","c6151","zb","TY0V01"]
[null,null,null,null,"zvsx06k_c6151_zb_TY1V01","*='Specifieke informatie C'!$I$77","","C615.1 Integrale kosten DBC-zorgproduct vrije segment- Zelfstandige behandelcentra- incl balans","zvsx06k","c6151","zb","TY1V01"]
[null,null,null,null,"zvsx06k_a6151_zb_TY1V01","*='Specifieke informatie C'!$J$77","","C615.1 Integrale kosten DBC-zorgproduct vrije segment- Zelfstandige behandelcentra- geaccepteerd","zvsx06k","a6151","zb","TY1V01"]
[null,null,null,null,"zvsx06k_c6151_zb_TY2V01","*='Specifieke informatie C'!$K$77","","C615.1 Integrale kosten DBC-zorgproduct vrije segment- Zelfstandige behandelcentra- incl balans","zvsx06k","c6151","zb","TY2V01"]
[null,null,null,null,"zvsx06k_a6151_zb_TY2V01","*='Specifieke informatie C'!$L$77","","C615.1 Integrale kosten DBC-zorgproduct vrije segment- Zelfstandige behandelcentra- geaccepteerd","zvsx06k","a6151","zb","TY2V01"]
[null,null,null,null,"zvsx06k_c6151_ov_TY0V01","*='Specifieke informatie C'!$G$78","","C615.1 Integrale kosten DBC-zorgproduct vrije segment- Overige zorgaanbieders- incl balans","zvsx06k","c6151","ov","TY0V01"]
[null,null,null,null,"zvsx06k_a6151_ov_TY0V01","*='Specifieke informatie C'!$H$78","","C615.1 Integrale kosten DBC-zorgproduct vrije segment- Overige zorgaanbieders- geaccepteerd","zvsx06k","a6151","ov","TY0V01"]
[null,null,null,null,"zvsx06k_c6151_ov_TY1V01","*='Specifieke informatie C'!$I$78","","C615.1 Integrale kosten DBC-zorgproduct vrije segment- Overige zorgaanbieders- incl balans","zvsx06k","c6151","ov","TY1V01"]
[null,null,null,null,"zvsx06k_a6151_ov_TY1V01","*='Specifieke informatie C'!$J$78","","C615.1 Integrale kosten DBC-zorgproduct vrije segment- Overige zorgaanbieders- geaccepteerd","zvsx06k","a6151","ov","TY1V01"]
[null,null,null,null,"zvsx06k_c6151_ov_TY2V01","*='Specifieke informatie C'!$K$78","","C615.1 Integrale kosten DBC-zorgproduct vrije segment- Overige zorgaanbieders- incl balans","zvsx06k","c6151","ov","TY2V01"]
[null,null,null,null,"zvsx06k_a6151_ov_TY2V01","*='Specifieke informatie C'!$L$78","","C615.1 Integrale kosten DBC-zorgproduct vrije segment- Overige zorgaanbieders- geaccepteerd","zvsx06k","a6151","ov","TY2V01"]
[null,null,null,null,"zvsx13k_a701_g21_TY0V01","*='Specifieke informatie C'!L83","","C701 Overige geneeskundige zorg- Individuele zorg- geaccepteerd","zvsx13k","a701","g21","TY0V01"]
[null,null,null,null,"zvsx13k_a701_g22_TY0V01","*='Specifieke informatie C'!L84","","C701 Overige geneeskundige zorg- Orthoptie- geaccepteerd","zvsx13k","a701","g22","TY0V01"]
[null,null,null,null,"zvsx13k_a701_g23_TY0V01","*='Specifieke informatie C'!L85","","C701 Overige geneeskundige zorg- Optometrie- geaccepteerd","zvsx13k","a701","g23","TY0V01"]
[null,null,null,null,"zvsx13k_a701_g24_TY0V01","*='Specifieke informatie C'!L86","","C701 Overige geneeskundige zorg- voetzorg bij Diabetes Mellitus type 2- geaccepteerd","zvsx13k","a701","g24","TY0V01"]
[null,null,null,null,"zvsx13k_a701_g25_TY0V01","*='Specifieke informatie C'!L87","","C701 Overige geneeskundige zorg- Koemelkallergietest (niet horend bij Multidisciplinaire Zorg)- geaccepteerd","zvsx13k","a701","g25","TY0V01"]
[null,null,null,null,"zvsx13k_a701_g26_TY0V01","*='Specifieke informatie C'!L88","","C701 Overige geneeskundige zorg- Regiefunctie complexe wondzorgt- geaccepteerd","zvsx13k","a701","g26","TY0V01"]
[null,null,null,null,"zvsx13k_a701_g29_TY0V01","*='Specifieke informatie C'!L89","","C701 Overige geneeskundige zorg- ADZ-Parkinsonzorg- geaccepteerd","zvsx13k","a701","g29","TY0V01"]
[null,null,null,null,"zvsx13k_a701_g30_TY0V01","*='Specifieke informatie C'!L90","","C701 Overige geneeskundige zorg- overig- geaccepteerd","zvsx13k","a701","g30","TY0V01"]
[null,null,null,null,"zvsx13k_a702_g01_TY0V01","*='Specifieke informatie C'!L95","","C702 Zintuiglijk gehandicapten- visuele beperking- geaccepteerd","zvsx13k","a702","g01","TY0V01"]
[null,null,null,null,"zvsx13k_a702_g02_TY0V01","*='Specifieke informatie C'!$L$96","","C702 Zintuiglijk gehandicapten- auditieve en comunicatieve beperking- geaccepteerd","zvsx13k","a702","g02","TY0V01"]
[null,null,null,null,"zvox01_c97101_o01trf_TY0V01","*=Contractinformatie!$K$12","","Huisartsenzorg en Multidisciplinaire zorg, (code 503,504,505,506,507,515)- Gecontracteerd 503,504,505,506,507,515- incl balans","zvox01","c97101","o01trf","TY0V01"]
[null,null,null,null,"zvox01_c97101_o31trf_TY0V01","*=Contractinformatie!$K$13",null,"Huisartsenzorg en Multidisciplinaire zorg, (code 503,504,505,506,507,515)- Lopende onderhandelingen 503,504,505,506,507,515- incl balans","zvox01","c97101","o31trf","TY0V01"]
[null,null,null,null,"zvox01_c97101_o52trf_TY0V01","*=Contractinformatie!$K$14","","Huisartsenzorg en Multidisciplinaire zorg, (code 503,504,505,506,507,515)- Niet gecontracteerd 503,504,505,506,507,515- incl balans","zvox01","c97101","o52trf","TY0V01"]
[null,null,null,null,"zvox01_c97101_o01mdz_TY0V01","*=Contractinformatie!$K$17","","Huisartsenzorg en Multidisciplinaire zorg, (code 510 en 516)- Gecontracteerd 510,516- incl balans","zvox01","c97101","o01mdz","TY0V01"]
[null,null,null,null,"zvox01_c97101_o31mdz_TY0V01","*=Contractinformatie!$K$18",null,"Huisartsenzorg en Multidisciplinaire zorg, (code 510 en 516)- Lopende onderhandelingen 510,516- incl balans","zvox01","c97101","o31mdz","TY0V01"]
[null,null,null,null,"zvox01_c97101_o52mdz_TY0V01","*=Contractinformatie!$K$19","","Huisartsenzorg en Multidisciplinaire zorg, (code 510 en 516)- Niet gecontracteerd  510,516- incl balans","zvox01","c97101","o52mdz","TY0V01"]
[null,null,null,null,"zvox03_c97103_o01_TY0V01","*=Contractinformatie!$K$26","","Contractinformatie Verpleging en Verzorging- Gecontracteerd- incl balans","zvox03","c97103","o01","TY0V01"]
[null,null,null,null,"zvox03_c97103_o31_TY0V01","*=Contractinformatie!$K$27",null,"Contractinformatie Verpleging en Verzorging- Lopende onderhandelingen- incl balans","zvox03","c97103","o31","TY0V01"]
[null,null,null,null,"zvox03_c97103_o52_TY0V01","*=Contractinformatie!$K$28","","Contractinformatie Verpleging en Verzorging- Niet gecontracteerd- incl balans","zvox03","c97103","o52","TY0V01"]
[null,null,null,null,"zvox03_c97103_o08_TY0V01","*=Contractinformatie!$K$29",null,"Contractinformatie Verpleging en Verzorging- PGB- incl balans","zvox03","c97103","o08","TY0V01"]
[null,null,null,null,"zvox06_c97106_o02_TY0V01","*=Contractinformatie!$K$34","","Medisch Specialistische Zorg- aanneemsom- incl balans","zvox06","c97106","o02","TY0V01"]
[null,null,null,null,"zvox06_c97106_o03_TY0V01","*=Contractinformatie!$K$35","","Medisch Specialistische Zorg- plafond- incl balans","zvox06","c97106","o03","TY0V01"]
[null,null,null,null,"zvox06_c97106_o04_TY0V01","*=Contractinformatie!$K$36","","Medisch Specialistische Zorg- nacalculatie- incl balans","zvox06","c97106","o04","TY0V01"]
[null,null,null,null,"zvox06_c97106_o05_TY0V01","*=Contractinformatie!$K$37","","Medisch Specialistische Zorg- open einde contract- incl balans","zvox06","c97106","o05","TY0V01"]
[null,null,null,null,"zvox06_c97106_o31_TY0V01","*=Contractinformatie!$K$39",null,"Medisch Specialistische Zorg- Lopende onderhandelingen- incl balans","zvox06","c97106","o31","TY0V01"]
[null,null,null,null,"zvox06_c97106_o52_TY0V01","*=Contractinformatie!$K$40","","Medisch Specialistische Zorg- Niet gecontracteerd- incl balans","zvox06","c97106","o52","TY0V01"]
[null,null,null,null,"zvox06_c97106_o91_TY0V01","*=Contractinformatie!$K$44",null,"Medisch Specialistische Zorg- Totaal afgesproken maximum omzet plafondcontracten- incl balans","zvox06","c97106","o91","TY0V01"]
[null,null,null,null,"zvox10_c97110_o02_TY0V01","*=Contractinformatie!$K$55","","Geneeskundige GGZ- aanneemsom- incl balans","zvox10","c97110","o02","TY0V01"]
[null,null,null,null,"zvox10_c97110_o03_TY0V01","*=Contractinformatie!$K$56","","Geneeskundige GGZ- plafond- incl balans","zvox10","c97110","o03","TY0V01"]
[null,null,null,null,"zvox10_c97110_o04_TY0V01","*=Contractinformatie!$K$57","","Geneeskundige GGZ- nacalculatie- incl balans","zvox10","c97110","o04","TY0V01"]
[null,null,null,null,"zvox10_c97110_o05_TY0V01","*=Contractinformatie!$K$58","","Geneeskundige GGZ- open einde contract- incl balans","zvox10","c97110","o05","TY0V01"]
[null,null,null,null,"zvox10_c97110_o31_TY0V01","*=Contractinformatie!$K$60",null,"Geneeskundige GGZ- Lopende onderhandelingen- incl balans","zvox10","c97110","o31","TY0V01"]
[null,null,null,null,"zvox10_c97110_o52_TY0V01","*=Contractinformatie!$K$61","","Geneeskundige GGZ- Niet gecontracteerd- incl balans","zvox10","c97110","o52","TY0V01"]
[null,null,null,null,"zvox10_c97110_o91_TY0V01","*=Contractinformatie!$K$65",null,"Geneeskundige GGZ- Totaal afgesproken maximum omzet plafondcontracten- incl balans","zvox10","c97110","o91","TY0V01"]
[null,null,null,null,"zvox13_c97113_bo01_TY0V01","*=Contractinformatie!$K$69","","Zintuiglijk gehandicapten- Gecontracteerd- incl balans","zvox13","c97113","bo01","TY0V01"]
[null,null,null,null,"zvox13_c97113_bo31_TY0V01","*=Contractinformatie!$K$70",null,"Zintuiglijk gehandicapten- Lopende onderhandelingen- incl balans","zvox13","c97113","bo31","TY0V01"]
[null,null,null,null,"zvox13_c97113_bo52_TY0V01","*=Contractinformatie!$K$71","","Zintuiglijk gehandicapten- Niet gecontracteerd- incl balans","zvox13","c97113","bo52","TY0V01"]
[null,null,null,null,"zvox11_c97111_o01rvl_TY0V01","*=Contractinformatie!$K$77","","Geriatrische Revalidatiezorg 670 en Eerstelijnsverblijf 671,  Geneeskundige Zorg Specifieke Patiëntgroepen (code 672)- Gecontracteerd  670- incl balans","zvox11","c97111","o01rvl","TY0V01"]
[null,null,null,null,"zvox11_c97111_o31rvl_TY0V01","*=Contractinformatie!$K$78",null,"Geriatrische Revalidatiezorg 670 en Eerstelijnsverblijf 671,  Geneeskundige Zorg Specifieke Patiëntgroepen (code 670)- Lopende onderhandelingen 670- incl balans","zvox11","c97111","o31rvl","TY0V01"]
[null,null,null,null,"zvox11_c97111_o52rvl_TY0V01","*=Contractinformatie!$K$79","","Geriatrische Revalidatiezorg 670 en Eerstelijnsverblijf 671,  Geneeskundige Zorg Specifieke Patiëntgroepen (code 672)- Niet gecontracteerd 670- incl balans","zvox11","c97111","o52rvl","TY0V01"]
[null,null,null,null,"zvox11_c97111_o01ln1_TY0V01","*=Contractinformatie!$K$82","","Geriatrische Revalidatiezorg 670 en Eerstelijnsverblijf 671,  Geneeskundige Zorg Specifieke Patiëntgroepen (code 672)- Gecontracteerd 671- incl balans","zvox11","c97111","o01ln1","TY0V01"]
[null,null,null,null,"zvox11_c97111_o31ln1_TY0V01","*=Contractinformatie!$K$83",null,"Geriatrische Revalidatiezorg 670 en Eerstelijnsverblijf 671,  Geneeskundige Zorg Specifieke Patiëntgroepen (code 671)- Lopende onderhandelingen 671- incl balans","zvox11","c97111","o31ln1","TY0V01"]
[null,null,null,null,"zvox11_c97111_o52ln1_TY0V01","*=Contractinformatie!$K$84","","Geriatrische Revalidatiezorg 670 en Eerstelijnsverblijf 671,  Geneeskundige Zorg Specifieke Patiëntgroepen (code 672)- Niet gecontracteerd 671- incl balans","zvox11","c97111","o52ln1","TY0V01"]
[null,null,null,null,"zvox11_c97111_o01gp_TY0V01","*=Contractinformatie!$K$87",null,"Geriatrische Revalidatiezorg 670 en Eerstelijnsverblijf 671,  Geneeskundige Zorg Specifieke Patiëntgroepen (code 672)- Gecontracteerd 672- incl balans","zvox11","c97111","o01gp","TY0V01"]
[null,null,null,null,"zvox11_c97111_o31gp_TY0V01","*=Contractinformatie!$K$88",null,"Geriatrische Revalidatiezorg 670 en Eerstelijnsverblijf 671,  Geneeskundige Zorg Specifieke Patiëntgroepen (code 672)- Lopende onderhandelingen 672- incl balans","zvox11","c97111","o31gp","TY0V01"]
[null,null,null,null,"zvox11_c97111_o52gp_TY0V01","*=Contractinformatie!$K$89",null,"Geriatrische Revalidatiezorg 670 en Eerstelijnsverblijf 671, Geneeskundige Zorg Specifieke Patiëntgroepen (code 672)- Niet gecontracteerd 672- incl balans","zvox11","c97111","o52gp","TY0V01"]
[null,null,null,null,"zvpxwnb_s982_d2m_m01V01","*=Wanbetalers!$I$12","","Wanbetalers- achterstand 2 of 3 maanden","zvpxwnb","s982","d2m","m01V01","Wanbetalers",null,"N",""]
[null,null,null,null,"zvpxwnb_s982_d2m_m02V01","*=Wanbetalers!$J$12","","Wanbetalers- achterstand 2 of 3 maanden","zvpxwnb","s982","d2m","m02V01","Wanbetalers",null,"N",""]
[null,null,null,null,"zvpxwnb_s982_d2m_m03V01","*=Wanbetalers!$K$12","","Wanbetalers- achterstand 2 of 3 maanden","zvpxwnb","s982","d2m","m03V01","Wanbetalers",null,"N",""]
[null,null,null,null,"zvpxwnb_s982_d4m_m01V01","*=Wanbetalers!$I$13","","Wanbetalers- achterstand 4 of 5 maanden","zvpxwnb","s982","d4m","m01V01","Wanbetalers",null,"N",""]
[null,null,null,null,"zvpxwnb_s982_d4m_m02V01","*=Wanbetalers!$J$13","","Wanbetalers- achterstand 4 of 5 maanden","zvpxwnb","s982","d4m","m02V01","Wanbetalers",null,"N",""]
[null,null,null,null,"zvpxwnb_s982_d4m_m03V01","*=Wanbetalers!$K$13","","Wanbetalers- achterstand 4 of 5 maanden","zvpxwnb","s982","d4m","m03V01","Wanbetalers",null,"N",""]
[null,null,null,null,"zvpxwnb_s982_d6m_m01V01","*=Wanbetalers!$I$14","","Wanbetalers- achterstand 6 of meer maanden","zvpxwnb","s982","d6m","m01V01","Wanbetalers",null,"N",""]
[null,null,null,null,"zvpxwnb_s982_d6m_m02V01","*=Wanbetalers!$J$14","","Wanbetalers- achterstand 6 of meer maanden","zvpxwnb","s982","d6m","m02V01","Wanbetalers",null,"N",""]
[null,null,null,null,"zvpxwnb_s982_d6m_m03V01","*=Wanbetalers!$K$14","","Wanbetalers- achterstand 6 of meer maanden","zvpxwnb","s982","d6m","m03V01","Wanbetalers",null,"N",""]
[null,null,null,null,"zvpxwnb_s982_dm2b_m01V01","*=Wanbetalers!$I$17","","Wanbetalers- tweedemaandsbrieven","zvpxwnb","s982","dm2b","m01V01","Wanbetalers",null,"N",""]
[null,null,null,null,"zvpxwnb_s982_dm2b_m02V01","*=Wanbetalers!$J$17","","Wanbetalers- tweedemaandsbrieven","zvpxwnb","s982","dm2b","m02V01","Wanbetalers",null,"N",""]
[null,null,null,null,"zvpxwnb_s982_dm2b_m03V01","*=Wanbetalers!$K$17","","Wanbetalers- tweedemaandsbrieven","zvpxwnb","s982","dm2b","m03V01","Wanbetalers",null,"N",""]
[null,null,null,null,"zvpxwnb_s982_dm4b_m01V01","*=Wanbetalers!$I$18","","Wanbetalers- vierdemaandsbrieven","zvpxwnb","s982","dm4b","m01V01","Wanbetalers",null,"N",""]
[null,null,null,null,"zvpxwnb_s982_dm4b_m02V01","*=Wanbetalers!$J$18","","Wanbetalers- vierdemaandsbrieven","zvpxwnb","s982","dm4b","m02V01","Wanbetalers",null,"N",""]
[null,null,null,null,"zvpxwnb_s982_dm4b_m03V01","*=Wanbetalers!$K$18","","Wanbetalers- vierdemaandsbrieven","zvpxwnb","s982","dm4b","m03V01","Wanbetalers",null,"N",""]
[null,null,null,null,"zvpxwnb_s982_dr0i_m01V01","*=Wanbetalers!$I$21","","Wanbetalers- interne betalingsregeling","zvpxwnb","s982","dr0i","m01V01","Wanbetalers",null,"N",""]
[null,null,null,null,"zvpxwnb_s982_dr0i_m02V01","*=Wanbetalers!$J$21","","Wanbetalers- interne betalingsregeling","zvpxwnb","s982","dr0i","m02V01","Wanbetalers",null,"N",""]
[null,null,null,null,"zvpxwnb_s982_dr0i_m03V01","*=Wanbetalers!$K$21","","Wanbetalers- interne betalingsregeling","zvpxwnb","s982","dr0i","m03V01","Wanbetalers",null,"N",""]
[null,null,null,null,"zvpxwnb_s982_dr0e_m01V01","*=Wanbetalers!$I$22","","Wanbetalers- externe betalingsregeling","zvpxwnb","s982","dr0e","m01V01","Wanbetalers",null,"N",""]
[null,null,null,null,"zvpxwnb_s982_dr0e_m02V01","*=Wanbetalers!$J$22","","Wanbetalers- externe betalingsregeling","zvpxwnb","s982","dr0e","m02V01","Wanbetalers",null,"N",""]
[null,null,null,null,"zvpxwnb_s982_dr0e_m03V01","*=Wanbetalers!$K$22","","Wanbetalers- externe betalingsregeling","zvpxwnb","s982","dr0e","m03V01","Wanbetalers",null,"N",""]
[null,null,null,null,"zvpxwnb_s982_dr0s_m01V01","*=Wanbetalers!$I$23","","Wanbetalers- stabilisatieovereenkomst","zvpxwnb","s982","dr0s","m01V01","Wanbetalers",null,"N",""]
[null,null,null,null,"zvpxwnb_s982_dr0s_m02V01","*=Wanbetalers!$J$23","","Wanbetalers- stabilisatieovereenkomst","zvpxwnb","s982","dr0s","m02V01","Wanbetalers",null,"N",""]
[null,null,null,null,"zvpxwnb_s982_dr0s_m03V01","*=Wanbetalers!$K$23","","Wanbetalers- stabilisatieovereenkomst","zvpxwnb","s982","dr0s","m03V01","Wanbetalers",null,"N",""]
[null,null,null,null,"zvpxwnb_s982_dr81_m01V01","*=Wanbetalers!$I$26","","Wanbetalers- cak bdr < 250","zvpxwnb","s982","dr81","m01V01","Wanbetalers",null,"N",""]
[null,null,null,null,"zvpxwnb_s982_dr81_m02V01","*=Wanbetalers!$J$26","","Wanbetalers- cak bdr < 250","zvpxwnb","s982","dr81","m02V01","Wanbetalers",null,"N",""]
[null,null,null,null,"zvpxwnb_s982_dr81_m03V01","*=Wanbetalers!$K$26","","Wanbetalers- cak bdr < 250","zvpxwnb","s982","dr81","m03V01","Wanbetalers",null,"N",""]
[null,null,null,null,"zvpxwnb_s982_dr82_m01V01","*=Wanbetalers!$I$27","","Wanbetalers- cak 250 < bdr < 750","zvpxwnb","s982","dr82","m01V01","Wanbetalers",null,"N",""]
[null,null,null,null,"zvpxwnb_s982_dr82_m02V01","*=Wanbetalers!$J$27","","Wanbetalers- cak 250 < bdr < 750","zvpxwnb","s982","dr82","m02V01","Wanbetalers",null,"N",""]
[null,null,null,null,"zvpxwnb_s982_dr82_m03V01","*=Wanbetalers!$K$27","","Wanbetalers- cak 250 < bdr < 750","zvpxwnb","s982","dr82","m03V01","Wanbetalers",null,"N",""]
[null,null,null,null,"zvpxwnb_s982_dr83_m01V01","*=Wanbetalers!$I$28","","Wanbetalers- cak 750 < bdr","zvpxwnb","s982","dr83","m01V01","Wanbetalers",null,"N",""]
[null,null,null,null,"zvpxwnb_s982_dr83_m02V01","*=Wanbetalers!$J$28","","Wanbetalers- cak 750 < bdr","zvpxwnb","s982","dr83","m02V01","Wanbetalers",null,"N",""]
[null,null,null,null,"zvpxwnb_s982_dr83_m03V01","*=Wanbetalers!$K$28","","Wanbetalers- cak 750 < bdr","zvpxwnb","s982","dr83","m03V01","Wanbetalers",null,"N",""]

{"sheet":"Parameters","index":12,"n_rows":34,"n_cols":7,"rows_kept":34,"cut":false,"hidden":true,"merged":[[1,4,1,5]]}
[]
[null,"Kwartaal:",1,null,"HASHTOTALEN"]
[null,"Jaar:",2024,null,"Alle waarden tabblad specifieke informatie A",{"$f":"ROUND(SUM(alle_cellen_info_a),0)","v":{"$error":"#REF!"}},"Opm: kolom I..L"]
[null,"Wet:","ZVW",null,"Alle waarden tabblad specifieke informatie B",{"$f":"ROUND(SUM(alle_cellen_info_c),0)","v":{"$error":"#REF!"}},"Opm: kolom I..L"]
[null,"Document:",{"$f":"CONCATENATE(\"KS\",jaar_id,wet_id,\".\",kwartaal_id)","v":"KS2024ZVW.1"},null,"Alle waarden tabbladen specifieke informatie A en C",{"$f":"SUM(F3:F4)","v":{"$error":"#REF!"}},"Opm: kolom I..L"]
[null,"Revisie:","A"]
[null,"Revisiedatum:","2023-10-02"]
[null,"Versie:",{"$f":"CONCATENATE(document_id,revisie_id)","v":"KS2024ZVW.1A"}]
[]
[]
[]
[null,"NUMMER_UO","NAAM_UO","FORMAT_UO1"]
[null,"0000","KIES UW UZOVI-NUMMER",{"$f":"CONCATENATE(B13,\" \",C13)","v":"0000 KIES UW UZOVI-NUMMER"}]
[null,"0101","UNIVÉ ZORG","0101 UNIVÉ ZORG"]
[null,"0104","CENTRALE ZORGVERZEKERINGEN NZV N.V.","0104 CENTRALE ZORGVERZEKERINGEN NZV N.V."]
[null,"0201","OHRA ZORGVERZEKERINGEN N.V.","0201 OHRA ZORGVERZEKERINGEN N.V."]
[null,"0403","ASR ","0403 ASR "]
[null,"0699","IZA","0699 IZA"]
[null,"0736","UMC","0736 UMC"]
[null,"3311","ZILVEREN KRUIS","3311 ZILVEREN KRUIS"]
[null,"3313","INTERPOLIS","3313 INTERPOLIS"]
[null,"3332","MENZIS","3332 MENZIS"]
[null,"3333","ANDERZORG","3333 ANDERZORG"]
[null,"3343","ONVZ",{"$f":"CONCATENATE(B24,\" \",C24)","v":"3343 ONVZ"}]
[null,"3347","SALLAND ZORGVERZEKERAAR N.V.",{"$f":"CONCATENATE(B25,\" \",C25)","v":"3347 SALLAND ZORGVERZEKERAAR N.V."}]
[null,"3351","FBTO",{"$f":"CONCATENATE(B26,\" \",C26)","v":"3351 FBTO"}]
[null,"3352","IPTIQ",{"$f":"CONCATENATE(B27,\" \",C27)","v":"3352 IPTIQ"}]
[null,"3358","DE FRIESLAND",{"$f":"CONCATENATE(B28,\" \",C28)","v":"3358 DE FRIESLAND"}]
[null,"3359","EUCARE INSURANCE PCC LTD",{"$f":"CONCATENATE(B29,\" \",C29)","v":"3359 EUCARE INSURANCE PCC LTD"}]
[null,"7029","DSW","7029 DSW"]
[null,"7037","STAD HOLLAND",{"$f":"CONCATENATE(B31,\" \",C31)","v":"7037 STAD HOLLAND"}]
[null,"7085","ZORG EN ZEKERHEID","7085 ZORG EN ZEKERHEID"]
[null,"7095","VGZ ZORGVERZEKERAAR","7095 VGZ ZORGVERZEKERAAR"]
[null,"7119","CZ ZORGVERZEKERINGEN N.V.","7119 CZ ZORGVERZEKERINGEN N.V."]